Department Family,Entity,Date of Payment,Expense Type,Expense Area,Supplier,Voluntary & Community Sector,SME Class,Sole Trader,Transaction number,Narrative,Postal Code,Amount in Sterling,Grant?
Communities & Local Government,DCLG,01/11/2012,Agency Staff,Neighbourhoods,REED EMPLOYMENT SERVICES,,Large,,5106185283,Agency Staff pay (6 month contract),SW20 0BA,"1,051.39",
Communities & Local Government,DCLG,01/11/2012,Agency Staff,Neighbourhoods,REED EMPLOYMENT SERVICES,,Large,,5106185285,Interim staff -,SW20 0BA,852.48,
Communities & Local Government,DCLG,01/11/2012,Agency Staff,Neighbourhoods,REED EMPLOYMENT SERVICES,,Large,,5106185290,Agency staff pay cost (6 month contract),SW20 0BA,788.54,
Communities & Local Government,DCLG,01/11/2012,Capital Grant from EC to Local Authority DEL,Neighbourhoods,GREATER LONDON AUTHORITY,,Large,,2100223467,ERDF GLA OCT,SE1 2AA,"88,881.71",Yes
Communities & Local Government,DCLG,01/11/2012,Current (non AEF) Grants to Local Authorities,Neighbourhoods,ADUR DC,,,,2100223037,2012-13 - General GLA Grant,BN43 6PR,"10,000.00",Yes
Communities & Local Government,DCLG,01/11/2012,Current (non AEF) Grants to Local Authorities,Neighbourhoods,ALLERDALE BC,,,,2100223040,2012-13 Town Team Partners Grant,CA14 2RS,"20,000.00",Yes
Communities & Local Government,DCLG,01/11/2012,Current (non AEF) Grants to Local Authorities,Neighbourhoods,AMBER VALLEY BC,,Large,,2100223042,2012-13 - General GLA Grant,DE5 3WZ,"10,000.00",Yes
Communities & Local Government,DCLG,01/11/2012,Current (non AEF) Grants to Local Authorities,Neighbourhoods,ARUN DISTRICT COUNCIL,,,,2100223043,2012-13 Town Team Partners Grant,BN17 6SL,"20,000.00",Yes
Communities & Local Government,DCLG,01/11/2012,Current (non AEF) Grants to Local Authorities,Neighbourhoods,ASHFIELD DC,,,,2100223044,2012-13 - General GLA Grant,NG17 8DA,"20,000.00",Yes
Communities & Local Government,DCLG,01/11/2012,Current (non AEF) Grants to Local Authorities,Neighbourhoods,AYLESBURY VALE DC,,,,2100223045,2012-13 Town Team Partners Grant,HP20 1UB,"10,000.00",Yes
Communities & Local Government,DCLG,01/11/2012,Current (non AEF) Grants to Local Authorities,Neighbourhoods,BABERGH DC,,,,2100223047,2012-13 - General GLA Grant,IP7 6SJ,"10,000.00",Yes
Communities & Local Government,DCLG,01/11/2012,Current (non AEF) Grants to Local Authorities,Neighbourhoods,BARNSLEY MBC,,Public Bodies,,2100223049,2012-13 Town Team Partners Grant,S70 9GG,"20,000.00",Yes
Communities & Local Government,DCLG,01/11/2012,Current (non AEF) Grants to Local Authorities,Neighbourhoods,BARROW-IN-FURNESS BC,,,,2100223050,2012-13 - General GLA Grant,LA14 2LD,"10,000.00",Yes
Communities & Local Government,DCLG,01/11/2012,Current (non AEF) Grants to Local Authorities,Neighbourhoods,BATH & NE SOMERSET DC,,,,2100223052,2012-13 Town Team Partners Grant,BA1 1NY,"10,000.00",Yes
Communities & Local Government,DCLG,01/11/2012,Current (non AEF) Grants to Local Authorities,Neighbourhoods,BIRMINGHAM CITY COUNCIL,,Public Bodies,,2100223053,2012-13 - General GLA Grant,B3 3AB,"80,000.00",Yes
Communities & Local Government,DCLG,01/11/2012,Current (non AEF) Grants to Local Authorities,Neighbourhoods,BOSTON BC,,,,2100223056,2012-13 Town Team Partners Grant,PE21 8QR,"10,000.00",Yes
Communities & Local Government,DCLG,01/11/2012,Current (non AEF) Grants to Local Authorities,Neighbourhoods,BOURNEMOUTH BC,,Large,,2100223057,2012-13 - General GLA Grant,BH1 2BU,"10,000.00",Yes
Communities & Local Government,DCLG,01/11/2012,Current (non AEF) Grants to Local Authorities,Neighbourhoods,BRAINTREE DC,,,,2100223058,2012-13 Town Team Partners Grant,CM7 6HB,"20,000.00",Yes
Communities & Local Government,DCLG,01/11/2012,Current (non AEF) Grants to Local Authorities,Neighbourhoods,BRECKLAND DC,,,,2100223031,2012-13 Town Team Partners Grant,NR19 1EE,"10,000.00",Yes
Communities & Local Government,DCLG,01/11/2012,Current (non AEF) Grants to Local Authorities,Neighbourhoods,BRISTOL CITY COUNCIL,,,,2100223060,2012-13 - General GLA Grant,BS1 5UY,"40,000.00",Yes
Communities & Local Government,DCLG,01/11/2012,Current (non AEF) Grants to Local Authorities,Neighbourhoods,BROXTOWE BC,,Large,,2100223064,2012-13 Town Team Partners Grant,NG9 1AB,"20,000.00",Yes
Communities & Local Government,DCLG,01/11/2012,Current (non AEF) Grants to Local Authorities,Neighbourhoods,BURNLEY BC,,Large,,2100223066,2012-13 Town Team Partners Grant,BB11 1JA,"20,000.00",Yes
Communities & Local Government,DCLG,01/11/2012,Current (non AEF) Grants to Local Authorities,Neighbourhoods,CALDERDALE MBC,,,,2100223068,2012-13 Town Team Partners Grant,HX1 1TP,"10,000.00",Yes
Communities & Local Government,DCLG,01/11/2012,Current (non AEF) Grants to Local Authorities,Neighbourhoods,CANTERBURY CITY COUNCIL,,Large,,2100223070,2012-13 Town Team Partners Grant,CT1 1YW,"10,000.00",Yes
Communities & Local Government,DCLG,01/11/2012,Current (non AEF) Grants to Local Authorities,Neighbourhoods,CARLISLE CITY COUNCIL,,Large,,2100223071,2012-13 Town Team Partners Grant,CA3 8BR,"10,000.00",Yes
Communities & Local Government,DCLG,01/11/2012,Current (non AEF) Grants to Local Authorities,Neighbourhoods,CHARNWOOD BOROUGH COUNCIL,,Public Bodies,,2100223072,2012-13 Town Team Partners Grant,LE11 2TN,"10,000.00",Yes
Communities & Local Government,DCLG,01/11/2012,Current (non AEF) Grants to Local Authorities,Neighbourhoods,CHELMSFORD BOROUGH COUNCIL,,,,2100223073,2012-13 Town Team Partners Grant,CM3 6AY,"10,000.00",Yes
Communities & Local Government,DCLG,01/11/2012,Current (non AEF) Grants to Local Authorities,Neighbourhoods,CHESHIRE EAST BOROUGH COUNCIL,,Public Bodies,,2100223074,2012-13 Town Team Partners Grant,CH1 1SE,"40,000.00",Yes
Communities & Local Government,DCLG,01/11/2012,Current (non AEF) Grants to Local Authorities,Neighbourhoods,CHESHIRE WEST & CHESTER COUNCIL,,Public Bodies,,2100223101,2012-13 Town Team Partners Grant,CH1 2NP,"10,000.00",Yes
Communities & Local Government,DCLG,01/11/2012,Current (non AEF) Grants to Local Authorities,Neighbourhoods,CHESTERFIELD BC,,Large,,2100223102,2012-13 - General GLA Grant,S40 1LP,"10,000.00",Yes
Communities & Local Government,DCLG,01/11/2012,Current (non AEF) Grants to Local Authorities,Neighbourhoods,CHICHESTER DC,,Public Bodies,,2100223103,2012-13 Town Team Partners Grant,PO19 1TY,"20,000.00",Yes
Communities & Local Government,DCLG,01/11/2012,Current (non AEF) Grants to Local Authorities,Neighbourhoods,CHILTERN DC,,Large,,2100223104,2012-13 Town Team Partners Grant,HP6 5AW,"10,000.00",Yes
Communities & Local Government,DCLG,01/11/2012,Current (non AEF) Grants to Local Authorities,Neighbourhoods,CHORLEY BC,,,,2100223105,2012-13 - General GLA Grant,PR7 1DP,"10,000.00",Yes
Communities & Local Government,DCLG,01/11/2012,Current (non AEF) Grants to Local Authorities,Neighbourhoods,CITY OF BRADFORD MDC,,Large,,2100223106,2012-13 Town Team Partners Grant,BD4 7EB,"10,000.00",Yes
Communities & Local Government,DCLG,01/11/2012,Current (non AEF) Grants to Local Authorities,Neighbourhoods,CITY OF YORK COUNCIL,,Large,,2100223108,Town Team Partners Grant -2012-13,YO1 7ET,"10,000.00",Yes
Communities & Local Government,DCLG,01/11/2012,Current (non AEF) Grants to Local Authorities,Neighbourhoods,COLCHESTER BC,,,,2100223109,Town Team Partners Grant -2012-13,CO1 1FR,"10,000.00",Yes
Communities & Local Government,DCLG,01/11/2012,Current (non AEF) Grants to Local Authorities,Neighbourhoods,COPELAND BC,,,,2100223110,Town Team Partners Grant -2012-13,CA28 7SJ,"20,000.00",Yes
Communities & Local Government,DCLG,01/11/2012,Current (non AEF) Grants to Local Authorities,Neighbourhoods,CORBY BOROUGH COUNCIL,,,,2100223111,Town Team Partners Grant -2012-13,NN17 1QB,"10,000.00",Yes
Communities & Local Government,DCLG,01/11/2012,Current (non AEF) Grants to Local Authorities,Neighbourhoods,CORNWALL COUNTY COUNCIL,,Large,,2100223112,Town Team Partners Grant -2012-13,TR1 3AY,"60,000.00",Yes
Communities & Local Government,DCLG,01/11/2012,Current (non AEF) Grants to Local Authorities,Neighbourhoods,COTSWOLD COUNTY COUNCIL,,Large,,2100223113,Town Team Partners Grant -2012-13,GL7 1PX,"10,000.00",Yes
Communities & Local Government,DCLG,01/11/2012,Current (non AEF) Grants to Local Authorities,Neighbourhoods,CRAVEN DC,,,,2100223114,Town Team Partners Grant -2012-13,BD23 1PS,"10,000.00",Yes
Communities & Local Government,DCLG,01/11/2012,Current (non AEF) Grants to Local Authorities,Neighbourhoods,CRAWLEY BC,,Large,,2100223115,Town Team Partners Grant -2012-13,RH10 1UZ,"10,000.00",Yes
Communities & Local Government,DCLG,01/11/2012,Current (non AEF) Grants to Local Authorities,Neighbourhoods,DACORUM BC,,Public Bodies,,2100223117,Town Team Partners Grant -2012-13,HP1 1HH,"10,000.00",Yes
Communities & Local Government,DCLG,01/11/2012,Current (non AEF) Grants to Local Authorities,Neighbourhoods,DAVENTRY DC,,Large,,2100223118,Town Team Partners Grant -2012-13,NN11 5AF,"10,000.00",Yes
Communities & Local Government,DCLG,01/11/2012,Current (non AEF) Grants to Local Authorities,Neighbourhoods,DERBYSHIRE DALES DC,,,,2100223120,Town Team Partners Grant -2012-13,DE4 3NN,"10,000.00",Yes
Communities & Local Government,DCLG,01/11/2012,Current (non AEF) Grants to Local Authorities,Neighbourhoods,DOVER DC,,,,2100223121,Town Team Partners Grant -2012-13,CT16 3PF,"20,000.00",Yes
Communities & Local Government,DCLG,01/11/2012,Current (non AEF) Grants to Local Authorities,Neighbourhoods,DURHAM COUNTY COUNCIL,,,,2100223122,Town Team Partners Grant -2012-13,DL16 6JQ,"50,000.00",Yes
Communities & Local Government,DCLG,01/11/2012,Current (non AEF) Grants to Local Authorities,Neighbourhoods,EAST DEVON DC,,Public Bodies,,2100223123,Town Team Partners Grant -2012-13,EX10 8HL,"20,000.00",Yes
Communities & Local Government,DCLG,01/11/2012,Current (non AEF) Grants to Local Authorities,Neighbourhoods,EAST LINDSEY DISTRICT COUNCIL,,,,2100223124,Town Team Partners Grant -2012-13,LN11 8UP,"30,000.00",Yes
Communities & Local Government,DCLG,01/11/2012,Current (non AEF) Grants to Local Authorities,Neighbourhoods,EAST NORTHAMPTONSHIRE COUNCIL,,,,2100223125,Town Team Partners Grant -2012-13,NN14 4LZ,"10,000.00",Yes
Communities & Local Government,DCLG,01/11/2012,Current (non AEF) Grants to Local Authorities,Neighbourhoods,EAST RIDING OF YORKSHIRE COUNCIL,,,,2100223126,Town Team Partners Grant -2012-13,HU17 9BA,"40,000.00",Yes
Communities & Local Government,DCLG,01/11/2012,Current (non AEF) Grants to Local Authorities,Neighbourhoods,EAST STAFFORDSHIRE BC,,Medium,,2100223127,Town Team Partners Grant -2012-13,DE14 2EB,"10,000.00",Yes
Communities & Local Government,DCLG,01/11/2012,Current (non AEF) Grants to Local Authorities,Neighbourhoods,EAST SUSSEX CC,,,,2100223128,Town Team Partners Grant -2012-13,BN7 1UE,"10,000.00",Yes
Communities & Local Government,DCLG,01/11/2012,Current (non AEF) Grants to Local Authorities,Neighbourhoods,EASTBOURNE BC,,,,2100223129,Town Team Partners Grant -2012-13,BN21 4TW,"10,000.00",Yes
Communities & Local Government,DCLG,01/11/2012,Current (non AEF) Grants to Local Authorities,Neighbourhoods,EDEN DC,,,,2100223130,Town Team Partners Grant -2012-13,CA11 7QF,"30,000.00",Yes
Communities & Local Government,DCLG,01/11/2012,Current (non AEF) Grants to Local Authorities,Neighbourhoods,EPPING FOREST DC,,,,2100223132,Town Team Partners Grant -2012-13,CM16 4BZ,"10,000.00",Yes
Communities & Local Government,DCLG,01/11/2012,Current (non AEF) Grants to Local Authorities,Neighbourhoods,EREWASH BOROUGH COUNCIL,,Large,,2100223134,Town Team Partners Grant -2012-13,DE7 5SE,"10,000.00",Yes
Communities & Local Government,DCLG,01/11/2012,Current (non AEF) Grants to Local Authorities,Neighbourhoods,FOREST HEATH DC,,,,2100223136,Town Team Partners Grant -2012-13,IP28 7EY,"30,000.00",Yes
Communities & Local Government,DCLG,01/11/2012,Current (non AEF) Grants to Local Authorities,Neighbourhoods,FYLDE BC,,,,2100223138,Town Team Partners Grant -2012-13,FY8 1LW,"10,000.00",Yes
Communities & Local Government,DCLG,01/11/2012,Current (non AEF) Grants to Local Authorities,Neighbourhoods,GATESHEAD MBC,,Public Bodies,,2100223139,Town Team Partners Grant -2012-13,NE8 3HN,"10,000.00",Yes
Communities & Local Government,DCLG,01/11/2012,Current (non AEF) Grants to Local Authorities,Neighbourhoods,GLOUCESTER CITY COUNCIL,,Public Bodies,,2100223141,Town Team Partners Grant -2012-13,GL1 2EQ,"10,000.00",Yes
Communities & Local Government,DCLG,01/11/2012,Current (non AEF) Grants to Local Authorities,Neighbourhoods,GOSPORT BC,,,,2100223143,Town Team Partners Grant -2012-13,PO12 1EB,"10,000.00",Yes
Communities & Local Government,DCLG,01/11/2012,Current (non AEF) Grants to Local Authorities,Neighbourhoods,GRAVESHAM BC,,,,2100223145,Town Team Partners Grant -2012-13,DA12 1AU,"10,000.00",Yes
Communities & Local Government,DCLG,01/11/2012,Current (non AEF) Grants to Local Authorities,Neighbourhoods,GREAT YARMOUTH BC,,,,2100223147,Town Team Partners Grant -2012-13,NR30 2QG,"10,000.00",Yes
Communities & Local Government,DCLG,01/11/2012,Current (non AEF) Grants to Local Authorities,Neighbourhoods,HALTON BC,,Large,,2100223184,Town Team Partners Grant -2012-13,WA8 0GH,"10,000.00",Yes
Communities & Local Government,DCLG,01/11/2012,Current (non AEF) Grants to Local Authorities,Neighbourhoods,HAMBLETON DC,,,,2100223185,Town Team Partners Grant -2012-13,DL6 2UU,"10,000.00",Yes
Communities & Local Government,DCLG,01/11/2012,Current (non AEF) Grants to Local Authorities,Neighbourhoods,HARBOROUGH DC,,,,2100223186,Town Team Partners Grant -2012-13,LE16 7AE,"10,000.00",Yes
Communities & Local Government,DCLG,01/11/2012,Current (non AEF) Grants to Local Authorities,Neighbourhoods,HARLOW DISTRICT COUNCIL,,,,2100223188,Town Team Partners Grant -2012-13,CM20 1HJ,"10,000.00",Yes
Communities & Local Government,DCLG,01/11/2012,Current (non AEF) Grants to Local Authorities,Neighbourhoods,HARROGATE BC,,,,2100223191,Town Team Partners Grant -2012-13,HG1 2SG,"10,000.00",Yes
Communities & Local Government,DCLG,01/11/2012,Current (non AEF) Grants to Local Authorities,Neighbourhoods,HARTLEPOOL BOROUGH COUNCIL,,Large,,2100223193,Town Team Partners Grant -2012-13,TS24 7BT,"10,000.00",Yes
Communities & Local Government,DCLG,01/11/2012,Current (non AEF) Grants to Local Authorities,Neighbourhoods,HASTINGS BOROUGH COUNCIL,,Public Bodies,,2100223196,Town Team Partners Grant -2012-13,TN34 3WN,"10,000.00",Yes
Communities & Local Government,DCLG,01/11/2012,Current (non AEF) Grants to Local Authorities,Neighbourhoods,HEREFORDSHIRE COUNCIL,,Public Bodies,,2100223198,Town Team Partners Grant -2012-13,HR1 1ZT,"30,000.00",Yes
Communities & Local Government,DCLG,01/11/2012,Current (non AEF) Grants to Local Authorities,Neighbourhoods,HIGH PEAK BC,,Public Bodies,,2100223200,Town Team Partners Grant -2012-13,SK17 6EL,"10,000.00",Yes
Communities & Local Government,DCLG,01/11/2012,Current (non AEF) Grants to Local Authorities,Neighbourhoods,HINCKLEY & BOSWORTH BC,,,,2100223202,Town Team Partners Grant -2012-13,LE10 1BZ,"20,000.00",Yes
Communities & Local Government,DCLG,01/11/2012,Current (non AEF) Grants to Local Authorities,Neighbourhoods,HULL CITY COUNCIL,,Large,,2100223207,Town Team Partners Grant -2012-13,HU1 2AA,"10,000.00",Yes
Communities & Local Government,DCLG,01/11/2012,Current (non AEF) Grants to Local Authorities,Neighbourhoods,HUNTINGDONSHIRE DC,,,,2100223209,Town Team Partners Grant -2012-13,PE29 3TN,"30,000.00",Yes
Communities & Local Government,DCLG,01/11/2012,Current (non AEF) Grants to Local Authorities,Neighbourhoods,HYNDBURN BC,,,,2100223215,Town Team Partners Grant -2012-13,BB5 1PQ,"20,000.00",Yes
Communities & Local Government,DCLG,01/11/2012,Current (non AEF) Grants to Local Authorities,Neighbourhoods,IPSWICH BC,,,,2100223216,Town Team Partners Grant -2012-13,IP1 2EE,"10,000.00",Yes
Communities & Local Government,DCLG,01/11/2012,Current (non AEF) Grants to Local Authorities,Neighbourhoods,ISLE OF WIGHT COUNCIL,,,,2100223220,Town Team Partners Grant -2012-13,PO30 1UD,"10,000.00",Yes
Communities & Local Government,DCLG,01/11/2012,Current (non AEF) Grants to Local Authorities,Neighbourhoods,KENT COUNTY COUNCIL,,Public Bodies,,2100223223,Town Team Partners Grant -2012-13,ME14 1XQ,"10,000.00",Yes
Communities & Local Government,DCLG,01/11/2012,Current (non AEF) Grants to Local Authorities,Neighbourhoods,KETTERING BC,,Public Bodies,,2100223225,Town Team Partners Grant -2012-13,NN15 7QX,"20,000.00",Yes
Communities & Local Government,DCLG,01/11/2012,Current (non AEF) Grants to Local Authorities,Neighbourhoods,KINGS LYNN & W NORFOLK BC,,,,2100223226,Town Team Partners Grant -2012-13,PE30 1EX,"10,000.00",Yes
Communities & Local Government,DCLG,01/11/2012,Current (non AEF) Grants to Local Authorities,Neighbourhoods,KIRKLEES MBC,,,,2100223294,Town Team Partners Grant -2012-13,HD1 2YU,"10,000.00",Yes
Communities & Local Government,DCLG,01/11/2012,Current (non AEF) Grants to Local Authorities,Neighbourhoods,KNOWSLEY MBC,,,,2100223295,Town Team Partners Grant -2012-13,L32 1TX,"20,000.00",Yes
Communities & Local Government,DCLG,01/11/2012,Current (non AEF) Grants to Local Authorities,Neighbourhoods,LB HAMMERSMITH & FULHAM,,,,2100223296,Town Team Partners Grant -2012-13,W6 0LR,"10,000.00",Yes
Communities & Local Government,DCLG,01/11/2012,Current (non AEF) Grants to Local Authorities,Neighbourhoods,LB HOUNSLOW,,,,2100223305,Town Team Partners Grant -2012-13,TW3 4DN,"10,000.00",Yes
Communities & Local Government,DCLG,01/11/2012,Current (non AEF) Grants to Local Authorities,Neighbourhoods,LB ISLINGTON,,Large,,2100223306,Town Team Partners Grant -2012-13,N1 1XR,"10,000.00",Yes
Communities & Local Government,DCLG,01/11/2012,Current (non AEF) Grants to Local Authorities,Neighbourhoods,LB OF LAMBETH,,Public Bodies,,2100223307,Town Team Partners Grant -2012-13,SW1 1RW,"20,000.00",Yes
Communities & Local Government,DCLG,01/11/2012,Current (non AEF) Grants to Local Authorities,Neighbourhoods,LB RICHMOND UPON THAMES(USE405994),,Public Bodies,,2100223309,Town Team Partners Grant -2012-13,TW1 3BZ,"10,000.00",Yes
Communities & Local Government,DCLG,01/11/2012,Current (non AEF) Grants to Local Authorities,Neighbourhoods,LB SUTTON,,,,2100223166,2012-13 Town Team Partners Grant,SM1 1EA,"10,000.00",Yes
Communities & Local Government,DCLG,01/11/2012,Current (non AEF) Grants to Local Authorities,Neighbourhoods,LB TOWER HAMLETS,,Public Bodies,,2100223311,Town Team Partners Grant -2012-13,E14 2BG,"10,000.00",Yes
Communities & Local Government,DCLG,01/11/2012,Current (non AEF) Grants to Local Authorities,Neighbourhoods,LB WANDSWORTH,,Public Bodies,,2100223146,2012-13 Town Team Partners Grant,SW18 2PU,"10,000.00",Yes
Communities & Local Government,DCLG,01/11/2012,Current (non AEF) Grants to Local Authorities,Neighbourhoods,LEEDS CITY COUNCIL,,Large,,2100223297,Town Team Partners Grant -2012-13,LS1 1UR,"30,000.00",Yes
Communities & Local Government,DCLG,01/11/2012,Current (non AEF) Grants to Local Authorities,Neighbourhoods,LEWES DC,,,,2100223298,Town Team Partners Grant -2012-13,BN7 2DG,"20,000.00",Yes
Communities & Local Government,DCLG,01/11/2012,Current (non AEF) Grants to Local Authorities,Neighbourhoods,LICHFIELD DC,,Large,,2100223299,Town Team Partners Grant -2012-13,WS13 6YX,"10,000.00",Yes
Communities & Local Government,DCLG,01/11/2012,Current (non AEF) Grants to Local Authorities,Neighbourhoods,LINCOLN CITY COUNCIL,,,,2100223107,Town Team Partners Grant -2012-13,LN1 1DH,"10,000.00",Yes
Communities & Local Government,DCLG,01/11/2012,Current (non AEF) Grants to Local Authorities,Neighbourhoods,LONDON BOROUGH BARKING & DAGENHAM,,,,2100223300,Town Team Partners Grant -2012-13,RM10 7BY,"10,000.00",Yes
Communities & Local Government,DCLG,01/11/2012,Current (non AEF) Grants to Local Authorities,Neighbourhoods,LONDON BOROUGH HARINGEY,,,,2100223303,Town Team Partners Grant -2012-13,N22 4TR,"10,000.00",Yes
Communities & Local Government,DCLG,01/11/2012,Current (non AEF) Grants to Local Authorities,Neighbourhoods,LONDON BOROUGH HAVERING,,Large,,2100223304,Town Team Partners Grant -2012-13,RM1 3BB,"30,000.00",Yes
Communities & Local Government,DCLG,01/11/2012,Current (non AEF) Grants to Local Authorities,Neighbourhoods,LONDON BOROUGH LEWISHAM,,Public Bodies,,2100223308,Town Team Partners Grant -2012-13,SE6 4AS,"10,000.00",Yes
Communities & Local Government,DCLG,01/11/2012,Current (non AEF) Grants to Local Authorities,Neighbourhoods,LONDON BOROUGH OF BARNET,,Large,,2100223301,Town Team Partners Grant -2012-13,NW4 4BG,"10,000.00",Yes
Communities & Local Government,DCLG,01/11/2012,Current (non AEF) Grants to Local Authorities,Neighbourhoods,LONDON BOROUGH OF BRENT,,,,2100223173,2012-13 Town Team Partners Grant,HAO 2HB,"10,000.00",Yes
Communities & Local Government,DCLG,01/11/2012,Current (non AEF) Grants to Local Authorities,Neighbourhoods,LONDON BOROUGH OF BROMLEY,,,,2100223302,Town Team Partners Grant -2012-13,BR1 3UH,"10,000.00",Yes
Communities & Local Government,DCLG,01/11/2012,Current (non AEF) Grants to Local Authorities,Neighbourhoods,LONDON BOROUGH OF CAMDEN,,,,2100223069,2012-13 Town Team Partners Grant,WC1H 8NG,"10,000.00",Yes
Communities & Local Government,DCLG,01/11/2012,Current (non AEF) Grants to Local Authorities,Neighbourhoods,LONDON BOROUGH SOUTHWARK,,,,2100223310,Town Team Partners Grant -2012-13,SE1 3DY,"10,000.00",Yes
Communities & Local Government,DCLG,01/11/2012,Current (non AEF) Grants to Local Authorities,Neighbourhoods,LUTON BOROUGH COUNCIL,,Public Bodies,,2100223312,Town Team Partners Grant -2012-13,LU1 2RD,"10,000.00",Yes
Communities & Local Government,DCLG,01/11/2012,Current (non AEF) Grants to Local Authorities,Neighbourhoods,MAIDSTONE B C,,Public Bodies,,2100223313,Town Team Partners Grant -2012-13,ME15 6JQ,"10,000.00",Yes
Communities & Local Government,DCLG,01/11/2012,Current (non AEF) Grants to Local Authorities,Neighbourhoods,MALVERN HILLS DC,,,,2100223314,Town Team Partners Grant -2012-13,WR14 2BA,"20,000.00",Yes
Communities & Local Government,DCLG,01/11/2012,Current (non AEF) Grants to Local Authorities,Neighbourhoods,MANCHESTER CITY COUNCIL,,Large,,2100223315,Town Team Partners Grant -2012-13,M60 2LA,"20,000.00",Yes
Communities & Local Government,DCLG,01/11/2012,Current (non AEF) Grants to Local Authorities,Neighbourhoods,MANSFIELD DC,,Large,,2100223316,Town Team Partners Grant -2012-13,NG19 7BH,"10,000.00",Yes
Communities & Local Government,DCLG,01/11/2012,Current (non AEF) Grants to Local Authorities,Neighbourhoods,MENDIP DISTRICT COUNCIL,,,,2100223318,Town Team Partners Grant -2012-13,BA4 5BT,"10,000.00",Yes
Communities & Local Government,DCLG,01/11/2012,Current (non AEF) Grants to Local Authorities,Neighbourhoods,MID SUFFOLK DC,,,,2100223319,Town Team Partners Grant -2012-13,IP6 8DL,"10,000.00",Yes
Communities & Local Government,DCLG,01/11/2012,Current (non AEF) Grants to Local Authorities,Neighbourhoods,MID SUSSEX DC,,Large,,2100223320,Town Team Partners Grant -2012-13,RH15 9NN,"10,000.00",Yes
Communities & Local Government,DCLG,01/11/2012,Current (non AEF) Grants to Local Authorities,Neighbourhoods,MIDDLESBROUGH BC,,Public Bodies,,2100223321,Town Team Partners Grant -2012-13,TS1 1QP,"10,000.00",Yes
Communities & Local Government,DCLG,01/11/2012,Current (non AEF) Grants to Local Authorities,Neighbourhoods,MILTON KEYNES BC,,,,2100223322,Town Team Partners Grant -2012-13,MK9 3EE,"20,000.00",Yes
Communities & Local Government,DCLG,01/11/2012,Current (non AEF) Grants to Local Authorities,Neighbourhoods,NEWARK & SHERWOOD DC,,,,2100223325,Town Team Partners Grant -2012-13,NG23 5QX,"10,000.00",Yes
Communities & Local Government,DCLG,01/11/2012,Current (non AEF) Grants to Local Authorities,Neighbourhoods,NEWCASTLE CITY COUNCIL,,,,2100223326,Town Team Partners Grant -2012-13,NE3 9BH,"10,000.00",Yes
Communities & Local Government,DCLG,01/11/2012,Current (non AEF) Grants to Local Authorities,Neighbourhoods,NEWCASTLE UNDER LYME BC,,Large,,2100223327,Town Team Partners Grant -2012-13,ST5 2AG,"10,000.00",Yes
Communities & Local Government,DCLG,01/11/2012,Current (non AEF) Grants to Local Authorities,Neighbourhoods,NORTH DEVON DC,,,,2100223324,Town Team Partners Grant -2012-13,EX31 1EA,"30,000.00",Yes
Communities & Local Government,DCLG,01/11/2012,Current (non AEF) Grants to Local Authorities,Neighbourhoods,NORTH DORSET DC,,,,2100223328,Town Team Partners Grant -2012-13,DT11 7LL,"10,000.00",Yes
Communities & Local Government,DCLG,01/11/2012,Current (non AEF) Grants to Local Authorities,Neighbourhoods,NORTH EAST DERBYSHIRE DC,,Large,,2100223329,Town Team Partners Grant -2012-13,S41 1LF,"10,000.00",Yes
Communities & Local Government,DCLG,01/11/2012,Current (non AEF) Grants to Local Authorities,Neighbourhoods,NORTH HERTS DC,,,,2100223330,Town Team Partners Grant -2012-13,SG6 3HN,"10,000.00",Yes
Communities & Local Government,DCLG,01/11/2012,Current (non AEF) Grants to Local Authorities,Neighbourhoods,NORTH LINCOLNSHIRE DC,,Public Bodies,,2100223331,Town Team Partners Grant -2012-13,DN16 1AB,"10,000.00",Yes
Communities & Local Government,DCLG,01/11/2012,Current (non AEF) Grants to Local Authorities,Neighbourhoods,NORTH NORFOLK DC,,,,2100223244,2012-13 Town Team Partners Grant,NR27 9EJ,"10,000.00",Yes
Communities & Local Government,DCLG,01/11/2012,Current (non AEF) Grants to Local Authorities,Neighbourhoods,NORTH SOMERSET COUNCIL,,Large,,2100223243,2012-13 Town Team Partners Grant,BS23 1UJ,"10,000.00",Yes
Communities & Local Government,DCLG,01/11/2012,Current (non AEF) Grants to Local Authorities,Neighbourhoods,NORTH TYNESIDE COUNCIL,,,,2100223242,2012-13 Town Team Partners Grant,NA27 0BY,"10,000.00",Yes
Communities & Local Government,DCLG,01/11/2012,Current (non AEF) Grants to Local Authorities,Neighbourhoods,NORTHUMBERLAND CC,,Large,,2100223240,2012-13 Town Team Partners Grant,NE61 2EF,"60,000.00",Yes
Communities & Local Government,DCLG,01/11/2012,Current (non AEF) Grants to Local Authorities,Neighbourhoods,NOTTINGHAM CITY COUNCIL,,Large,,2100223239,2012-13 Town Team Partners Grant,M33 0DJ,"20,000.00",Yes
Communities & Local Government,DCLG,01/11/2012,Current (non AEF) Grants to Local Authorities,Neighbourhoods,NW LEICESTER DC,,Large,,2100223241,2012-13 Town Team Partners Grant,LE67 3FJ,"10,000.00",Yes
Communities & Local Government,DCLG,01/11/2012,Current (non AEF) Grants to Local Authorities,Neighbourhoods,OADBY & WIGSTON BOROUGH COUNCIL,,Large,,2100223238,2012-13 Town Team Partners Grant,LE18 2DR,"10,000.00",Yes
Communities & Local Government,DCLG,01/11/2012,Current (non AEF) Grants to Local Authorities,Neighbourhoods,OLDHAM MBC,,,,2100223237,2012-13 Town Team Partners Grant,OL1 1QJ,"10,000.00",Yes
Communities & Local Government,DCLG,01/11/2012,Current (non AEF) Grants to Local Authorities,Neighbourhoods,OXFORD CITY COUNCIL,,,,2100223236,2012-13 Town Team Partners Grant,OX1 4DN,"10,000.00",Yes
Communities & Local Government,DCLG,01/11/2012,Current (non AEF) Grants to Local Authorities,Neighbourhoods,PLYMOUTH CITY COUNCIL,,,,2100223235,2012-13 Town Team Partners Grant,PL1 2AA,"10,000.00",Yes
Communities & Local Government,DCLG,01/11/2012,Current (non AEF) Grants to Local Authorities,Neighbourhoods,POOLE BC,,,,2100223234,2012-13 Town Team Partners Grant,BH15 2RZ,"10,000.00",Yes
Communities & Local Government,DCLG,01/11/2012,Current (non AEF) Grants to Local Authorities,Neighbourhoods,POOLE BC,,,,2100223055,2012-13 - General GLA Grant,BH15 2DX,"10,000.00",Yes
Communities & Local Government,DCLG,01/11/2012,Current (non AEF) Grants to Local Authorities,Neighbourhoods,PORTSMOUTH CITY COUNCIL,,Public Bodies,,2100223233,2012-13 Town Team Partners Grant,PO1 2BG,"10,000.00",Yes
Communities & Local Government,DCLG,01/11/2012,Current (non AEF) Grants to Local Authorities,Neighbourhoods,PRESTON CITY COUNCIL,,,,2100223232,2012-13 Town Team Partners Grant,PR1 2GD,"10,000.00",Yes
Communities & Local Government,DCLG,01/11/2012,Current (non AEF) Grants to Local Authorities,Neighbourhoods,RB KINGSTON UPON THAMES,,,,2100223219,2012-13 Town Team Partners Grant,KT1 1EU,"10,000.00",Yes
Communities & Local Government,DCLG,01/11/2012,Current (non AEF) Grants to Local Authorities,Neighbourhoods,READING BC,,Public Bodies,,2100223231,2012-13 Town Team Partners Grant,RG1 7TD,"10,000.00",Yes
Communities & Local Government,DCLG,01/11/2012,Current (non AEF) Grants to Local Authorities,Neighbourhoods,REDCAR & CLEVELAND BC,,,,2100223230,2012-13 Town Team Partners Grant,TS6 9AR,"10,000.00",Yes
Communities & Local Government,DCLG,01/11/2012,Current (non AEF) Grants to Local Authorities,Neighbourhoods,REDDITCH BC,,Public Bodies,,2100223229,2012-13 Town Team Partners Grant,B98 8AH,"10,000.00",Yes
Communities & Local Government,DCLG,01/11/2012,Current (non AEF) Grants to Local Authorities,Neighbourhoods,RICHMONDSHIRE DC,,,,2100223228,2012-13 Town Team Partners Grant,DL10 4JE,"20,000.00",Yes
Communities & Local Government,DCLG,01/11/2012,Current (non AEF) Grants to Local Authorities,Neighbourhoods,ROCHDALE MBC,,,,2100223227,2012-13 Town Team Partners Grant,OL16 1JH,"10,000.00",Yes
Communities & Local Government,DCLG,01/11/2012,Current (non AEF) Grants to Local Authorities,Neighbourhoods,ROSSENDALE BC,,,,2100223224,2012-13 Town Team Partners Grant,BB4 7LZ,"10,000.00",Yes
Communities & Local Government,DCLG,01/11/2012,Current (non AEF) Grants to Local Authorities,Neighbourhoods,ROTHER DC,,Small,,2100223221,2012-13 Town Team Partners Grant,TN39 3JX,"10,000.00",Yes
Communities & Local Government,DCLG,01/11/2012,Current (non AEF) Grants to Local Authorities,Neighbourhoods,RUGBY BOROUGH COUNCIL,,,,2100223213,2012-13 Town Team Partners Grant,CV21 2LA,"10,000.00",Yes
Communities & Local Government,DCLG,01/11/2012,Current (non AEF) Grants to Local Authorities,Neighbourhoods,RUNNYMEDE BOROUGH COUNCIL,,Public Bodies,,2100223211,2012-13 Town Team Partners Grant,KT15 2AH,"10,000.00",Yes
Communities & Local Government,DCLG,01/11/2012,Current (non AEF) Grants to Local Authorities,Neighbourhoods,RUSHMOOR BC,,,,2100223210,2012-13 Town Team Partners Grant,GU14 7JU,"10,000.00",Yes
Communities & Local Government,DCLG,01/11/2012,Current (non AEF) Grants to Local Authorities,Neighbourhoods,RUTLAND COUNTY COUNCIL,,Large,,2100223208,2012-13 Town Team Partners Grant,LE15 6HP,"10,000.00",Yes
Communities & Local Government,DCLG,01/11/2012,Current (non AEF) Grants to Local Authorities,Neighbourhoods,RYEDALE DC,,,,2100223206,2012-13 Town Team Partners Grant,YO17 7HH,"10,000.00",Yes
Communities & Local Government,DCLG,01/11/2012,Current (non AEF) Grants to Local Authorities,Neighbourhoods,SALFORD CITY COUNCIL,,Public Bodies,,2100223205,2012-13 Town Team Partners Grant,M27 5AW,"10,000.00",Yes
Communities & Local Government,DCLG,01/11/2012,Current (non AEF) Grants to Local Authorities,Neighbourhoods,SCARBOROUGH BC,,,,2100223204,2012-13 Town Team Partners Grant,YO11 2HG,"10,000.00",Yes
Communities & Local Government,DCLG,01/11/2012,Current (non AEF) Grants to Local Authorities,Neighbourhoods,SEDGEMOOR DC,,,,2100223203,2012-13 Town Team Partners Grant,TA6 3AR,"20,000.00",Yes
Communities & Local Government,DCLG,01/11/2012,Current (non AEF) Grants to Local Authorities,Neighbourhoods,SEFTON MBC,,,,2100223201,2012-13 Town Team Partners Grant,L20 3NQ,"30,000.00",Yes
Communities & Local Government,DCLG,01/11/2012,Current (non AEF) Grants to Local Authorities,Neighbourhoods,SEFTON MBC,,,,2100223317,Town Team Partners Grant -2012-13,L20 3NQ,"10,000.00",Yes
Communities & Local Government,DCLG,01/11/2012,Current (non AEF) Grants to Local Authorities,Neighbourhoods,SELBY DC,,,,2100223199,2012-13 Town Team Partners Grant,YO8 0SB,"10,000.00",Yes
Communities & Local Government,DCLG,01/11/2012,Current (non AEF) Grants to Local Authorities,Neighbourhoods,SEVENOAKS DC,,,,2100223197,2012-13 Town Team Partners Grant,TN13 1HG,"10,000.00",Yes
Communities & Local Government,DCLG,01/11/2012,Current (non AEF) Grants to Local Authorities,Neighbourhoods,SHEFFIELD CITY COUNCIL,,Large,,2100223195,2012-13 Town Team Partners Grant,S1 1UL,"10,000.00",Yes
Communities & Local Government,DCLG,01/11/2012,Current (non AEF) Grants to Local Authorities,Neighbourhoods,SHEPWAY DC,,,,2100223194,2012-13 Town Team Partners Grant,CT20 2QY,"10,000.00",Yes
Communities & Local Government,DCLG,01/11/2012,Current (non AEF) Grants to Local Authorities,Neighbourhoods,SHROPSHIRE COUNTY COUNCIL,,Large,,2100223192,2012-13 Town Team Partners Grant,SY2 6ND,"30,000.00",Yes
Communities & Local Government,DCLG,01/11/2012,Current (non AEF) Grants to Local Authorities,Neighbourhoods,SOLIHULL MBC,,Large,,2100223190,2012-13 Town Team Partners Grant,B91 9EG,"10,000.00",Yes
Communities & Local Government,DCLG,01/11/2012,Current (non AEF) Grants to Local Authorities,Neighbourhoods,SOUTH DERBYSHIRE DC,,,,2100223189,2012-13 Town Team Partners Grant,DE11 0AH,"10,000.00",Yes
Communities & Local Government,DCLG,01/11/2012,Current (non AEF) Grants to Local Authorities,Neighbourhoods,SOUTH HAMS DC,,,,2100223187,2012-13 Town Team Partners Grant,TQ9 5NE,"20,000.00",Yes
Communities & Local Government,DCLG,01/11/2012,Current (non AEF) Grants to Local Authorities,Neighbourhoods,SOUTH LAKELAND DC,,Public Bodies,,2100223183,2012-13 Town Team Partners Grant,LA9 4DL,"20,000.00",Yes
Communities & Local Government,DCLG,01/11/2012,Current (non AEF) Grants to Local Authorities,Neighbourhoods,SOUTH NORFOLK DC,,Large,,2100223182,2012-13 Town Team Partners Grant,NR15 2XE,"10,000.00",Yes
Communities & Local Government,DCLG,01/11/2012,Current (non AEF) Grants to Local Authorities,Neighbourhoods,SOUTH OXFORDSHIRE DC,,Large,,2100223156,2012-13 Town Team Partners Grant,OX10 8HQ,"10,000.00",Yes
Communities & Local Government,DCLG,01/11/2012,Current (non AEF) Grants to Local Authorities,Neighbourhoods,SOUTH RIBBLE BC,,,,2100223181,2012-13 Town Team Partners Grant,PR5 1DH,"10,000.00",Yes
Communities & Local Government,DCLG,01/11/2012,Current (non AEF) Grants to Local Authorities,Neighbourhoods,SOUTH SOMERSET DC,,Large,,2100223179,2012-13 Town Team Partners Grant,BA20 2DS,"30,000.00",Yes
Communities & Local Government,DCLG,01/11/2012,Current (non AEF) Grants to Local Authorities,Neighbourhoods,SOUTH TYNESIDE MBC,,Large,,2100223177,2012-13 Town Team Partners Grant,NE33 4JP,"10,000.00",Yes
Communities & Local Government,DCLG,01/11/2012,Current (non AEF) Grants to Local Authorities,Neighbourhoods,SOUTHEND-ON-SEA BC,,,,2100223176,2012-13 Town Team Partners Grant,SS2 6ER,"10,000.00",Yes
Communities & Local Government,DCLG,01/11/2012,Current (non AEF) Grants to Local Authorities,Neighbourhoods,SPELTHORNE BC,,,,2100223175,2012-13 Town Team Partners Grant,TW18 1XB,"10,000.00",Yes
Communities & Local Government,DCLG,01/11/2012,Current (non AEF) Grants to Local Authorities,Neighbourhoods,ST EDMUNDSBURY BC,,,,2100223174,2012-13 Town Team Partners Grant,IP33 3YS,"10,000.00",Yes
Communities & Local Government,DCLG,01/11/2012,Current (non AEF) Grants to Local Authorities,Neighbourhoods,STOCKPORT MBC,,,,2100223180,2012-13 Town Team Partners Grant,SK1 3XE,"10,000.00",Yes
Communities & Local Government,DCLG,01/11/2012,Current (non AEF) Grants to Local Authorities,Neighbourhoods,STOKE ON TRENT CITY COUNCIL,,,,2100223172,2012-13 Town Team Partners Grant,ST4 4UJ,"10,000.00",Yes
Communities & Local Government,DCLG,01/11/2012,Current (non AEF) Grants to Local Authorities,Neighbourhoods,STRATFORD ON AVON DC,,,,2100223171,2012-13 Town Team Partners Grant,CV37 6HX,"10,000.00",Yes
Communities & Local Government,DCLG,01/11/2012,Current (non AEF) Grants to Local Authorities,Neighbourhoods,STROUD DC,,Large,,2100223170,2012-13 Town Team Partners Grant,GL5 4UB,"10,000.00",Yes
Communities & Local Government,DCLG,01/11/2012,Current (non AEF) Grants to Local Authorities,Neighbourhoods,SUFFOLK COASTAL DISTRICT COUNCIL,,,,2100223169,2012-13 Town Team Partners Grant,IP12 1AU,"30,000.00",Yes
Communities & Local Government,DCLG,01/11/2012,Current (non AEF) Grants to Local Authorities,Neighbourhoods,SUNDERLAND CITY COUNCIL,,Public Bodies,,2100223168,2012-13 Town Team Partners Grant,SR2 7DN,"10,000.00",Yes
Communities & Local Government,DCLG,01/11/2012,Current (non AEF) Grants to Local Authorities,Neighbourhoods,SURREY HEATH BC,,,,2100223167,2012-13 Town Team Partners Grant,GU15 3HD,"10,000.00",Yes
Communities & Local Government,DCLG,01/11/2012,Current (non AEF) Grants to Local Authorities,Neighbourhoods,SWALE BC,,Large,,2100223165,2012-13 Town Team Partners Grant,ME10 3HT,"10,000.00",Yes
Communities & Local Government,DCLG,01/11/2012,Current (non AEF) Grants to Local Authorities,Neighbourhoods,SWINDON BC,,,,2100223164,2012-13 Town Team Partners Grant,SN1 1TZ,"10,000.00",Yes
Communities & Local Government,DCLG,01/11/2012,Current (non AEF) Grants to Local Authorities,Neighbourhoods,TAMESIDE MBC,,Large,,2100223163,2012-13 Town Team Partners Grant,OL6 6DL,"10,000.00",Yes
Communities & Local Government,DCLG,01/11/2012,Current (non AEF) Grants to Local Authorities,Neighbourhoods,TAMWORTH BC,,,,2100223162,2012-13 Town Team Partners Grant,B79 7BZ,"10,000.00",Yes
Communities & Local Government,DCLG,01/11/2012,Current (non AEF) Grants to Local Authorities,Neighbourhoods,TEIGNBRIDGE DC,,,,2100223323,Town Team Partners Grant -2012-13,TQ12 4XX,"10,000.00",Yes
Communities & Local Government,DCLG,01/11/2012,Current (non AEF) Grants to Local Authorities,Neighbourhoods,TELFORD & WREKIN DC,,,,2100223161,2012-13 Town Team Partners Grant,TF3 4LF,"20,000.00",Yes
Communities & Local Government,DCLG,01/11/2012,Current (non AEF) Grants to Local Authorities,Neighbourhoods,TENDRING DC,,,,2100223160,2012-13 Town Team Partners Grant,CO15 1SE,"20,000.00",Yes
Communities & Local Government,DCLG,01/11/2012,Current (non AEF) Grants to Local Authorities,Neighbourhoods,TEWKESBURY BC,,,,2100223159,2012-13 Town Team Partners Grant,GL20 5TT,"10,000.00",Yes
Communities & Local Government,DCLG,01/11/2012,Current (non AEF) Grants to Local Authorities,Neighbourhoods,THANET DC,,Public Bodies,,2100223158,2012-13 Town Team Partners Grant,CT8 1XZ,"20,000.00",Yes
Communities & Local Government,DCLG,01/11/2012,Current (non AEF) Grants to Local Authorities,Neighbourhoods,THURROCK DC,,,,2100223157,2012-13 Town Team Partners Grant,RM17 6LT,"10,000.00",Yes
Communities & Local Government,DCLG,01/11/2012,Current (non AEF) Grants to Local Authorities,Neighbourhoods,TONBRIDGE & MALLING BC,,,,2100223155,2012-13 Town Team Partners Grant,ME19 4LZ,"10,000.00",Yes
Communities & Local Government,DCLG,01/11/2012,Current (non AEF) Grants to Local Authorities,Neighbourhoods,TORBAY BC,,,,2100223154,2012-13 Town Team Partners Grant,TQ1 3DS,"10,000.00",Yes
Communities & Local Government,DCLG,01/11/2012,Current (non AEF) Grants to Local Authorities,Neighbourhoods,TORRIDGE DC,,,,2100223153,2012-13 Town Team Partners Grant,EX39 2HT,"20,000.00",Yes
Communities & Local Government,DCLG,01/11/2012,Current (non AEF) Grants to Local Authorities,Neighbourhoods,TRAFFORD METROPOLITAN BC,,,,2100223152,2012-13 Town Team Partners Grant,M32 0TH,"20,000.00",Yes
Communities & Local Government,DCLG,01/11/2012,Current (non AEF) Grants to Local Authorities,Neighbourhoods,TUNBRIDGE WELLS BC,,,,2100223151,2012-13 Town Team Partners Grant,TN1 1RS,"10,000.00",Yes
Communities & Local Government,DCLG,01/11/2012,Current (non AEF) Grants to Local Authorities,Neighbourhoods,VALE WHITE HORSE DC,,,,2100223150,2012-13 Town Team Partners Grant,OX14 3JE,"20,000.00",Yes
Communities & Local Government,DCLG,01/11/2012,Current (non AEF) Grants to Local Authorities,Neighbourhoods,WAKEFIELD MDC,,Public Bodies,,2100223149,2012-13 Town Team Partners Grant,WF1 2HQ,"20,000.00",Yes
Communities & Local Government,DCLG,01/11/2012,Current (non AEF) Grants to Local Authorities,Neighbourhoods,WALSALL MBC,,Public Bodies,,2100223148,2012-13 Town Team Partners Grant,WS1 1TW,"10,000.00",Yes
Communities & Local Government,DCLG,01/11/2012,Current (non AEF) Grants to Local Authorities,Neighbourhoods,WARWICK DISTRICT COUNCIL,,Public Bodies,,2100223144,2012-13 Town Team Partners Grant,CV32 5QS,"10,000.00",Yes
Communities & Local Government,DCLG,01/11/2012,Current (non AEF) Grants to Local Authorities,Neighbourhoods,WAVENEY DISTRICT COUNCIL,,,,2100223142,2012-13 Town Team Partners Grant,NR32 1HS,"20,000.00",Yes
Communities & Local Government,DCLG,01/11/2012,Current (non AEF) Grants to Local Authorities,Neighbourhoods,WAVERLEY BC,,,,2100223140,2012-13 Town Team Partners Grant,GU7 1HR,"30,000.00",Yes
Communities & Local Government,DCLG,01/11/2012,Current (non AEF) Grants to Local Authorities,Neighbourhoods,WELLINGBOROUGH BC,,,,2100223054,2012-13 Town Team Partners Grant,NN8 1BN,"10,000.00",Yes
Communities & Local Government,DCLG,01/11/2012,Current (non AEF) Grants to Local Authorities,Neighbourhoods,WEST BERKSHIRE DC,,,,2100223137,2012-13 Town Team Partners Grant,RG14 2AF,"10,000.00",Yes
Communities & Local Government,DCLG,01/11/2012,Current (non AEF) Grants to Local Authorities,Neighbourhoods,WEST DEVON BC,,,,2100223135,2012-13 Town Team Partners Grant,PL19 0BZ,"10,000.00",Yes
Communities & Local Government,DCLG,01/11/2012,Current (non AEF) Grants to Local Authorities,Neighbourhoods,WEST LANCASHIRE BC,,,,2100223133,2012-13 Town Team Partners Grant,L39 2DF,"10,000.00",Yes
Communities & Local Government,DCLG,01/11/2012,Current (non AEF) Grants to Local Authorities,Neighbourhoods,WEST LINDSEY DC,,,,2100223131,2012-13 Town Team Partners Grant,DN21 2NA,"10,000.00",Yes
Communities & Local Government,DCLG,01/11/2012,Current (non AEF) Grants to Local Authorities,Neighbourhoods,WEST OXFORDSHIRE DC,,,,2100223065,2012-13 Town Team Partners Grant,OX28 1NB,"20,000.00",Yes
Communities & Local Government,DCLG,01/11/2012,Current (non AEF) Grants to Local Authorities,Neighbourhoods,WEST SOMERSET DC,,,,2100223063,2012-13 Town Team Partners Grant,TA24 4QA,"10,000.00",Yes
Communities & Local Government,DCLG,01/11/2012,Current (non AEF) Grants to Local Authorities,Neighbourhoods,WESTMINSTER CITY COUNCIL,,Public Bodies,,2100223061,2012-13 Town Team Partners Grant,SW1E 6QP,"10,000.00",Yes
Communities & Local Government,DCLG,01/11/2012,Current (non AEF) Grants to Local Authorities,Neighbourhoods,WEYMOUTH & PORTLAND BC,,,,2100223059,2012-13 Town Team Partners Grant,DT4 8TA,"10,000.00",Yes
Communities & Local Government,DCLG,01/11/2012,Current (non AEF) Grants to Local Authorities,Neighbourhoods,WILTSHIRE COUNTY COUNCIL,,,,2100223051,2012-13 Town Team Partners Grant,BA14 4DS,"40,000.00",Yes
Communities & Local Government,DCLG,01/11/2012,Current (non AEF) Grants to Local Authorities,Neighbourhoods,WINCHESTER CITY COUNCIL,,,,2100223048,2012-13 Town Team Partners Grant,SO23 9LJ,"10,000.00",Yes
Communities & Local Government,DCLG,01/11/2012,Current (non AEF) Grants to Local Authorities,Neighbourhoods,WINDSOR & MAIDENHEAD,,,,2100223217,2012-13 Town Team Partners Grant,SL6 1RF,"10,000.00",Yes
Communities & Local Government,DCLG,01/11/2012,Current (non AEF) Grants to Local Authorities,Neighbourhoods,WIRRAL MBC,,,,2100223046,2012-13 Town Team Partners Grant,CH41 5FN,"70,000.00",Yes
Communities & Local Government,DCLG,01/11/2012,Current (non AEF) Grants to Local Authorities,Neighbourhoods,WOKINGHAM DC,,Public Bodies,,2100223041,2012-13 Town Team Partners Grant,RG40 1JW,"20,000.00",Yes
Communities & Local Government,DCLG,01/11/2012,Current (non AEF) Grants to Local Authorities,Neighbourhoods,WOLVERHAMPTON MBC,,,,2100223039,2012-13 Town Team Partners Grant,WV1 1RL,"10,000.00",Yes
Communities & Local Government,DCLG,01/11/2012,Current (non AEF) Grants to Local Authorities,Neighbourhoods,WORCESTER CITY COUNCIL,,Large,,2100223038,2012-13 Town Team Partners Grant,WR1 2EZ,"10,000.00",Yes
Communities & Local Government,DCLG,01/11/2012,Current (non AEF) Grants to Local Authorities,Neighbourhoods,WORTHING BC,,Public Bodies,,2100223036,2012-13 Town Team Partners Grant,BN11 1HB,"10,000.00",Yes
Communities & Local Government,DCLG,01/11/2012,Current (non AEF) Grants to Local Authorities,Neighbourhoods,WYCHAVON  DISTRICT COUNCIL,,,,2100223035,2012-13 Town Team Partners Grant,WR10 1PT,"10,000.00",Yes
Communities & Local Government,DCLG,01/11/2012,Current (non AEF) Grants to Local Authorities,Neighbourhoods,WYCOMBE DC,,,,2100223034,2012-13 Town Team Partners Grant,HP11 2AJ,"10,000.00",Yes
Communities & Local Government,DCLG,01/11/2012,Current (non AEF) Grants to Local Authorities,Neighbourhoods,WYRE BC,,,,2100223033,2012-13 Town Team Partners Grant,FY6 7PU,"10,000.00",Yes
Communities & Local Government,DCLG,01/11/2012,EC Current Grants to Local Authorities,Neighbourhoods,GREATER LONDON AUTHORITY,,Large,,2100223467,ERDF GLA OCT,SE1 2AA,"2,727,599.58",Yes
Communities & Local Government,DCLG,01/11/2012,Finance Consultancy,Neighbourhoods,MAZARS LLP,,Large,,5106185295,Project Verification Audits,LS27 7JN,"20,138.71",
Communities & Local Government,DCLG,01/11/2012,Fixed Maintenance,Finance & Corporate Services,AMEY COMMUNITY LTD,,Large,,5106185315,2012-13 CE Costs,OX4 4DQ,"3,851.16",
Communities & Local Government,DCLG,01/11/2012,Fixed Maintenance,Finance & Corporate Services,INTERSERVE (FACILITIES MANAGEMENT),,Large,,5106185320,DFECC006 EH RC add Labour Jun12 - Mar13,BS32 4NH,"4,251.98"
Communities & Local Government,DCLG,01/11/2012,Fixed Maintenance,Finance & Corporate Services,INTERSERVE (FACILITIES MANAGEMENT),,Large,,5106185320,DFECC0009 EHPitney Bowes Jun 12 - Mar 13,BS32 4NH,458.11
Communities & Local Government,DCLG,01/11/2012,Fixed Maintenance,Finance & Corporate Services,INTERSERVE (FACILITIES MANAGEMENT),,Large,,5106185320,DFECC0005 ST PP Pitney Bowes Jun12-Mar13,BS32 4NH,382.57
Communities & Local Government,DCLG,01/11/2012,Fixed Maintenance,Finance & Corporate Services,INTERSERVE (FACILITIES MANAGEMENT),,Large,,5106185320,DFEC0003EH CE Universal Lfts Jun12-Mar12,BS32 4NH,750.52
Communities & Local Government,DCLG,01/11/2012,Fixed Maintenance,Finance & Corporate Services,INTERSERVE (FACILITIES MANAGEMENT),,Large,,5106185320,DFEC0004EH Deaf Alerter Jun12-Mar13,BS32 4NH,124.37
Communities & Local Government,DCLG,01/11/2012,Fixed Maintenance,Finance & Corporate Services,INTERSERVE (FACILITIES MANAGEMENT),,Large,,5106185320,DFECC0010 EH AV Jun 12-Mar13,BS32 4NH,903.79
Communities & Local Government,DCLG,01/11/2012,Fixed Maintenance,Finance & Corporate Services,INTERSERVE (FACILITIES MANAGEMENT),,Large,,5106185320,DFECC0011 EH Semi Comp Maint Apr 12-Ma13,BS32 4NH,"1,391.39"
Communities & Local Government,DCLG,01/11/2012,Fixed Maintenance,Finance & Corporate Services,INTERSERVE (FACILITIES MANAGEMENT),,Large,,5106185320,DFECC0011 HH Semi Comp Maint Apr12-Jun13,BS32 4NH,182.81
Communities & Local Government,DCLG,01/11/2012,Fixed Maintenance,Finance & Corporate Services,INTERSERVE (FACILITIES MANAGEMENT),,Large,,5106185320,DFECC0011 MH Semi Comp Maint Apr12-Mar13,BS32 4NH,82.6
Communities & Local Government,DCLG,01/11/2012,Fixed Maintenance,Finance & Corporate Services,INTERSERVE (FACILITIES MANAGEMENT),,Large,,5106185320,DFECC0011 BH Semi Comp Maint Apr12-Mar13,BS32 4NH,168.67
Communities & Local Government,DCLG,01/11/2012,Fixed Maintenance,Finance & Corporate Services,INTERSERVE (FACILITIES MANAGEMENT),,Large,,5106185320,DFECC0011 CG Semi Comp Maint Apr12-Jun13,BS32 4NH,122.66
Communities & Local Government,DCLG,01/11/2012,Fixed Maintenance,Finance & Corporate Services,INTERSERVE (FACILITIES MANAGEMENT),,Large,,5106185320,DFECC0011 QS Semi Comp Maint Apr12-Jun13,BS32 4NH,223.3
Communities & Local Government,DCLG,01/11/2012,Fixed Maintenance,Finance & Corporate Services,INTERSERVE (FACILITIES MANAGEMENT),,Large,,5106185320,DFECC0011 SPPSemi Comp Maint Apr12-Jun13,BS32 4NH,336.56
Communities & Local Government,DCLG,01/11/2012,Fixed Maintenance,Finance & Corporate Services,INTERSERVE (FACILITIES MANAGEMENT),,Large,,5106185320,DFECC0011 PC Semi Comp Maint Apr12-Mar13,BS32 4NH,265.35
Communities & Local Government,DCLG,01/11/2012,Fixed Maintenance,Finance & Corporate Services,LIGO ELECTRONICS LIMITED,,Medium,,5106185313,GN Netcom GN9120 Midiboom Wireless H-set,G40 1DA,639.96
Communities & Local Government,DCLG,01/11/2012,Fixed Maintenance,Finance & Corporate Services,LIGO ELECTRONICS LIMITED,,Medium,,5106185313,GN1200 Smartcord Curly,G40 1DA,19.99
Communities & Local Government,DCLG,01/11/2012,Fixed Maintenance,Finance & Corporate Services,LIGO ELECTRONICS LIMITED,,Medium,,5106185313,Jabra Biz 2400 Mono with noise cancel,G40 1DA,149.99,
Communities & Local Government,DCLG,01/11/2012,"IT - PC, Network & Hardware",Localism,COMPUTACENTER (UK) LTD,,Large,,5106185228,HP LTO ultrium Cleaning Cartridge,AL10 9TW,333.36,
Communities & Local Government,DCLG,01/11/2012,Legal Fees,Finance & Corporate Services,ADDLESHAW GODDARD LLP,,Large,,5106185303,Advice on Local Authority self Insurance,LS1 1HQ,"3,000.00",
Communities & Local Government,DCLG,01/11/2012,National Non Domestic Rates (NNDR) Payments,Localism,AVON & SOMERSET POLICE AUTHORITY,,,,5000213511,Grant Payable by Exchequer,TA1 4DY,"2,913,957.00",Yes
Communities & Local Government,DCLG,01/11/2012,National Non Domestic Rates (NNDR) Payments,Localism,AVON FIRE AUTHORITY,,,,5000213516,Grant Payable by Exchequer,BS1 6EU,"1,069,474.00",Yes
Communities & Local Government,DCLG,01/11/2012,National Non Domestic Rates (NNDR) Payments,Localism,BARKING & DAGENHAM LB,,Public Bodies,,5000213532,Grant Payable by Exchequer,RM10 7BY,"4,676,807.00",Yes
Communities & Local Government,DCLG,01/11/2012,National Non Domestic Rates (NNDR) Payments,Localism,BARNSLEY MBC,,Public Bodies,,5000213542,Grant Payable by Exchequer,S70 2AQ,"4,810,612.00",Yes
Communities & Local Government,DCLG,01/11/2012,National Non Domestic Rates (NNDR) Payments,Localism,BEDFORDSHIRE POLICE AUTH,,,,5000213578,Grant Payable by Exchequer,MK43 9AX,"1,313,595.00",Yes
Communities & Local Government,DCLG,01/11/2012,National Non Domestic Rates (NNDR) Payments,Localism,BEDS & LUTON FIRE & RESCUE SERVICE,,,,5000213573,Grant Payable by Exchequer,MK42 7NR,"532,077.00",Yes
Communities & Local Government,DCLG,01/11/2012,National Non Domestic Rates (NNDR) Payments,Localism,BIRMINGHAM CITY CNCL,,,,5000213591,Grant Payable by Exchequer,B3 3AB,"30,125,706.00",Yes
Communities & Local Government,DCLG,01/11/2012,National Non Domestic Rates (NNDR) Payments,Localism,BLACKBURN WITH DARWEN BC,,,,5000213600,Grant Payable by Exchequer,BB1 7DY,"3,602,773.00",Yes
Communities & Local Government,DCLG,01/11/2012,National Non Domestic Rates (NNDR) Payments,Localism,BLACKPOOL BC,,,,5000213605,Grant Payable by Exchequer,FY1 1NA,"3,843,922.00",Yes
Communities & Local Government,DCLG,01/11/2012,National Non Domestic Rates (NNDR) Payments,Localism,BOLTON MBC,,,,5000213615,Grant Payable by Exchequer,BL1 1RU,"5,580,216.00",Yes
Communities & Local Government,DCLG,01/11/2012,National Non Domestic Rates (NNDR) Payments,Localism,BRADFORD MBC,,,,5000213635,Grant Payable by Exchequer,BD1 1HX,"11,945,917.00",Yes
Communities & Local Government,DCLG,01/11/2012,National Non Domestic Rates (NNDR) Payments,Localism,BRENT LB,,,,5000213651,Grant Payable by Exchequer,HA9 9EZ,"7,242,066.00",Yes
Communities & Local Government,DCLG,01/11/2012,National Non Domestic Rates (NNDR) Payments,Localism,BRIGHTON & HOVE CITY COUNCIL,,,,5000213661,Grant Payable by Exchequer,BN3 2SR,"4,863,382.00",Yes
Communities & Local Government,DCLG,01/11/2012,National Non Domestic Rates (NNDR) Payments,Localism,BUCKINGHAMSHIRE CC,,,,5000213701,Grant Payable by Exchequer,HP20 1UD,"2,993,863.00",Yes
Communities & Local Government,DCLG,01/11/2012,National Non Domestic Rates (NNDR) Payments,Localism,BUCKS & MILTON KEYNES FIRE AUTH,,,,5000213697,Grant Payable by Exchequer,HP20 1BD,"507,761.00",Yes
Communities & Local Government,DCLG,01/11/2012,National Non Domestic Rates (NNDR) Payments,Localism,BURY MBC,,,,5000213726,Grant Payable by Exchequer,BL9 0SP,"2,945,693.00",Yes
Communities & Local Government,DCLG,01/11/2012,National Non Domestic Rates (NNDR) Payments,Localism,CALDERDALE MBC,,,,5000213727,Grant Payable by Exchequer,HX1 1YP,"3,590,417.00",Yes
Communities & Local Government,DCLG,01/11/2012,National Non Domestic Rates (NNDR) Payments,Localism,CAMBRIDGESHIRE COUNTY CNCL,,,,5000213730,Grant Payable by Exchequer,CB3 0AP,"5,275,467.00",Yes
Communities & Local Government,DCLG,01/11/2012,National Non Domestic Rates (NNDR) Payments,Localism,CAMBRIDGESHIRE POLICE AUT,,,,5000213729,Grant Payable by Exchequer,P18 8NP,"1,351,530.00",Yes
Communities & Local Government,DCLG,01/11/2012,National Non Domestic Rates (NNDR) Payments,Localism,CAMBS & PETERBOROUGH FIRE AUTHORITY,,,,5000213728,Grant Payable by Exchequer,PE29 2NA,"607,019.00",Yes
Communities & Local Government,DCLG,01/11/2012,National Non Domestic Rates (NNDR) Payments,Localism,CHESHIRE FIRE AUTHORITY,,,,5000213731,Grant Payable by Exchequer,CW7 2FQ,"916,271.00",Yes
Communities & Local Government,DCLG,01/11/2012,National Non Domestic Rates (NNDR) Payments,Localism,CHESHIRE POLICE AUTHORITY,,,,5000213732,Grant Payable by Exchequer,CW7 9FX,"2,403,852.00",Yes
Communities & Local Government,DCLG,01/11/2012,National Non Domestic Rates (NNDR) Payments,Localism,CITY OF WAKEFIELD MDC,,,,5000213639,Grant Payable by Exchequer,WF1 2QW,"6,103,459.00",Yes
Communities & Local Government,DCLG,01/11/2012,National Non Domestic Rates (NNDR) Payments,Localism,CLEVELAND FIRE AUTHORITY,,,,5000213733,Grant Payable by Exchequer,TS25 5TB,"924,441.00",Yes
Communities & Local Government,DCLG,01/11/2012,National Non Domestic Rates (NNDR) Payments,Localism,CLEVELAND POLICE AUTHORITY,,,,5000213734,Grant Payable by Exchequer,TS1 2JX,"2,069,159.00",Yes
Communities & Local Government,DCLG,01/11/2012,National Non Domestic Rates (NNDR) Payments,Localism,CO DURHAM & DARLINGTON FIRE AND RES,,,,5000213566,Grant Payable by Exchequer,DH1 5UE,"618,272.00",Yes
Communities & Local Government,DCLG,01/11/2012,National Non Domestic Rates (NNDR) Payments,Localism,CORNWALL COUNCIL,,,,5000213795,Grant Payable by Exchequer,TR1 3AY,"9,621,134.00",Yes
Communities & Local Government,DCLG,01/11/2012,National Non Domestic Rates (NNDR) Payments,Localism,COVENTRY CITY CNCL,,,,5000213735,Grant Payable by Exchequer,CV1 2QL,"6,946,353.00",Yes
Communities & Local Government,DCLG,01/11/2012,National Non Domestic Rates (NNDR) Payments,Localism,CROYDON LB,,,,5000213736,Grant Payable by Exchequer,CR9 3JS,"5,405,522.00",Yes
Communities & Local Government,DCLG,01/11/2012,National Non Domestic Rates (NNDR) Payments,Localism,CUMBRIA COUNTY CNCL,,,,5000213737,Grant Payable by Exchequer,CA3 8NA,"7,134,370.00",Yes
Communities & Local Government,DCLG,01/11/2012,National Non Domestic Rates (NNDR) Payments,Localism,CUMBRIA POLICE AUTHORITY,,,,5000213738,Grant Payable by Exchequer,CA10 2AU,"1,624,252.00",Yes
Communities & Local Government,DCLG,01/11/2012,National Non Domestic Rates (NNDR) Payments,Localism,DARLINGTON BC,,,,5000213493,Grant Payable by Exchequer,TS19 1JA,"1,820,519.00",Yes
Communities & Local Government,DCLG,01/11/2012,National Non Domestic Rates (NNDR) Payments,Localism,DERBY CITY CNCL,,,,5000213503,Grant Payable by Exchequer,DE1 2FS,"4,921,271.00",Yes
Communities & Local Government,DCLG,01/11/2012,National Non Domestic Rates (NNDR) Payments,Localism,DERBYSHIRE COUNTYCOUNCIL,,,,5000213517,Grant Payable by Exchequer,DE4 3AH,"9,161,877.00",Yes
Communities & Local Government,DCLG,01/11/2012,National Non Domestic Rates (NNDR) Payments,Localism,DERBYSHIRE FIRE AUTHORITY,,,,5000213507,Grant Payable by Exchequer,DE55 1RH,"860,486.00",Yes
Communities & Local Government,DCLG,01/11/2012,National Non Domestic Rates (NNDR) Payments,Localism,DERBYSHIRE POLICE AUTHORITY,,,,5000213512,Grant Payable by Exchequer,DE5 3RS,"2,075,225.00",Yes
Communities & Local Government,DCLG,01/11/2012,National Non Domestic Rates (NNDR) Payments,Localism,DEVON & CORNWALL POLICE A,,,,5000213525,Grant Payable by Exchequer,EX2 5YT,"3,277,670.00",Yes
Communities & Local Government,DCLG,01/11/2012,National Non Domestic Rates (NNDR) Payments,Localism,DEVON & SOMERSET FIRE & RESCUE SERV,,,,5000213533,Grant Payable by Exchequer,EX3 0NW,"1,518,303.00",Yes
Communities & Local Government,DCLG,01/11/2012,National Non Domestic Rates (NNDR) Payments,Localism,DEVON COUNTY CNCL,,,,5000213529,Grant Payable by Exchequer,EX2 4QJ,"8,358,697.00",Yes
Communities & Local Government,DCLG,01/11/2012,National Non Domestic Rates (NNDR) Payments,Localism,DONCASTER MBC,,,,5000213538,Grant Payable by Exchequer,DN1 3QA,"6,327,297.00",Yes
Communities & Local Government,DCLG,01/11/2012,National Non Domestic Rates (NNDR) Payments,Localism,DORSET COUNTY CNCL,,,,5000213543,Grant Payable by Exchequer,DT1 1XJ,"3,063,677.00",Yes
Communities & Local Government,DCLG,01/11/2012,National Non Domestic Rates (NNDR) Payments,Localism,DORSET FIRE AUTHORITY,,,,5000213546,Grant Payable by Exchequer,DT1 1FB,"537,657.00",Yes
Communities & Local Government,DCLG,01/11/2012,National Non Domestic Rates (NNDR) Payments,Localism,DORSET POLICE AUTHORITY,,,,5000213551,Grant Payable by Exchequer,DT2 8DZ,"994,026.00",Yes
Communities & Local Government,DCLG,01/11/2012,National Non Domestic Rates (NNDR) Payments,Localism,DUDLEY MBC,,,,5000213561,Grant Payable by Exchequer,DY1 1HF,"5,672,332.00",Yes
Communities & Local Government,DCLG,01/11/2012,National Non Domestic Rates (NNDR) Payments,Localism,DURHAM COUNTY COUNCIL,,,,5000213797,Grant Payable by Exchequer,DH1 5UE,"10,402,823.00",Yes
Communities & Local Government,DCLG,01/11/2012,National Non Domestic Rates (NNDR) Payments,Localism,DURHAM POLICE AUTHORITY,,,,5000213571,Grant Payable by Exchequer,DH1 5TT,"1,977,777.00",Yes
Communities & Local Government,DCLG,01/11/2012,National Non Domestic Rates (NNDR) Payments,Localism,EAST RIDING OF YORKS,,,,5000213617,Grant Payable by Exchequer,HU17 9AB,"4,535,587.00",Yes
Communities & Local Government,DCLG,01/11/2012,National Non Domestic Rates (NNDR) Payments,Localism,EAST SUSSEX COUNTY CNCL,,,,5000213627,Grant Payable by Exchequer,BN7 1SF,"5,332,634.00",Yes
Communities & Local Government,DCLG,01/11/2012,National Non Domestic Rates (NNDR) Payments,Localism,EAST SUSSEX FIRE & RESCUE SERVICE,,,,5000213632,Grant Payable by Exchequer,BN21 1EU,"675,741.00",Yes
Communities & Local Government,DCLG,01/11/2012,National Non Domestic Rates (NNDR) Payments,Localism,ENFIELD LB,,,,5000213657,Grant Payable by Exchequer,EN1 3XF,"5,839,705.00",Yes
Communities & Local Government,DCLG,01/11/2012,National Non Domestic Rates (NNDR) Payments,Localism,ESSEX COUNTY CNCL,,,,5000213677,Grant Payable by Exchequer,CM1 1JZ,"12,804,762.00",Yes
Communities & Local Government,DCLG,01/11/2012,National Non Domestic Rates (NNDR) Payments,Localism,ESSEX FIRE AUTHORITY,,,,5000213681,Grant Payable by Exchequer,CM8 3HB,"1,592,478.00",Yes
Communities & Local Government,DCLG,01/11/2012,National Non Domestic Rates (NNDR) Payments,Localism,ESSEX POLICE AUTHORITY,,,,5000213686,Grant Payable by Exchequer,CM2 6DA,"2,964,211.00",Yes
Communities & Local Government,DCLG,01/11/2012,National Non Domestic Rates (NNDR) Payments,Localism,GATESHEAD MBC,,,,5000213716,Grant Payable by Exchequer,NE8 1HH,"4,638,777.00",Yes
Communities & Local Government,DCLG,01/11/2012,National Non Domestic Rates (NNDR) Payments,Localism,GLOUCESTERSHIRE COUNTY CNCL,,,,5000213724,Grant Payable by Exchequer,GL1 2TG,"6,113,239.00",Yes
Communities & Local Government,DCLG,01/11/2012,National Non Domestic Rates (NNDR) Payments,Localism,GLOUCESTERSHIRE POLICE AUTHORITY,,,,5000213739,Grant Payable by Exchequer,GL2 2AN,"1,034,198.00",Yes
Communities & Local Government,DCLG,01/11/2012,National Non Domestic Rates (NNDR) Payments,Localism,GREATER LONDON AUTHORITY,,,,5000213720,Grant Payable by Exchequer,SE10 1AJ,"39,818,979.00",Yes
Communities & Local Government,DCLG,01/11/2012,National Non Domestic Rates (NNDR) Payments,Localism,GREATER LONDON AUTHORITY-FIRE,,,,5000213788,Grant Payable by Exchequer,SE1 2AA,"12,072,518.00",Yes
Communities & Local Government,DCLG,01/11/2012,National Non Domestic Rates (NNDR) Payments,Localism,GREATER MANCHESTER FIRE,,,,5000213679,Grant Payable by Exchequer,M27 2US,"3,126,072.00",Yes
Communities & Local Government,DCLG,01/11/2012,National Non Domestic Rates (NNDR) Payments,Localism,GREATER MANCHESTER POL AUTH,,,,5000213684,Grant Payable by Exchequer,M16 0RE,"9,774,320.00",Yes
Communities & Local Government,DCLG,01/11/2012,National Non Domestic Rates (NNDR) Payments,Localism,GREENWICH LB,,,,5000213740,Grant Payable by Exchequer,SE18 6RA,"7,220,142.00",Yes
Communities & Local Government,DCLG,01/11/2012,National Non Domestic Rates (NNDR) Payments,Localism,HALTON BC,,,,5000213742,Grant Payable by Exchequer,WA8 7QF,"2,928,008.00",Yes
Communities & Local Government,DCLG,01/11/2012,National Non Domestic Rates (NNDR) Payments,Localism,HAMPSHIRE COUNTY COUNCIL,,,,5000213743,Grant Payable by Exchequer,SO23 8UB,"8,259,415.00",Yes
Communities & Local Government,DCLG,01/11/2012,National Non Domestic Rates (NNDR) Payments,Localism,HAMPSHIRE FIRE & RESCUE AUTHORITY,,,,5000213744,Grant Payable by Exchequer,SO23 8UB,"1,447,396.00",Yes
Communities & Local Government,DCLG,01/11/2012,National Non Domestic Rates (NNDR) Payments,Localism,HAMPSHIRE POLICE AUTHORITY,,,,5000213745,Grant Payable by Exchequer,SO23 8UB,"3,374,229.00",Yes
Communities & Local Government,DCLG,01/11/2012,National Non Domestic Rates (NNDR) Payments,Localism,HARINGEY LB,,,,5000213746,Grant Payable by Exchequer,N22 7TR,"6,699,837.00",Yes
Communities & Local Government,DCLG,01/11/2012,National Non Domestic Rates (NNDR) Payments,Localism,HARROW LB,,,,5000213747,Grant Payable by Exchequer,HA1 2UZ,"3,131,092.00",Yes
Communities & Local Government,DCLG,01/11/2012,National Non Domestic Rates (NNDR) Payments,Localism,HARTLEPOOL BOROUGH COUNCIL,,,,5000213748,Grant Payable by Exchequer,TS24 7BT,"2,258,926.00",Yes
Communities & Local Government,DCLG,01/11/2012,National Non Domestic Rates (NNDR) Payments,Localism,HEREFORD WORCESTER FIRE BRIGADE,,,,5000213749,Grant Payable by Exchequer,WR1 2HQ,"517,397.00",Yes
Communities & Local Government,DCLG,01/11/2012,National Non Domestic Rates (NNDR) Payments,Localism,HEREFORDSHIRE DISTRICT COUNCIL,,,,5000213750,Grant Payable by Exchequer,HR1 1SH,"2,638,080.00",Yes
Communities & Local Government,DCLG,01/11/2012,National Non Domestic Rates (NNDR) Payments,Localism,HERTFORDSHIRE COUNTY CNCL,,,,5000213751,Grant Payable by Exchequer,SG13 9BD,"8,865,865.00",Yes
Communities & Local Government,DCLG,01/11/2012,National Non Domestic Rates (NNDR) Payments,Localism,HERTFORDSHIRE POLICE AUTHORITY,,,,5000213801,Grant Payable by Exchequer,AL8 6XF,"2,026,752.00",Yes
Communities & Local Government,DCLG,01/11/2012,National Non Domestic Rates (NNDR) Payments,Localism,HULL CITY COUNCIL,,,,5000213554,Grant Payable by Exchequer,HU1 2AA,"6,847,187.00",Yes
Communities & Local Government,DCLG,01/11/2012,National Non Domestic Rates (NNDR) Payments,Localism,HUMBERSIDE FIRE & RESCUE SERVICE,,,,5000213752,Grant Payable by Exchequer,HU4 7BB,"1,216,743.00",Yes
Communities & Local Government,DCLG,01/11/2012,National Non Domestic Rates (NNDR) Payments,Localism,HUMBERSIDE POLICE,,,,5000213753,Grant Payable by Exchequer,HU5 5SF,"2,485,367.00",Yes
Communities & Local Government,DCLG,01/11/2012,National Non Domestic Rates (NNDR) Payments,Localism,ISLE OF WIGHT CNCL,,,,5000213505,Grant Payable by Exchequer,PO30 1UD,"2,804,977.00",Yes
Communities & Local Government,DCLG,01/11/2012,National Non Domestic Rates (NNDR) Payments,Localism,ISLES OF SCILLY COUNCIL,,,,5000213515,Grant Payable by Exchequer,TR21 0LW,"122,531.00",Yes
Communities & Local Government,DCLG,01/11/2012,National Non Domestic Rates (NNDR) Payments,Localism,KENT & MEDWAY TOWNS FIRE AUTHORITY,,,,5000213535,Grant Payable by Exchequer,ME15 6XB,"1,388,775.00",Yes
Communities & Local Government,DCLG,01/11/2012,National Non Domestic Rates (NNDR) Payments,Localism,KENT COUNTY CNCL,,,,5000213530,Grant Payable by Exchequer,ME14 1XQ,"14,139,617.00",Yes
Communities & Local Government,DCLG,01/11/2012,National Non Domestic Rates (NNDR) Payments,Localism,KENT POLICE AUTHORITY,,,,5000213539,Grant Payable by Exchequer,ME15 9BZ,"3,673,735.00",Yes
Communities & Local Government,DCLG,01/11/2012,National Non Domestic Rates (NNDR) Payments,Localism,KIRKLEES MBC,,,,5000213565,Grant Payable by Exchequer,HD1 2YU,"6,993,856.00",Yes
Communities & Local Government,DCLG,01/11/2012,National Non Domestic Rates (NNDR) Payments,Localism,KNOWSLEY MBC,,,,5000213570,Grant Payable by Exchequer,L36 9YZ,"5,147,058.00",Yes
Communities & Local Government,DCLG,01/11/2012,National Non Domestic Rates (NNDR) Payments,Localism,LANCASHIRE COMBINED FIRE AUTHORITY,,,,5000213584,Grant Payable by Exchequer,PR2 3LH,"1,494,962.00",Yes
Communities & Local Government,DCLG,01/11/2012,National Non Domestic Rates (NNDR) Payments,Localism,LANCASHIRE COUNTY CNCL,,,,5000213580,Grant Payable by Exchequer,PR1 8RD,"14,767,915.00",Yes
Communities & Local Government,DCLG,01/11/2012,National Non Domestic Rates (NNDR) Payments,Localism,LANCASHIRE POLICE AUTHORITY,,,,5000213588,Grant Payable by Exchequer,PR1 OLD,"4,158,212.00",Yes
Communities & Local Government,DCLG,01/11/2012,National Non Domestic Rates (NNDR) Payments,Localism,LEICESTER CITY CNCL,,,,5000213603,Grant Payable by Exchequer,LE1 6ZG,"8,374,020.00",Yes
Communities & Local Government,DCLG,01/11/2012,National Non Domestic Rates (NNDR) Payments,Localism,LEICESTERSHIRE COUNTY CNCL,,,,5000213616,Grant Payable by Exchequer,LE3 8RB,"4,865,546.00",Yes
Communities & Local Government,DCLG,01/11/2012,National Non Domestic Rates (NNDR) Payments,Localism,LEICESTERSHIRE POLICE AUTHORITY,,,,5000213611,Grant Payable by Exchequer,LE99 1A2,"2,160,785.00",Yes
Communities & Local Government,DCLG,01/11/2012,National Non Domestic Rates (NNDR) Payments,Localism,LEICS LEICESTERSHIRE RUTLAND CFA,,,,5000213608,Grant Payable by Exchequer,LE3 8HD,"879,094.00",Yes
Communities & Local Government,DCLG,01/11/2012,National Non Domestic Rates (NNDR) Payments,Localism,LEWISHAM LB,,,,5000213626,Grant Payable by Exchequer,SE6 4RU,"8,122,216.00",Yes
Communities & Local Government,DCLG,01/11/2012,National Non Domestic Rates (NNDR) Payments,Localism,LINCOLNSHIRE COUNTY CNCL,,,,5000213645,Grant Payable by Exchequer,LN1 1YT,"9,389,789.00",Yes
Communities & Local Government,DCLG,01/11/2012,National Non Domestic Rates (NNDR) Payments,Localism,LINCOLNSHIRE POLICE AUTH,,,,5000213641,Grant Payable by Exchequer,LN5 7PH,"1,127,365.00",Yes
Communities & Local Government,DCLG,01/11/2012,National Non Domestic Rates (NNDR) Payments,Localism,LIVERPOOL CITY COUNCIL,,,,5000213650,Grant Payable by Exchequer,L2 2DH,"14,809,594.00",Yes
Communities & Local Government,DCLG,01/11/2012,National Non Domestic Rates (NNDR) Payments,Localism,LONDON BOROUGH OF HACKNEY,,,,5000213741,Grant Payable by Exchequer,E8 4RU,"9,764,557.00",Yes
Communities & Local Government,DCLG,01/11/2012,National Non Domestic Rates (NNDR) Payments,Localism,LONDON BOROUGH OF LAMBETH,,,,5000213575,Grant Payable by Exchequer,SW2 1RL,"9,608,517.00",Yes
Communities & Local Government,DCLG,01/11/2012,National Non Domestic Rates (NNDR) Payments,Localism,LONDON BOROUGH OF NEWHAM,,Large,,5000213763,Grant Payable by Exchequer,E16 2QU,"9,530,789.00",Yes
Communities & Local Government,DCLG,01/11/2012,National Non Domestic Rates (NNDR) Payments,Localism,LONDON BOROUGH OF REDBRIDGE,,,,5000213545,Grant Payable by Exchequer,IG1 1NN,"4,480,196.00",Yes
Communities & Local Government,DCLG,01/11/2012,National Non Domestic Rates (NNDR) Payments,Localism,LUTON BC,,,,5000213654,Grant Payable by Exchequer,LU1 1DX,"4,015,535.00",Yes
Communities & Local Government,DCLG,01/11/2012,National Non Domestic Rates (NNDR) Payments,Localism,MANCHESTER CITY CNCL,,,,5000213675,Grant Payable by Exchequer,M60 2JR,"15,396,134.00",Yes
Communities & Local Government,DCLG,01/11/2012,National Non Domestic Rates (NNDR) Payments,Localism,MEDWAY COUNCIL,,,,5000213694,Grant Payable by Exchequer,ME4 4TR,"3,762,369.00",Yes
Communities & Local Government,DCLG,01/11/2012,National Non Domestic Rates (NNDR) Payments,Localism,MERSEYSIDE FIRE & RESCUE SERVICE,,,,5000213708,Grant Payable by Exchequer,L30 4YD,"1,918,018.00",Yes
Communities & Local Government,DCLG,01/11/2012,National Non Domestic Rates (NNDR) Payments,Localism,MERSEYSIDE POLICE AUTH,,,,5000213711,Grant Payable by Exchequer,L69 1JD,"5,947,101.00",Yes
Communities & Local Government,DCLG,01/11/2012,National Non Domestic Rates (NNDR) Payments,Localism,MIDDLESBROUGH BC,,,,5000213723,Grant Payable by Exchequer,TS1 9GA,"3,805,216.00",Yes
Communities & Local Government,DCLG,01/11/2012,National Non Domestic Rates (NNDR) Payments,Localism,NEWCASTLE UPON TYNE DC,,,,5000213760,Grant Payable by Exchequer,NE99 1RD,"7,489,985.00",Yes
Communities & Local Government,DCLG,01/11/2012,National Non Domestic Rates (NNDR) Payments,Localism,NORFOLK COUNTY COUNCIL,,,,5000213766,Grant Payable by Exchequer,NR1 2DW,"11,572,243.00",Yes
Communities & Local Government,DCLG,01/11/2012,National Non Domestic Rates (NNDR) Payments,Localism,NORFOLK POLICE & CRIME COMMISSIONER,,,,5000213768,Grant Payable by Exchequer,NR18 0WW,"1,511,936.00",Yes
Communities & Local Government,DCLG,01/11/2012,National Non Domestic Rates (NNDR) Payments,Localism,NORTH EAST LINCOLN COUNCIL,,Public Bodies,,5000213774,Grant Payable by Exchequer,DN35 8LN,"3,225,291.00",Yes
Communities & Local Government,DCLG,01/11/2012,National Non Domestic Rates (NNDR) Payments,Localism,NORTH TYNESIDE MBC,,,,5000213779,Grant Payable by Exchequer,NE30 1AE,"3,944,605.00",Yes
Communities & Local Government,DCLG,01/11/2012,National Non Domestic Rates (NNDR) Payments,Localism,NORTH YORKSHIRE CC,,,,5000213782,Grant Payable by Exchequer,DL7 8AL,"5,441,919.00",Yes
Communities & Local Government,DCLG,01/11/2012,National Non Domestic Rates (NNDR) Payments,Localism,NORTH YORKSHIRE FIRE & RESCUE AUTH,,,,5000213783,Grant Payable by Exchequer,DL6 1AB,"594,641.00",Yes
Communities & Local Government,DCLG,01/11/2012,National Non Domestic Rates (NNDR) Payments,Localism,NORTH YORKSHIRE POLICE AUTHORITY,,,,5000213784,Grant Payable by Exchequer,DL7 9HA,"1,459,721.00",Yes
Communities & Local Government,DCLG,01/11/2012,National Non Domestic Rates (NNDR) Payments,Localism,NORTHAMPTONSHIRE COUNTY COUNCIL,,,,5000213785,Grant Payable by Exchequer,NN4 7DB,"7,480,769.00",Yes
Communities & Local Government,DCLG,01/11/2012,National Non Domestic Rates (NNDR) Payments,Localism,NORTHAMPTONSHIRE POLICE AUTH,,,,5000213787,Grant Payable by Exchequer,NN1 5DQ,"1,308,685.00",Yes
Communities & Local Government,DCLG,01/11/2012,National Non Domestic Rates (NNDR) Payments,Localism,NORTHUMBERLAND,,,,5000213799,Grant Payable by Exchequer,NE61 2EF,"5,679,694.00",Yes
Communities & Local Government,DCLG,01/11/2012,National Non Domestic Rates (NNDR) Payments,Localism,NORTHUMBRIA POLICE AUTH,,,,5000213789,Grant Payable by Exchequer,NE1 8DL,"5,595,311.00",Yes
Communities & Local Government,DCLG,01/11/2012,National Non Domestic Rates (NNDR) Payments,Localism,NOTTINGHAM CITY COUNCIL,,,,5000213792,Grant Payable by Exchequer,M33 0DJ,"8,064,139.00",Yes
Communities & Local Government,DCLG,01/11/2012,National Non Domestic Rates (NNDR) Payments,Localism,NOTTINGHAMSHIRE COUNTY CNCL,,,,5000213794,Grant Payable by Exchequer,NG1 4BU,"8,823,153.00",Yes
Communities & Local Government,DCLG,01/11/2012,National Non Domestic Rates (NNDR) Payments,Localism,NOTTINGHAMSHIRE POLICE AU,,,,5000213798,Grant Payable by Exchequer,NG5 8PP,"2,557,189.00",Yes
Communities & Local Government,DCLG,01/11/2012,National Non Domestic Rates (NNDR) Payments,Localism,NOTTS & CITY NOTTINGHAM FIRE AUTH,,,,5000213796,Grant Payable by Exchequer,NG5 8PD,"1,045,819.00",Yes
Communities & Local Government,DCLG,01/11/2012,National Non Domestic Rates (NNDR) Payments,Localism,OLDHAM MBC,,,,5000213802,Grant Payable by Exchequer,OL1 1UH,"5,365,404.00",Yes
Communities & Local Government,DCLG,01/11/2012,National Non Domestic Rates (NNDR) Payments,Localism,OXFORDSHIRE CC,,,,5000213497,Grant Payable by Exchequer,OX4 2GQ,"5,373,146.00",Yes
Communities & Local Government,DCLG,01/11/2012,National Non Domestic Rates (NNDR) Payments,Localism,PLYMOUTH CITY CNCL,,,,5000213513,Grant Payable by Exchequer,PL1 2AA,"5,013,293.00",Yes
Communities & Local Government,DCLG,01/11/2012,National Non Domestic Rates (NNDR) Payments,Localism,PORTSMOUTH CITY COUNCIL,,,,5000213523,Grant Payable by Exchequer,PO1 2AR,"4,014,225.00",Yes
Communities & Local Government,DCLG,01/11/2012,National Non Domestic Rates (NNDR) Payments,Localism,REDCAR & CLEVELAND BOROUGH COUNCIL,,,,5000213550,Grant Payable by Exchequer,TS6 9AR,"2,976,989.00",Yes
Communities & Local Government,DCLG,01/11/2012,National Non Domestic Rates (NNDR) Payments,Localism,ROCHDALE MBC,,,,5000213579,Grant Payable by Exchequer,OL16 1LQ,"5,000,068.00",Yes
Communities & Local Government,DCLG,01/11/2012,National Non Domestic Rates (NNDR) Payments,Localism,ROTHERHAM MBC,,,,5000213602,Grant Payable by Exchequer,S65 1UF,"5,373,037.00",Yes
Communities & Local Government,DCLG,01/11/2012,National Non Domestic Rates (NNDR) Payments,Localism,ROYAL BERKSHIRE FIRE AUTHORITY,,,,5000213582,Grant Payable by Exchequer,RG30 4FS,"718,818.00",Yes
Communities & Local Government,DCLG,01/11/2012,National Non Domestic Rates (NNDR) Payments,Localism,SALFORD CITY CNCL,,,,5000213638,Grant Payable by Exchequer,M27 5AW,"5,937,363.00",Yes
Communities & Local Government,DCLG,01/11/2012,National Non Domestic Rates (NNDR) Payments,Localism,SANDWELL MBC,,,,5000213643,Grant Payable by Exchequer,B69 3BS,"8,205,906.00",Yes
Communities & Local Government,DCLG,01/11/2012,National Non Domestic Rates (NNDR) Payments,Localism,SEFTON MBC,,,,5000213658,Grant Payable by Exchequer,L20 3NQ,"5,500,220.00",Yes
Communities & Local Government,DCLG,01/11/2012,National Non Domestic Rates (NNDR) Payments,Localism,SHEFFIELD CITY CNCL,,,,5000213674,Grant Payable by Exchequer,S1 1UR,"12,382,234.00",Yes
Communities & Local Government,DCLG,01/11/2012,National Non Domestic Rates (NNDR) Payments,Localism,SHROPSHIRE & WREKIN FIRE AUTHORITY,,,,5000213685,Grant Payable by Exchequer,SY1 2HJ,"352,446.00",Yes
Communities & Local Government,DCLG,01/11/2012,National Non Domestic Rates (NNDR) Payments,Localism,SHROPSHIRE COUNCIL,,Large,,5000213800,Grant Payable by Exchequer,SY2 6ND,"4,210,369.00",Yes
Communities & Local Government,DCLG,01/11/2012,National Non Domestic Rates (NNDR) Payments,Localism,SOMERSET COUNTY CNCL,,,,5000213699,Grant Payable by Exchequer,TA1 4DY,"5,848,210.00",Yes
Communities & Local Government,DCLG,01/11/2012,National Non Domestic Rates (NNDR) Payments,Localism,SOUTH TYNESIDE COUNCIL,,,,5000213754,Grant Payable by Exchequer,NE33 2RL,"3,943,924.00",Yes
Communities & Local Government,DCLG,01/11/2012,National Non Domestic Rates (NNDR) Payments,Localism,SOUTH YORKSHIRE FIRE & CD,,,,5000213755,Grant Payable by Exchequer,S1 3FG,"1,524,778.00",Yes
Communities & Local Government,DCLG,01/11/2012,National Non Domestic Rates (NNDR) Payments,Localism,SOUTH YORKSHIRE P A,,,,5000213758,Grant Payable by Exchequer,S3 8LY,"4,196,038.00",Yes
Communities & Local Government,DCLG,01/11/2012,National Non Domestic Rates (NNDR) Payments,Localism,SOUTHEND ON SEA BC,,,,5000213762,Grant Payable by Exchequer,SS2 6EP,"2,816,969.00",Yes
Communities & Local Government,DCLG,01/11/2012,National Non Domestic Rates (NNDR) Payments,Localism,SOUTHWARK LB,,,,5000213765,Grant Payable by Exchequer,SE1P 5LX,"10,115,143.00",Yes
Communities & Local Government,DCLG,01/11/2012,National Non Domestic Rates (NNDR) Payments,Localism,ST HELENS MBC,,,,5000213770,Grant Payable by Exchequer,WA10 1HP,"3,942,458.00",Yes
Communities & Local Government,DCLG,01/11/2012,National Non Domestic Rates (NNDR) Payments,Localism,STAFFORDSHIRE  FIRE & RESCUE SERV,,,,5000213775,Grant Payable by Exchequer,ST15 0BS,"908,968.00",Yes
Communities & Local Government,DCLG,01/11/2012,National Non Domestic Rates (NNDR) Payments,Localism,STAFFORDSHIRE COUNTY CNCL,,,,5000213773,Grant Payable by Exchequer,ST16 2LH,"7,809,213.00",Yes
Communities & Local Government,DCLG,01/11/2012,National Non Domestic Rates (NNDR) Payments,Localism,STAFFORDSHIRE POLICE AUTHORITY,,,,5000213777,Grant Payable by Exchequer,ST16 2NF,"2,228,356.00",Yes
Communities & Local Government,DCLG,01/11/2012,National Non Domestic Rates (NNDR) Payments,Localism,STOKE ON TRENT CITY COUNCIL,,,,5000213780,Grant Payable by Exchequer,ST4 1RJ,"5,764,577.00",Yes
Communities & Local Government,DCLG,01/11/2012,National Non Domestic Rates (NNDR) Payments,Localism,SUFFOLK COUNTY CNCL,,,,5000213786,Grant Payable by Exchequer,IP4 2JP,"8,244,910.00",Yes
Communities & Local Government,DCLG,01/11/2012,National Non Domestic Rates (NNDR) Payments,Localism,SUFFOLK POLICE AUTHORITY,,,,5000213790,Grant Payable by Exchequer,IP5 3QS,"1,236,403.00",Yes
Communities & Local Government,DCLG,01/11/2012,National Non Domestic Rates (NNDR) Payments,Localism,SUNDERLAND DC,,,,5000213791,Grant Payable by Exchequer,SR2 7DN,"6,904,960.00",Yes
Communities & Local Government,DCLG,01/11/2012,National Non Domestic Rates (NNDR) Payments,Localism,SURREY COUNTY CNCL,,,,5000213793,Grant Payable by Exchequer,KT1 2EA,"6,924,961.00",Yes
Communities & Local Government,DCLG,01/11/2012,National Non Domestic Rates (NNDR) Payments,Localism,SURREY POLICE AUTHORITY,,,,5000213499,Grant Payable by Exchequer,KT1 2EA,"1,662,226.00",Yes
Communities & Local Government,DCLG,01/11/2012,National Non Domestic Rates (NNDR) Payments,Localism,SUSSEX POLICE AUTHORITY,,,,5000213504,Grant Payable by Exchequer,PO19 1RG,"2,989,222.00",Yes
Communities & Local Government,DCLG,01/11/2012,National Non Domestic Rates (NNDR) Payments,Localism,SUTTON LB,,,,5000213509,Grant Payable by Exchequer,SM1 1EA,"2,409,620.00",Yes
Communities & Local Government,DCLG,01/11/2012,National Non Domestic Rates (NNDR) Payments,Localism,TAMESIDE MBC,,,,5000213524,Grant Payable by Exchequer,OL6 6DL,"4,687,612.00",Yes
Communities & Local Government,DCLG,01/11/2012,National Non Domestic Rates (NNDR) Payments,Localism,TELFORD & WREKIN DC,,,,5000213552,Grant Payable by Exchequer,TF3 4LF,"3,105,446.00",Yes
Communities & Local Government,DCLG,01/11/2012,National Non Domestic Rates (NNDR) Payments,Localism,THAMES VALLEY POLICE AUTHORITY,,,,5000213572,Grant Payable by Exchequer,OX5 2NX,"4,070,298.00",Yes
Communities & Local Government,DCLG,01/11/2012,National Non Domestic Rates (NNDR) Payments,Localism,TORBAY BC,,,,5000213599,Grant Payable by Exchequer,TQ1 3DR,"2,770,597.00",Yes
Communities & Local Government,DCLG,01/11/2012,National Non Domestic Rates (NNDR) Payments,Localism,TYNE & WEAR FIRE AUTHORITY,,,,5000213624,Grant Payable by Exchequer,SR2 7DN,"1,476,818.00",Yes
Communities & Local Government,DCLG,01/11/2012,National Non Domestic Rates (NNDR) Payments,Localism,W YORKSHIRE FIRE & RESCUE AUTH,,,,5000213764,Grant Payable by Exchequer,BD11 2DY,"2,441,624.00",Yes
Communities & Local Government,DCLG,01/11/2012,National Non Domestic Rates (NNDR) Payments,Localism,WALSALL MBC,,,,5000213644,Grant Payable by Exchequer,WS1 1TW,"6,018,666.00",Yes
Communities & Local Government,DCLG,01/11/2012,National Non Domestic Rates (NNDR) Payments,Localism,WALTHAM FOREST LB,,Large,,5000213649,Grant Payable by Exchequer,E17 4JF,"5,509,402.00",Yes
Communities & Local Government,DCLG,01/11/2012,National Non Domestic Rates (NNDR) Payments,Localism,WANDSWORTH LB,,,,5000213655,Grant Payable by Exchequer,SW18 2PU,"6,616,205.00",Yes
Communities & Local Government,DCLG,01/11/2012,National Non Domestic Rates (NNDR) Payments,Localism,WARWICKSHIRE COUNTY CNCL,,,,5000213669,Grant Payable by Exchequer,CV34 4RH,"4,869,208.00",Yes
Communities & Local Government,DCLG,01/11/2012,National Non Domestic Rates (NNDR) Payments,Localism,WARWICKSHIRE POLICE AUTHORITY,,,,5000213673,Grant Payable by Exchequer,CV35 7QB,"921,624.00",Yes
Communities & Local Government,DCLG,01/11/2012,National Non Domestic Rates (NNDR) Payments,Localism,WEST MERCIA POLICE AUTH,,,,5000213756,Grant Payable by Exchequer,WR5 2NP,"2,382,198.00",Yes
Communities & Local Government,DCLG,01/11/2012,National Non Domestic Rates (NNDR) Payments,Localism,WEST MIDLANDS FIRE & CIVIL DEFENCE,,,,5000213757,Grant Payable by Exchequer,B4 7DE,"3,336,640.00",Yes
Communities & Local Government,DCLG,01/11/2012,National Non Domestic Rates (NNDR) Payments,Localism,WEST MIDLANDS POLICE AUTH,,,,5000213759,Grant Payable by Exchequer,B4 6NQ,"9,949,231.00",Yes
Communities & Local Government,DCLG,01/11/2012,National Non Domestic Rates (NNDR) Payments,Localism,WEST SUSSEX CC,,,,5000213761,Grant Payable by Exchequer,PO19 1RG,"5,509,493.00",Yes
Communities & Local Government,DCLG,01/11/2012,National Non Domestic Rates (NNDR) Payments,Localism,WEST YORKSHIRE POLICE AUTHORITY,,,,5000213767,Grant Payable by Exchequer,WF1 3QP,"6,682,916.00",Yes
Communities & Local Government,DCLG,01/11/2012,National Non Domestic Rates (NNDR) Payments,Localism,WIGAN MBC,,,,5000213769,Grant Payable by Exchequer,WN1 1YD,"5,938,837.00",Yes
Communities & Local Government,DCLG,01/11/2012,National Non Domestic Rates (NNDR) Payments,Localism,WILTSHIRE & SWINDON FIRE AUTHORITY,,,,5000213771,Grant Payable by Exchequer,SN10 5PP,"448,387.00",Yes
Communities & Local Government,DCLG,01/11/2012,National Non Domestic Rates (NNDR) Payments,Localism,WILTSHIRE POLICE,,,,5000213772,Grant Payable by Exchequer,BA14 8JJ,"1,155,129.00",Yes
Communities & Local Government,DCLG,01/11/2012,National Non Domestic Rates (NNDR) Payments,Localism,WIRRAL MBC,,,,5000213776,Grant Payable by Exchequer,L41 6BU,"6,897,391.00",Yes
Communities & Local Government,DCLG,01/11/2012,National Non Domestic Rates (NNDR) Payments,Localism,WOLVERHAMPTON MBC,,,,5000213778,Grant Payable by Exchequer,WV1 1RL,"6,374,778.00",Yes
Communities & Local Government,DCLG,01/11/2012,National Non Domestic Rates (NNDR) Payments,Localism,WORCESTERSHIRE COUNTY COUNCIL,,,,5000213781,Grant Payable by Exchequer,WR5 2NP,"4,897,652.00",Yes
Communities & Local Government,DCLG,01/11/2012,NNDR Billing Authorities Receipts,Localism,BARKING & DAGENHAM LB,,Public Bodies,,5000213532,Grant Payable by Exchequer,RM10 7BY,"-2,600,370.00",Yes
Communities & Local Government,DCLG,01/11/2012,NNDR Billing Authorities Receipts,Localism,BARNSLEY MBC,,Public Bodies,,5000213542,Grant Payable by Exchequer,S70 2AQ,"-2,368,066.00",Yes
Communities & Local Government,DCLG,01/11/2012,NNDR Billing Authorities Receipts,Localism,BIRMINGHAM CITY CNCL,,,,5000213591,Grant Payable by Exchequer,B3 3AB,"-18,221,684.00",Yes
Communities & Local Government,DCLG,01/11/2012,NNDR Billing Authorities Receipts,Localism,BLACKBURN WITH DARWEN BC,,,,5000213600,Grant Payable by Exchequer,BB1 7DY,"-2,105,421.00",Yes
Communities & Local Government,DCLG,01/11/2012,NNDR Billing Authorities Receipts,Localism,BLACKPOOL BC,,,,5000213605,Grant Payable by Exchequer,FY1 1NA,"-2,241,866.00",Yes
Communities & Local Government,DCLG,01/11/2012,NNDR Billing Authorities Receipts,Localism,BOLTON MBC,,,,5000213615,Grant Payable by Exchequer,BL1 1RU,"-4,172,825.00",Yes
Communities & Local Government,DCLG,01/11/2012,NNDR Billing Authorities Receipts,Localism,BRADFORD MBC,,,,5000213635,Grant Payable by Exchequer,BD1 1HX,"-6,351,576.00",Yes
Communities & Local Government,DCLG,01/11/2012,NNDR Billing Authorities Receipts,Localism,BRENT LB,,,,5000213651,Grant Payable by Exchequer,HA9 9EZ,"-4,743,148.00",Yes
Communities & Local Government,DCLG,01/11/2012,NNDR Billing Authorities Receipts,Localism,BRIGHTON & HOVE CITY COUNCIL,,,,5000213661,Grant Payable by Exchequer,BN3 2SR,"-4,667,308.00",Yes
Communities & Local Government,DCLG,01/11/2012,NNDR Billing Authorities Receipts,Localism,BURY MBC,,,,5000213726,Grant Payable by Exchequer,BL9 0SP,"-2,437,420.00",Yes
Communities & Local Government,DCLG,01/11/2012,NNDR Billing Authorities Receipts,Localism,CALDERDALE MBC,,,,5000213727,Grant Payable by Exchequer,HX1 1YP,"-2,631,238.00",Yes
Communities & Local Government,DCLG,01/11/2012,NNDR Billing Authorities Receipts,Localism,CITY OF WAKEFIELD MDC,,,,5000213639,Grant Payable by Exchequer,WF1 2QW,"-5,596,157.00",Yes
Communities & Local Government,DCLG,01/11/2012,NNDR Billing Authorities Receipts,Localism,CORNWALL COUNCIL,,,,5000213795,Grant Payable by Exchequer,TR1 3AY,"-6,831,617.00",Yes
Communities & Local Government,DCLG,01/11/2012,NNDR Billing Authorities Receipts,Localism,COVENTRY CITY CNCL,,,,5000213735,Grant Payable by Exchequer,CV1 2QL,"-5,248,716.00",Yes
Communities & Local Government,DCLG,01/11/2012,NNDR Billing Authorities Receipts,Localism,CROYDON LB,,,,5000213736,Grant Payable by Exchequer,CR9 3JS,"-5,141,972.00",Yes
Communities & Local Government,DCLG,01/11/2012,NNDR Billing Authorities Receipts,Localism,DARLINGTON BC,,,,5000213493,Grant Payable by Exchequer,TS19 1JA,"-1,540,574.00",Yes
Communities & Local Government,DCLG,01/11/2012,NNDR Billing Authorities Receipts,Localism,DERBY CITY CNCL,,,,5000213503,Grant Payable by Exchequer,DE1 2FS,"-3,851,946.00",Yes
Communities & Local Government,DCLG,01/11/2012,NNDR Billing Authorities Receipts,Localism,DONCASTER MBC,,,,5000213538,Grant Payable by Exchequer,DN1 3QA,"-3,979,092.00",Yes
Communities & Local Government,DCLG,01/11/2012,NNDR Billing Authorities Receipts,Localism,DUDLEY MBC,,,,5000213561,Grant Payable by Exchequer,DY1 1HF,"-4,318,932.00",Yes
Communities & Local Government,DCLG,01/11/2012,NNDR Billing Authorities Receipts,Localism,DURHAM COUNTY COUNCIL,,,,5000213797,Grant Payable by Exchequer,DH1 5UE,"-5,144,178.00",Yes
Communities & Local Government,DCLG,01/11/2012,NNDR Billing Authorities Receipts,Localism,EAST RIDING OF YORKS,,,,5000213617,Grant Payable by Exchequer,HU17 9AB,"-3,910,739.00",Yes
Communities & Local Government,DCLG,01/11/2012,NNDR Billing Authorities Receipts,Localism,ENFIELD LB,,,,5000213657,Grant Payable by Exchequer,EN1 3XF,"-4,719,317.00",Yes
Communities & Local Government,DCLG,01/11/2012,NNDR Billing Authorities Receipts,Localism,GATESHEAD MBC,,,,5000213716,Grant Payable by Exchequer,NE8 1HH,"-3,825,332.00",Yes
Communities & Local Government,DCLG,01/11/2012,NNDR Billing Authorities Receipts,Localism,GREENWICH LB,,,,5000213740,Grant Payable by Exchequer,SE18 6RA,"-2,764,640.00",Yes
Communities & Local Government,DCLG,01/11/2012,NNDR Billing Authorities Receipts,Localism,HALTON BC,,,,5000213742,Grant Payable by Exchequer,WA8 7QF,"-2,326,123.00",Yes
Communities & Local Government,DCLG,01/11/2012,NNDR Billing Authorities Receipts,Localism,HARINGEY LB,,,,5000213746,Grant Payable by Exchequer,N22 7TR,"-2,909,112.00",Yes
Communities & Local Government,DCLG,01/11/2012,NNDR Billing Authorities Receipts,Localism,HARROW LB,,,,5000213747,Grant Payable by Exchequer,HA1 2UZ,"-2,170,182.00",Yes
Communities & Local Government,DCLG,01/11/2012,NNDR Billing Authorities Receipts,Localism,HARTLEPOOL BOROUGH COUNCIL,,,,5000213748,Grant Payable by Exchequer,TS24 7BT,"-1,300,539.00",Yes
Communities & Local Government,DCLG,01/11/2012,NNDR Billing Authorities Receipts,Localism,HEREFORDSHIRE DISTRICT COUNCIL,,,,5000213750,Grant Payable by Exchequer,HR1 1SH,"-2,073,689.00",Yes
Communities & Local Government,DCLG,01/11/2012,NNDR Billing Authorities Receipts,Localism,HULL CITY COUNCIL,,,,5000213554,Grant Payable by Exchequer,HU1 2AA,"-4,297,718.00",Yes
Communities & Local Government,DCLG,01/11/2012,NNDR Billing Authorities Receipts,Localism,ISLE OF WIGHT CNCL,,,,5000213505,Grant Payable by Exchequer,PO30 1UD,"-1,523,912.00",Yes
Communities & Local Government,DCLG,01/11/2012,NNDR Billing Authorities Receipts,Localism,ISLES OF SCILLY COUNCIL,,,,5000213515,Grant Payable by Exchequer,TR21 0LW,"-69,401.00",Yes
Communities & Local Government,DCLG,01/11/2012,NNDR Billing Authorities Receipts,Localism,KIRKLEES MBC,,,,5000213565,Grant Payable by Exchequer,HD1 2YU,"-4,855,366.00",Yes
Communities & Local Government,DCLG,01/11/2012,NNDR Billing Authorities Receipts,Localism,KNOWSLEY MBC,,,,5000213570,Grant Payable by Exchequer,L36 9YZ,"-1,853,840.00",Yes
Communities & Local Government,DCLG,01/11/2012,NNDR Billing Authorities Receipts,Localism,LEICESTER CITY CNCL,,,,5000213603,Grant Payable by Exchequer,LE1 6ZG,"-4,636,915.00",Yes
Communities & Local Government,DCLG,01/11/2012,NNDR Billing Authorities Receipts,Localism,LEWISHAM LB,,,,5000213626,Grant Payable by Exchequer,SE6 4RU,"-2,200,149.00",Yes
Communities & Local Government,DCLG,01/11/2012,NNDR Billing Authorities Receipts,Localism,LIVERPOOL CITY COUNCIL,,,,5000213650,Grant Payable by Exchequer,L2 2DH,"-8,796,965.00",Yes
Communities & Local Government,DCLG,01/11/2012,NNDR Billing Authorities Receipts,Localism,LONDON BOROUGH OF HACKNEY,,,,5000213741,Grant Payable by Exchequer,E8 4RU,"-3,883,503.00",Yes
Communities & Local Government,DCLG,01/11/2012,NNDR Billing Authorities Receipts,Localism,LONDON BOROUGH OF LAMBETH,,,,5000213575,Grant Payable by Exchequer,SW2 1RL,"-5,253,317.00",Yes
Communities & Local Government,DCLG,01/11/2012,NNDR Billing Authorities Receipts,Localism,LONDON BOROUGH OF NEWHAM,,Large,,5000213763,Grant Payable by Exchequer,E16 2QU,"-5,317,852.00",Yes
Communities & Local Government,DCLG,01/11/2012,NNDR Billing Authorities Receipts,Localism,LONDON BOROUGH OF REDBRIDGE,,,,5000213545,Grant Payable by Exchequer,IG1 1NN,"-2,413,968.00",Yes
Communities & Local Government,DCLG,01/11/2012,NNDR Billing Authorities Receipts,Localism,LUTON BC,,,,5000213654,Grant Payable by Exchequer,LU1 1DX,"-3,121,335.00",Yes
Communities & Local Government,DCLG,01/11/2012,NNDR Billing Authorities Receipts,Localism,MANCHESTER CITY CNCL,,,,5000213675,Grant Payable by Exchequer,M60 2JR,"-14,492,040.00",Yes
Communities & Local Government,DCLG,01/11/2012,NNDR Billing Authorities Receipts,Localism,MEDWAY COUNCIL,,,,5000213694,Grant Payable by Exchequer,ME4 4TR,"-3,706,540.00",Yes
Communities & Local Government,DCLG,01/11/2012,NNDR Billing Authorities Receipts,Localism,MIDDLESBROUGH BC,,,,5000213723,Grant Payable by Exchequer,TS1 9GA,"-1,899,818.00",Yes
Communities & Local Government,DCLG,01/11/2012,NNDR Billing Authorities Receipts,Localism,NEWCASTLE UPON TYNE DC,,,,5000213760,Grant Payable by Exchequer,NE99 1RD,"-6,827,411.00",Yes
Communities & Local Government,DCLG,01/11/2012,NNDR Billing Authorities Receipts,Localism,NORTH EAST LINCOLN COUNCIL,,Public Bodies,,5000213774,Grant Payable by Exchequer,DN35 8LN,"-2,956,189.00",Yes
Communities & Local Government,DCLG,01/11/2012,NNDR Billing Authorities Receipts,Localism,NORTH TYNESIDE MBC,,,,5000213779,Grant Payable by Exchequer,NE30 1AE,"-2,673,637.00",Yes
Communities & Local Government,DCLG,01/11/2012,NNDR Billing Authorities Receipts,Localism,NORTHUMBERLAND,,,,5000213799,Grant Payable by Exchequer,NE61 2EF,"-3,410,614.00",Yes
Communities & Local Government,DCLG,01/11/2012,NNDR Billing Authorities Receipts,Localism,NOTTINGHAM CITY COUNCIL,,,,5000213792,Grant Payable by Exchequer,M33 0DJ,"-5,790,411.00",Yes
Communities & Local Government,DCLG,01/11/2012,NNDR Billing Authorities Receipts,Localism,OLDHAM MBC,,,,5000213802,Grant Payable by Exchequer,OL1 1UH,"-2,646,240.00",Yes
Communities & Local Government,DCLG,01/11/2012,NNDR Billing Authorities Receipts,Localism,PLYMOUTH CITY CNCL,,,,5000213513,Grant Payable by Exchequer,PL1 2AA,"-3,964,888.00",Yes
Communities & Local Government,DCLG,01/11/2012,NNDR Billing Authorities Receipts,Localism,PORTSMOUTH CITY COUNCIL,,,,5000213523,Grant Payable by Exchequer,PO1 2AR,"-3,708,066.00",Yes
Communities & Local Government,DCLG,01/11/2012,NNDR Billing Authorities Receipts,Localism,REDCAR & CLEVELAND BOROUGH COUNCIL,,,,5000213550,Grant Payable by Exchequer,TS6 9AR,"-2,331,036.00",Yes
Communities & Local Government,DCLG,01/11/2012,NNDR Billing Authorities Receipts,Localism,ROCHDALE MBC,,,,5000213579,Grant Payable by Exchequer,OL16 1LQ,"-2,913,839.00",Yes
Communities & Local Government,DCLG,01/11/2012,NNDR Billing Authorities Receipts,Localism,ROTHERHAM MBC,,,,5000213602,Grant Payable by Exchequer,S65 1UF,"-3,322,188.00",Yes
Communities & Local Government,DCLG,01/11/2012,NNDR Billing Authorities Receipts,Localism,SALFORD CITY CNCL,,,,5000213638,Grant Payable by Exchequer,M27 5AW,"-3,882,547.00",Yes
Communities & Local Government,DCLG,01/11/2012,NNDR Billing Authorities Receipts,Localism,SANDWELL MBC,,,,5000213643,Grant Payable by Exchequer,B69 3BS,"-4,364,634.00",Yes
Communities & Local Government,DCLG,01/11/2012,NNDR Billing Authorities Receipts,Localism,SEFTON MBC,,,,5000213658,Grant Payable by Exchequer,L20 3NQ,"-3,184,507.00",Yes
Communities & Local Government,DCLG,01/11/2012,NNDR Billing Authorities Receipts,Localism,SHEFFIELD CITY CNCL,,,,5000213674,Grant Payable by Exchequer,S1 1UR,"-9,339,895.00",Yes
Communities & Local Government,DCLG,01/11/2012,NNDR Billing Authorities Receipts,Localism,SHROPSHIRE COUNCIL,,Large,,5000213800,Grant Payable by Exchequer,SY2 6ND,"-3,332,783.00",Yes
Communities & Local Government,DCLG,01/11/2012,NNDR Billing Authorities Receipts,Localism,SOUTH TYNESIDE COUNCIL,,,,5000213754,Grant Payable by Exchequer,NE33 2RL,"-1,372,463.00",Yes
Communities & Local Government,DCLG,01/11/2012,NNDR Billing Authorities Receipts,Localism,SOUTHEND ON SEA BC,,,,5000213762,Grant Payable by Exchequer,SS2 6EP,"-2,055,475.00",Yes
Communities & Local Government,DCLG,01/11/2012,NNDR Billing Authorities Receipts,Localism,SOUTHWARK LB,,,,5000213765,Grant Payable by Exchequer,SE1P 5LX,"-9,017,135.00",Yes
Communities & Local Government,DCLG,01/11/2012,NNDR Billing Authorities Receipts,Localism,ST HELENS MBC,,,,5000213770,Grant Payable by Exchequer,WA10 1HP,"-2,229,274.00",Yes
Communities & Local Government,DCLG,01/11/2012,NNDR Billing Authorities Receipts,Localism,STOKE ON TRENT CITY COUNCIL,,,,5000213780,Grant Payable by Exchequer,ST4 1RJ,"-3,735,031.00",Yes
Communities & Local Government,DCLG,01/11/2012,NNDR Billing Authorities Receipts,Localism,SUNDERLAND DC,,,,5000213791,Grant Payable by Exchequer,SR2 7DN,"-3,912,543.00",Yes
Communities & Local Government,DCLG,01/11/2012,NNDR Billing Authorities Receipts,Localism,SUTTON LB,,,,5000213509,Grant Payable by Exchequer,SM1 1EA,"-2,346,052.00",Yes
Communities & Local Government,DCLG,01/11/2012,NNDR Billing Authorities Receipts,Localism,TAMESIDE MBC,,,,5000213524,Grant Payable by Exchequer,OL6 6DL,"-2,537,913.00",Yes
Communities & Local Government,DCLG,01/11/2012,NNDR Billing Authorities Receipts,Localism,TELFORD & WREKIN DC,,,,5000213552,Grant Payable by Exchequer,TF3 4LF,"-3,044,819.00",Yes
Communities & Local Government,DCLG,01/11/2012,NNDR Billing Authorities Receipts,Localism,TORBAY BC,,,,5000213599,Grant Payable by Exchequer,TQ1 3DR,"-1,689,709.00",Yes
Communities & Local Government,DCLG,01/11/2012,NNDR Billing Authorities Receipts,Localism,WALSALL MBC,,,,5000213644,Grant Payable by Exchequer,WS1 1TW,"-3,135,747.00",Yes
Communities & Local Government,DCLG,01/11/2012,NNDR Billing Authorities Receipts,Localism,WALTHAM FOREST LB,,Large,,5000213649,Grant Payable by Exchequer,E17 4JF,"-2,517,003.00",Yes
Communities & Local Government,DCLG,01/11/2012,NNDR Billing Authorities Receipts,Localism,WANDSWORTH LB,,,,5000213655,Grant Payable by Exchequer,SW18 2PU,"-4,628,797.00",Yes
Communities & Local Government,DCLG,01/11/2012,NNDR Billing Authorities Receipts,Localism,WIGAN MBC,,,,5000213769,Grant Payable by Exchequer,WN1 1YD,"-3,476,628.00",Yes
Communities & Local Government,DCLG,01/11/2012,NNDR Billing Authorities Receipts,Localism,WIRRAL MBC,,,,5000213776,Grant Payable by Exchequer,L41 6BU,"-3,072,413.00",Yes
Communities & Local Government,DCLG,01/11/2012,NNDR Billing Authorities Receipts,Localism,WOLVERHAMPTON MBC,,,,5000213778,Grant Payable by Exchequer,WV1 1RL,"-3,315,817.00",Yes
Communities & Local Government,DCLG,01/11/2012,Steady State Service Provision,Neighbourhoods,SQW LTD,,Medium,,5106185307,2015/16 Programme Evaluation,CB4 9ZR,"56,474.40",
Communities & Local Government,DCLG,01/11/2012,Telephone call costs,Finance & Corporate Services,DAMOVO UK LTD,,Large,,5106185304,Telephony Charges,RH12 4QP,600,
Communities & Local Government,DCLG,01/11/2012,Training,Finance & Corporate Services,G A TRAINING,,Micro,,5106185309,Intellectual Property Rights training,EN5 5SU,449,
Communities & Local Government,DCLG,01/11/2012,Training,Finance & Corporate Services,SOLOGICAL SOLUTIONS,,Micro,,5106185293,Mapping software license (Economists),NG12 2NJ,"3,087.50"
Communities & Local Government,DCLG,01/11/2012,Travel and Subsistence Account,Finance & Corporate Services,REDFERN TRAVEL LIMITED,,Small,,2100223470,Consolidated Monthly Travel costs 30.09.2012,BD1 3AZ,340.54
Communities & Local Government,DCLG,01/11/2012,Travel and Subsistence Account,Finance & Corporate Services,REDFERN TRAVEL LIMITED,,Small,,2100223470,Consolidated Monthly Travel costs 30.09.2012,BD1 3AZ,"1,354.16"
Communities & Local Government,DCLG,01/11/2012,Travel and Subsistence Account,Finance & Corporate Services,REDFERN TRAVEL LIMITED,,Small,,2100223470,Consolidated Monthly Travel costs 30.09.2012,BD1 3AZ,693.11
Communities & Local Government,DCLG,01/11/2012,Travel and Subsistence Account,Finance & Corporate Services,REDFERN TRAVEL LIMITED,,Small,,2100223470,Consolidated Monthly Travel costs 30.09.2012,BD1 3AZ,457.91
Communities & Local Government,DCLG,01/11/2012,Travel and Subsistence Account,Finance & Corporate Services,REDFERN TRAVEL LIMITED,,Small,,2100223470,Consolidated Monthly Travel costs 30.09.2012,BD1 3AZ,315.89
Communities & Local Government,DCLG,01/11/2012,Travel and Subsistence Account,Finance & Corporate Services,REDFERN TRAVEL LIMITED,,Small,,2100223470,Consolidated Monthly Travel costs 30.09.2012,BD1 3AZ,"4,562.00"
Communities & Local Government,DCLG,01/11/2012,Travel and Subsistence Account,Finance & Corporate Services,REDFERN TRAVEL LIMITED,,Small,,2100223470,Consolidated Monthly Travel costs 30.09.2012,BD1 3AZ,440.68
Communities & Local Government,DCLG,01/11/2012,Travel and Subsistence Account,Finance & Corporate Services,REDFERN TRAVEL LIMITED,,Small,,2100223470,Consolidated Monthly Travel costs 30.09.2012,BD1 3AZ,279.69
Communities & Local Government,DCLG,01/11/2012,Travel and Subsistence Account,Finance & Corporate Services,REDFERN TRAVEL LIMITED,,Small,,2100223470,Consolidated Monthly Travel costs 30.09.2012,BD1 3AZ,"4,120.65"
Communities & Local Government,DCLG,01/11/2012,Travel and Subsistence Account,Finance & Corporate Services,REDFERN TRAVEL LIMITED,,Small,,2100223470,Consolidated Monthly Travel costs 30.09.2012,BD1 3AZ,333.42
Communities & Local Government,DCLG,01/11/2012,Travel and Subsistence Account,Finance & Corporate Services,REDFERN TRAVEL LIMITED,,Small,,2100223470,Consolidated Monthly Travel costs 30.09.2012,BD1 3AZ,"3,186.21"
Communities & Local Government,DCLG,01/11/2012,Travel and Subsistence Account,Finance & Corporate Services,REDFERN TRAVEL LIMITED,,Small,,2100223470,Consolidated Monthly Travel costs 30.09.2012,BD1 3AZ,718.8
Communities & Local Government,DCLG,01/11/2012,Travel and Subsistence Account,Finance & Corporate Services,REDFERN TRAVEL LIMITED,,Small,,2100223470,Consolidated Monthly Travel costs 30.09.2012,BD1 3AZ,282.73
Communities & Local Government,DCLG,01/11/2012,Travel and Subsistence Account,Finance & Corporate Services,REDFERN TRAVEL LIMITED,,Small,,2100223470,Consolidated Monthly Travel costs 30.09.2012,BD1 3AZ,968.72
Communities & Local Government,DCLG,01/11/2012,Travel and Subsistence Account,Finance & Corporate Services,REDFERN TRAVEL LIMITED,,Small,,2100223470,Consolidated Monthly Travel costs 30.09.2012,BD1 3AZ,"1,571.03"
Communities & Local Government,DCLG,01/11/2012,Travel and Subsistence Account,Finance & Corporate Services,REDFERN TRAVEL LIMITED,,Small,,2100223470,Consolidated Monthly Travel costs 30.09.2012,BD1 3AZ,699.63
Communities & Local Government,DCLG,01/11/2012,Travel and Subsistence Account,Finance & Corporate Services,REDFERN TRAVEL LIMITED,,Small,,2100223470,Consolidated Monthly Travel costs 30.09.2012,BD1 3AZ,394.17
Communities & Local Government,DCLG,01/11/2012,Travel and Subsistence Account,Localism,HENLEY GOLF & COUNTRY CLUB LTD,,Medium,,5106185262,Hotel accommodation for training course,B95 5QA,375
Communities & Local Government,DCLG,01/11/2012,Travel and Subsistence Account,Localism,REDFERN TRAVEL LIMITED,,Small,,2100223466,Consolidated Monthly Travel costs 31.07.2012,BD1 3AZ,385.18
Communities & Local Government,DCLG,01/11/2012,Travel and Subsistence Account,Localism,REDFERN TRAVEL LIMITED,,Small,,2100223470,Consolidated Monthly Travel costs 30.09.2012,BD1 3AZ,348.01
Communities & Local Government,DCLG,01/11/2012,Travel and Subsistence Account,Localism,REDFERN TRAVEL LIMITED,,Small,,2100223470,Consolidated Monthly Travel costs 30.09.2012,BD1 3AZ,655.93
Communities & Local Government,DCLG,01/11/2012,Travel and Subsistence Account,Localism,REDFERN TRAVEL LIMITED,,Small,,2100223470,Consolidated Monthly Travel costs 30.09.2012,BD1 3AZ,"1,917.67"
Communities & Local Government,DCLG,01/11/2012,Travel and Subsistence Account,Localism,REDFERN TRAVEL LIMITED,,Small,,2100223470,Consolidated Monthly Travel costs 30.09.2012,BD1 3AZ,304.41
Communities & Local Government,DCLG,01/11/2012,Travel and Subsistence Account,Localism,REDFERN TRAVEL LIMITED,,Small,,2100223470,Consolidated Monthly Travel costs 30.09.2012,BD1 3AZ,"2,404.84"
Communities & Local Government,DCLG,01/11/2012,Travel and Subsistence Account,Localism,REDFERN TRAVEL LIMITED,,Small,,2100223470,Consolidated Monthly Travel costs 30.09.2012,BD1 3AZ,441.58
Communities & Local Government,DCLG,01/11/2012,Travel and Subsistence Account,Localism,REDFERN TRAVEL LIMITED,,Small,,2100223470,Consolidated Monthly Travel costs 30.09.2012,BD1 3AZ,721.06
Communities & Local Government,DCLG,01/11/2012,Travel and Subsistence Account,Localism,REDFERN TRAVEL LIMITED,,Small,,2100223470,Consolidated Monthly Travel costs 30.09.2012,BD1 3AZ,588.62
Communities & Local Government,DCLG,01/11/2012,Travel and Subsistence Account,Localism,REDFERN TRAVEL LIMITED,,Small,,2100223470,Consolidated Monthly Travel costs 30.09.2012,BD1 3AZ,297.32
Communities & Local Government,DCLG,01/11/2012,Travel and Subsistence Account,Localism,REDFERN TRAVEL LIMITED,,Small,,2100223470,Consolidated Monthly Travel costs 30.09.2012,BD1 3AZ,299.48
Communities & Local Government,DCLG,01/11/2012,Travel and Subsistence Account,Localism,REDFERN TRAVEL LIMITED,,Small,,2100223470,Consolidated Monthly Travel costs 30.09.2012,BD1 3AZ,469.62
Communities & Local Government,DCLG,01/11/2012,Travel and Subsistence Account,Localism,REDFERN TRAVEL LIMITED,,Small,,2100223470,Consolidated Monthly Travel costs 30.09.2012,BD1 3AZ,989.85
Communities & Local Government,DCLG,01/11/2012,Travel and Subsistence Account,Localism,REDFERN TRAVEL LIMITED,,Small,,2100223470,Consolidated Monthly Travel costs 30.09.2012,BD1 3AZ,"1,899.97"
Communities & Local Government,DCLG,01/11/2012,Travel and Subsistence Account,Localism,REDFERN TRAVEL LIMITED,,Small,,2100223470,Consolidated Monthly Travel costs 30.09.2012,BD1 3AZ,251.16
Communities & Local Government,DCLG,01/11/2012,Travel and Subsistence Account,Localism,REDFERN TRAVEL LIMITED,,Small,,2100223470,Consolidated Monthly Travel costs 30.09.2012,BD1 3AZ,"4,707.23"
Communities & Local Government,DCLG,01/11/2012,Travel and Subsistence Account,Localism,REDFERN TRAVEL LIMITED,,Small,,2100223470,Consolidated Monthly Travel costs 30.09.2012,BD1 3AZ,"2,958.11"
Communities & Local Government,DCLG,01/11/2012,Travel and Subsistence Account,Localism,REDFERN TRAVEL LIMITED,,Small,,2100223470,Consolidated Monthly Travel costs 30.09.2012,BD1 3AZ,"2,038.18"
Communities & Local Government,DCLG,01/11/2012,Travel and Subsistence Account,Localism,REDFERN TRAVEL LIMITED,,Small,,2100223470,Consolidated Monthly Travel costs 30.09.2012,BD1 3AZ,"1,261.89"
Communities & Local Government,DCLG,01/11/2012,Travel and Subsistence Account,Localism,REDFERN TRAVEL LIMITED,,Small,,2100223470,Consolidated Monthly Travel costs 30.09.2012,BD1 3AZ,"2,144.05"
Communities & Local Government,DCLG,01/11/2012,Travel and Subsistence Account,Localism,REDFERN TRAVEL LIMITED,,Small,,2100223470,Consolidated Monthly Travel costs 30.09.2012,BD1 3AZ,"1,945.36"
Communities & Local Government,DCLG,01/11/2012,Travel and Subsistence Account,Localism,REDFERN TRAVEL LIMITED,,Small,,2100223470,Consolidated Monthly Travel costs 30.09.2012,BD1 3AZ,250.26
Communities & Local Government,DCLG,01/11/2012,Travel and Subsistence Account,Neighbourhoods,REDFERN TRAVEL LIMITED,,Small,,2100223465,Consolidated Monthly Travel costs 30.06.2012,BD1 3AZ,291
Communities & Local Government,DCLG,01/11/2012,Travel and Subsistence Account,Neighbourhoods,REDFERN TRAVEL LIMITED,,Small,,2100223470,Consolidated Monthly Travel costs 30.09.2012,BD1 3AZ,542.84
Communities & Local Government,DCLG,01/11/2012,Travel and Subsistence Account,Neighbourhoods,REDFERN TRAVEL LIMITED,,Small,,2100223470,Consolidated Monthly Travel costs 30.09.2012,BD1 3AZ,336.14
Communities & Local Government,DCLG,01/11/2012,Travel and Subsistence Account,Neighbourhoods,REDFERN TRAVEL LIMITED,,Small,,2100223470,Consolidated Monthly Travel costs 30.09.2012,BD1 3AZ,782.98
Communities & Local Government,DCLG,01/11/2012,Travel and Subsistence Account,Neighbourhoods,REDFERN TRAVEL LIMITED,,Small,,2100223470,Consolidated Monthly Travel costs 30.09.2012,BD1 3AZ,"1,818.67"
Communities & Local Government,DCLG,01/11/2012,Travel and Subsistence Account,Neighbourhoods,REDFERN TRAVEL LIMITED,,Small,,2100223470,Consolidated Monthly Travel costs 30.09.2012,BD1 3AZ,"4,426.15"
Communities & Local Government,DCLG,01/11/2012,Travel and Subsistence Account,Neighbourhoods,REDFERN TRAVEL LIMITED,,Small,,2100223470,Consolidated Monthly Travel costs 30.09.2012,BD1 3AZ,"4,950.08"
Communities & Local Government,DCLG,01/11/2012,Travel and Subsistence Account,Neighbourhoods,REDFERN TRAVEL LIMITED,,Small,,2100223470,Consolidated Monthly Travel costs 30.09.2012,BD1 3AZ,"8,740.43"
Communities & Local Government,DCLG,01/11/2012,Travel and Subsistence Account,Neighbourhoods,REDFERN TRAVEL LIMITED,,Small,,2100223470,Consolidated Monthly Travel costs 30.09.2012,BD1 3AZ,"1,610.64"
Communities & Local Government,DCLG,01/11/2012,Travel and Subsistence Account,Neighbourhoods,REDFERN TRAVEL LIMITED,,Small,,2100223470,Consolidated Monthly Travel costs 30.09.2012,BD1 3AZ,"5,157.02"
Communities & Local Government,DCLG,01/11/2012,Travel and Subsistence Account,Neighbourhoods,REDFERN TRAVEL LIMITED,,Small,,2100223470,Consolidated Monthly Travel costs 30.09.2012,BD1 3AZ,"4,685.13"
Communities & Local Government,DCLG,01/11/2012,Travel and Subsistence Account,Neighbourhoods,REDFERN TRAVEL LIMITED,,Small,,2100223470,Consolidated Monthly Travel costs 30.09.2012,BD1 3AZ,"1,259.15"
Communities & Local Government,DCLG,01/11/2012,Travel and Subsistence Account,Neighbourhoods,REDFERN TRAVEL LIMITED,,Small,,2100223470,Consolidated Monthly Travel costs 30.09.2012,BD1 3AZ,407.98
Communities & Local Government,DCLG,01/11/2012,Travel and Subsistence Account,Neighbourhoods,REDFERN TRAVEL LIMITED,,Small,,2100223470,Consolidated Monthly Travel costs 30.09.2012,BD1 3AZ,"2,057.42"
Communities & Local Government,DCLG,01/11/2012,Travel and Subsistence Account,Neighbourhoods,REDFERN TRAVEL LIMITED,,Small,,2100223470,Consolidated Monthly Travel costs 30.09.2012,BD1 3AZ,"1,901.39"
Communities & Local Government,DCLG,01/11/2012,Travel and Subsistence Account,Neighbourhoods,REDFERN TRAVEL LIMITED,,Small,,2100223470,Consolidated Monthly Travel costs 30.09.2012,BD1 3AZ,"2,698.91"
Communities & Local Government,DCLG,01/11/2012,Travel and Subsistence Account,Neighbourhoods,REDFERN TRAVEL LIMITED,,Small,,2100223470,Consolidated Monthly Travel costs 30.09.2012,BD1 3AZ,"1,115.74"
Communities & Local Government,DCLG,01/11/2012,Travel and Subsistence Account,Neighbourhoods,REDFERN TRAVEL LIMITED,,Small,,2100223470,Consolidated Monthly Travel costs 30.09.2012,BD1 3AZ,"2,251.65"
Communities & Local Government,DCLG,01/11/2012,Travel and Subsistence Account,Neighbourhoods,REDFERN TRAVEL LIMITED,,Small,,2100223470,Consolidated Monthly Travel costs 30.09.2012,BD1 3AZ,"1,365.89"
Communities & Local Government,DCLG,01/11/2012,Travel and Subsistence Account,Neighbourhoods,REDFERN TRAVEL LIMITED,,Small,,2100223470,Consolidated Monthly Travel costs 30.09.2012,BD1 3AZ,"2,484.68"
Communities & Local Government,DCLG,01/11/2012,Travel and Subsistence Account,Neighbourhoods,REDFERN TRAVEL LIMITED,,Small,,2100223470,Consolidated Monthly Travel costs 30.09.2012,BD1 3AZ,712.88
Communities & Local Government,DCLG,01/11/2012,Travel and Subsistence Account,Neighbourhoods,REDFERN TRAVEL LIMITED,,Small,,2100223470,Consolidated Monthly Travel costs 30.09.2012,BD1 3AZ,"4,469.28"
Communities & Local Government,DCLG,01/11/2012,Travel and Subsistence Account,Neighbourhoods,REDFERN TRAVEL LIMITED,,Small,,2100223470,Consolidated Monthly Travel costs 30.09.2012,BD1 3AZ,705.18
Communities & Local Government,DCLG,01/11/2012,Travel and Subsistence Account,Strategic Performance Team,REDFERN TRAVEL LIMITED,,Small,,2100223470,Consolidated Monthly Travel costs 30.09.2012,BD1 3AZ,"1,193.25",
Communities & Local Government,DCLG,01/11/2012,Travel and Subsistence Account,Strategic Performance Team,REDFERN TRAVEL LIMITED,,Small,,2100223470,Consolidated Monthly Travel costs 30.09.2012,BD1 3AZ,"2,111.11",
Communities & Local Government,DCLG,01/11/2012,Travel and Subsistence Account,Troubled Families,REDFERN TRAVEL LIMITED,,Small,,2100223470,Consolidated Monthly Travel costs 30.09.2012,BD1 3AZ,"15,291.18",
Communities & Local Government,DCLG,01/11/2012,Work In Progress Pre-Cert 40373 Spend,Neighbourhoods,COMMUNITY FOUNDATION FOR LEEDS,Yes,Micro,,7600003208,ERDF Claim - 4 - P3-SY,LS1 2TE,"1,528.08",
Communities & Local Government,DCLG,01/11/2012,Work In Progress Pre-Cert 40373 Spend,Neighbourhoods,ENERGY SAVING TRUST,,,,7600003207,ERDF Claim - 4 - P2,SW1H 9BP,"152,882.20",
Communities & Local Government,DCLG,01/11/2012,Work In Progress Pre-Cert 40373 Spend,Neighbourhoods,KENT COUNTY COUNCIL,,Large,,7600003206,ERDF Claim - 22 - P1,ME14 1XQ,"27,252.64",
Communities & Local Government,DCLG,01/11/2012,Work In Progress Pre-Cert 40373 Spend,Neighbourhoods,LEEDS CITY COUNCIL,,,,7600003209,ERDF Claim - 21 - P3-YH,LS2 8BB,"16,906.32",
Communities & Local Government,DCLG,01/11/2012,Work In Progress Pre-Cert 40373 Spend,Neighbourhoods,ROTHERHAM METROPOLITAN BC,,,,7600003205,ERDF Claim - 26 - P3-SY,S65 1DJ,"6,392.54",
Communities & Local Government,DCLG,01/11/2012,Work In Progress Pre-Cert 40467 Spend,Neighbourhoods,SLEABRIDGE LTD,,Small,,7600003210,ERDF Claim - 6 - P2,TA18 7HE,"14,957.81",
Communities & Local Government,DCLG,02/11/2012,Advertising,Finance & Corporate Services,M4C-DIVISION OF GROUPM UK LTD,,Large,,5106185351,Right to Buy - Digital Services,WC1X 8RX,"10,305.13",
Communities & Local Government,DCLG,02/11/2012,Advertising,Finance & Corporate Services,M4C-DIVISION OF GROUPM UK LTD,,Large,,5106185351,Right to Buy - Non VAT,WC1X 8RX,9.99,
Communities & Local Government,DCLG,02/11/2012,Agency Staff,Finance & Corporate Services,PREMIERE EMPLOYMENT GROUP LTD,,Large,,5106185325,Recuiting temporary PA,M3 2JA,606.1,
Communities & Local Government,DCLG,02/11/2012,Current (non AEF) Grants to Local Authorities,Finance & Corporate Services,DURHAM & DARLINGTON FIRE RESCUE,,Public Bodies,,2100218681,Grant of the Regional Fire Control Centre Nov 2012,DH1 5UE,"123,141.00",Yes
Communities & Local Government,DCLG,02/11/2012,Current (non AEF) Grants to Local Authorities,Finance & Corporate Services,GREATER LONDON AUTHORITY,,Large,,2100218680,Grant of the Regional Fire Control Centre Nov 2012,SE10 1AP,"224,731.00",Yes
Communities & Local Government,DCLG,02/11/2012,Current (non AEF) Grants to Local Authorities,Finance & Corporate Services,GREATER MANCHESTER FIRE & RESCUE,,Public Bodies,,2100218679,Grant of the Regional Fire Control Centre Nov 2012,M27 8US,"146,172.60",Yes
Communities & Local Government,DCLG,02/11/2012,Current Grants to Non Profit Bodies,Localism,ENGINEERING DEVELOPEMENT TRUST (ETD,,Medium,,2100223471,Encourage Yr9 pupils to take Science & Technology,AL7 2AA,"34,500.00",Yes
Communities & Local Government,DCLG,02/11/2012,Current Grants to Non Profit Bodies,Localism,FAITH MATTERS,Yes,Small,,2100223510,EMERGENCY GRANT PAYMENT,,"32,750.00",Yes
Communities & Local Government,DCLG,02/11/2012,Current Grants to Non Profit Bodies,Neighbourhoods,CAMPAIGN TO PROTECT RURAL ENGLAND,,Medium,,2100223473,Free advice & guidance for community groups,SE1 0SW,"15,319.64",Yes
Communities & Local Government,DCLG,02/11/2012,Current Grants to Non Profit Bodies,Neighbourhoods,LOCALITY,,Medium,,2100223472,Free advice & guidance for community groups,N1 6DR,"159,951.00",Yes
Communities & Local Government,DCLG,02/11/2012,Fixed Maintenance,Finance & Corporate Services,E C HARRIS LLP,,Large,,5106185339,Bulding Survey TQH - com 40,N1 9AB,"19,425.00",
Communities & Local Government,DCLG,02/11/2012,Fixed Maintenance,Neighbourhoods,E C HARRIS LLP,,Large,,5106185355,ERDF SW LDU QS Services to Feb 14,N1 9AB,"3,278.00",
Communities & Local Government,DCLG,02/11/2012,Fixed Maintenance,Neighbourhoods,E C HARRIS LLP,,Large,,5106185357,ERDF SW LDU QS Services to Feb 14,N1 9AB,"1,045.00",
Communities & Local Government,DCLG,02/11/2012,Grant in Aid to NDPBs (non budget),Localism,VALUATION TRIBUNAL SERVICE,,,,2100223468,,E1 1DU,"539,488.00",Yes
Communities & Local Government,DCLG,02/11/2012,"IT - PC, Network & Hardware",Localism,COMPUTACENTER (UK) LTD,,Large,,5106185323,New UPS,AL10 9TW,"7,065.29",
Communities & Local Government,DCLG,02/11/2012,NNDR Outturn Adjustments,Localism,BARROW BC,,,,5000214063,Grant Payable by Exchequer,LA14 2LD,"11,755.00",Yes
Communities & Local Government,DCLG,02/11/2012,NNDR Outturn Adjustments,Localism,BATH & NORTH EAST SOMERSET DC,,,,5000214064,Grant Payable by Exchequer,BA1 5AW,"90,562.00",Yes
Communities & Local Government,DCLG,02/11/2012,NNDR Outturn Adjustments,Localism,CHILTERN DC,,,,5000214069,Grant Payable by Exchequer,HP6 5AW,"24,561.00",Yes
Communities & Local Government,DCLG,02/11/2012,NNDR Outturn Adjustments,Localism,COPELAND BC,,,,5000214072,Grant Payable by Exchequer,CA28 7NY,790,Yes
Communities & Local Government,DCLG,02/11/2012,NNDR Outturn Adjustments,Localism,DONCASTER MBC,,,,5000214074,Grant Payable by Exchequer,DN1 3QA,"974,869.00",Yes
Communities & Local Government,DCLG,02/11/2012,NNDR Outturn Adjustments,Localism,ELMBRIDGE BOROUGH COUNCIL,,,,5000214078,Grant Payable by Exchequer,KT10 9SD,"91,579.00",Yes
Communities & Local Government,DCLG,02/11/2012,NNDR Outturn Adjustments,Localism,FYLDE BC,,,,5000214079,Grant Payable by Exchequer,FY8 1LW,402,Yes
Communities & Local Government,DCLG,02/11/2012,NNDR Outturn Adjustments,Localism,LONDON BOROUGH OF NEWHAM,,Large,,5000214085,Grant Payable by Exchequer,E16 2QU,"684,327.00",Yes
Communities & Local Government,DCLG,02/11/2012,NNDR Outturn Adjustments,Localism,PORTSMOUTH CITY COUNCIL,,,,5000214087,Grant Payable by Exchequer,PO1 2AR,259,Yes
Communities & Local Government,DCLG,02/11/2012,NNDR Outturn Adjustments,Localism,REIGATE & BANSTEAD BC,,,,5000214089,Grant Payable by Exchequer,RH2 OSH,"1,025,190.00",Yes
Communities & Local Government,DCLG,02/11/2012,NNDR Outturn Adjustments,Localism,SANDWELL MBC,,,,5000214090,Grant Payable by Exchequer,B69 3BS,"186,443.00",Yes
Communities & Local Government,DCLG,02/11/2012,NNDR Outturn Adjustments,Localism,SOUTH NORTHAMPTONSHIRE DC,,,,5000214093,Grant Payable by Exchequer,NN12 7AE,"8,000.00",Yes
Communities & Local Government,DCLG,02/11/2012,NNDR Outturn Adjustments,Localism,SOUTH SOMERSET DC,,,,5000214095,Grant Payable by Exchequer,BA20 2DS,"55,766.00",Yes
Communities & Local Government,DCLG,02/11/2012,NNDR Outturn Adjustments,Localism,SOUTHEND ON SEA BC,,,,5000214096,Grant Payable by Exchequer,SS2 6EP,"54,000.00",Yes
Communities & Local Government,DCLG,02/11/2012,NNDR Outturn Adjustments,Localism,SUNDERLAND DC,,,,5000214098,Grant Payable by Exchequer,SR2 7DN,"1,921,742.00",Yes
Communities & Local Government,DCLG,02/11/2012,NNDR Outturn Adjustments,Localism,THURROCK  BOROUGH COUNCIL,,,,5000214101,Grant Payable by Exchequer,RM17 6LT,"128,230.00",Yes
Communities & Local Government,DCLG,02/11/2012,NNDR Outturn Adjustments,Localism,TOWER HAMLETS LB,,,,5000214102,Grant Payable by Exchequer,E14 2BG,"621,922.00",Yes
Communities & Local Government,DCLG,02/11/2012,Online Database Information Retrieval,Finance & Corporate Services,PRACTICAL LAW COMPANY LIMITED,,Large,,5106185331,Online database subscription,SE1 8DJ,"19,320.00",
Communities & Local Government,DCLG,02/11/2012,Online Database Information Retrieval,Finance & Corporate Services,PROQUEST INFORMATION & LEARNING,,Large,,5106185336,Serials Solutions 360 Link 2012-13,CB5 8SW,"1,609.00",
Communities & Local Government,DCLG,02/11/2012,Professional services,Localism,VALUATION OFFICE AGENCY,,Public Bodies,,2100223469,,W1B 5BU,"12,416,666.66",
Communities & Local Government,DCLG,02/11/2012,Publications,Finance & Corporate Services,JONES YARRELL LEADENHALL LTD,,Large,,5106185328,Journal and newspaper supply 2012-13,E3 3JH,345.85,
Communities & Local Government,DCLG,02/11/2012,Rates,Finance & Corporate Services,BIRMINGHAM CITY COUNCIL,,Public Bodies,,5106185343,5 SPP Annual Easement Rates 2011/12,B1 1BB,500,
Communities & Local Government,DCLG,02/11/2012,Rent,Finance & Corporate Services,PLANNING INSPECTORATE,,Public Bodies,,5106185353,Temple Quay Accom Serv Charge 12-13,BS1 6PN,"72,990.88",
Communities & Local Government,DCLG,02/11/2012,Training,Finance & Corporate Services,HM TREASURY,,,,5106185360,Intr Economics Course for Non-Economists,SW1A 2HQ,"-1,300.00",
Communities & Local Government,DCLG,02/11/2012,Training,Finance & Corporate Services,QA  LTD,,Large,,5106184833,MSP Foundation and Practitioner,LS12 6BD,-719
Communities & Local Government,DCLG,02/11/2012,Training,Finance & Corporate Services,QA  LTD,,Large,,5106185324,Agile Foundation and Practitioner (PPM),LS12 6BD,"1,312.00"
Communities & Local Government,DCLG,02/11/2012,Variable Maintenance < 15k,Finance & Corporate Services,INTERSERVE (FACILITIES MANAGEMENT),,Large,,5106185349,Eland House Pass Through Costs,BS32 4NH,"2,236.50"
Communities & Local Government,DCLG,02/11/2012,Variable Maintenance < 15k,Finance & Corporate Services,INTERSERVE (FACILITIES MANAGEMENT),,Large,,5106185349,Bridge House Pass Through Costs,BS32 4NH,898.29
Communities & Local Government,DCLG,02/11/2012,Variable Maintenance < 15k,Finance & Corporate Services,INTERSERVE (FACILITIES MANAGEMENT),,Large,,5106185349,St Philips Place Pass Through Costs,BS32 4NH,"3,324.30"
Communities & Local Government,DCLG,02/11/2012,Work In Progress Pre-Cert 40373 Spend,Neighbourhoods,GATESHEAD COUNCIL,,,,7600003211,ERDF Claim - 16 - P2,NE8 1HH,"48,653.60"
Communities & Local Government,DCLG,02/11/2012,Work In Progress Pre-Cert 40373 Spend,Neighbourhoods,NORFOLK & WAVENEY ENTERPRISE SERV'S,,Medium,,7600003215,ERDF Claim - 16 - P2,NR2 1JH,"40,120.69"
Communities & Local Government,DCLG,02/11/2012,Work In Progress Pre-Cert 40373 Spend,Neighbourhoods,SHEFFIELD CITY COUNCIL,,,,7600003219,ERDF Claim - 49 - P3-SY,S1 2SH,"37,886.47"
Communities & Local Government,DCLG,02/11/2012,Work In Progress Pre-Cert 40373 Spend,Neighbourhoods,SHEFFIELD CITY COUNCIL,,,,7600003220,ERDF Claim - 50 - P3-SY,S1 2SH,"41,043.41"
Communities & Local Government,DCLG,02/11/2012,Work In Progress Pre-Cert 40373 Spend,Neighbourhoods,TECHNOLOGY STRATEGY BOARD,,Large,,7600003214,ERDF Claim - 14 - P2,SN2 1UE,"16,627.55"
Communities & Local Government,DCLG,02/11/2012,Work In Progress Pre-Cert 40373 Spend,Neighbourhoods,WENTA,,Small,,7600003212,ERDF Claim - 7 - P2,WD24 7ND,"21,247.44"
Communities & Local Government,DCLG,02/11/2012,Work In Progress Pre-Cert 40467 Spend,Neighbourhoods,D B GILBERT PROPERTY DEVELOP INVEST,,,,7600003216,ERDF Claim - 41 - P4,PL25 4UF,"39,991.74"
Communities & Local Government,DCLG,02/11/2012,Work In Progress Pre-Cert 40467 Spend,Neighbourhoods,D B GILBERT PROPERTY DEVELOP INVEST,,,,7600003217,ERDF Claim - 42 - P4,PL25 4UF,"190,454.02"
Communities & Local Government,DCLG,02/11/2012,Work In Progress Pre-Cert 40467 Spend,Neighbourhoods,PROSPECT ESTATES LIMITED,,,,7600003218,ERDF Claim - 27 - P3-SY,LS21 1AQ,"107,769.41"
Communities & Local Government,DCLG,02/11/2012,Work In Progress Pre-Cert 40467 Spend,Neighbourhoods,TECHNOLOGY STRATEGY BOARD,,Large,,7600003213,ERDF Claim - 13 - P2,SN2 1UE,"33,368.31"
Communities & Local Government,DCLG,02/11/2012,Work In Progress Pre-Cert 40467 Spend,Neighbourhoods,TECHNOLOGY STRATEGY BOARD,,Large,,7600003214,ERDF Claim - 14 - P2,SN2 1UE,"270,212.27"
Communities & Local Government,DCLG,05/11/2012,Capital Grants to People Non Profit,Neighbourhoods,COALFIELDS REGENERATION TRUST,Yes,Small,,2100223338,CRT claim for Q3 2012/13CRT claim for Q3 2012/13,S63 7WX,"-277,250.00",Yes
Communities & Local Government,DCLG,05/11/2012,Current Grants to Non Profit Bodies,Neighbourhoods,COALFIELDS REGENERATION TRUST,Yes,Small,,2100223338,CRT claim for Q3 2012/13CRT claim for Q3 2012/13,S63 7WX,"3,095,218.00",Yes
Communities & Local Government,DCLG,05/11/2012,Management Consultancy,Neighbourhoods,CEL GROUP,,Medium,,5106185335,Payments for 1/10/12 - 30/09/13,SK13 8HT,"85,415.60",
Communities & Local Government,DCLG,05/11/2012,Office machinery consumables,Finance & Corporate Services,X M A LTD,,Large,,5106185358,Delivery  Data Products Hp Colour Laserj,NG11 7EP,305.47,
Communities & Local Government,DCLG,05/11/2012,Removals and Porterage,Finance & Corporate Services,HIGHWAYS AGENCY,,Public Bodies,,5106185370,To recover IT costs incurred by HA,B1 1RN,"4,802.08",
Communities & Local Government,DCLG,05/11/2012,Research,Finance & Corporate Services,NATIONAL CENTRE FOR SOCIAL RESEARCH,,Large,,5106185059,12/13 budget,EC1V 0AX,"292,052.29",
Communities & Local Government,DCLG,05/11/2012,Travel and Subsistence Account,Neighbourhoods,MRS T AARONS,,,,2100223512,TRAVEL EXPENSES,,316.8,
Communities & Local Government,DCLG,05/11/2012,Work In Progress Pre-Cert 40373 Spend,Neighbourhoods,CORBY BOROUGH COUNCIL,,Large,,7600003224,ERDF Claim - 19 - P2,NN17 1QB,"33,564.22",
Communities & Local Government,DCLG,05/11/2012,Work In Progress Pre-Cert 40373 Spend,Neighbourhoods,CORNWALL DEVELOPMENT COMPANY LTD,,,,7600003222,ERDF Claim - 17 - P4,TR1 1EA,"321,014.04",
Communities & Local Government,DCLG,05/11/2012,Work In Progress Pre-Cert 40373 Spend,Neighbourhoods,E-FACTOR ENTERPRISE (NEL) LIMITED,,Small,,7600003228,ERDF Claim - 18 - P3-YH,DN34 5BQ,"130,086.31",
Communities & Local Government,DCLG,05/11/2012,Work In Progress Pre-Cert 40373 Spend,Neighbourhoods,E-FACTOR ENTERPRISE (NEL) LIMITED,,Small,,7600003229,ERDF Claim - 19 - P3-YH,DN34 5BQ,"97,886.59",
Communities & Local Government,DCLG,05/11/2012,Work In Progress Pre-Cert 40373 Spend,Neighbourhoods,E-FACTOR ENTERPRISE (NEL) LIMITED,,Small,,7600003230,ERDF Claim - 17 - P3-YH,DN34 5BQ,"134,333.42",
Communities & Local Government,DCLG,05/11/2012,Work In Progress Pre-Cert 40373 Spend,Neighbourhoods,HUDDERSFIELD UNIVERISTY,,,,7600003226,ERDF Claim - 18 - P2-SY,HD1 3DH,"5,859.77",
Communities & Local Government,DCLG,05/11/2012,Work In Progress Pre-Cert 40373 Spend,Neighbourhoods,HUDDERSFIELD UNIVERISTY,,,,7600003227,ERDF Claim - 18 - P2-YH,HD1 3DH,"17,417.16",
Communities & Local Government,DCLG,05/11/2012,Work In Progress Pre-Cert 40373 Spend,Neighbourhoods,KEY FUND (STH YORKSHIRE) LTD,,,,7600003237,ERDF Claim - 6 - P3-SY,S9 3TY,"3,335.83",
Communities & Local Government,DCLG,05/11/2012,Work In Progress Pre-Cert 40373 Spend,Neighbourhoods,KEY FUND (STH YORKSHIRE) LTD,,,,7600003240,ERDF Claim - 6 - P3-YH,S9 3TY,"8,322.68",
Communities & Local Government,DCLG,05/11/2012,Work In Progress Pre-Cert 40373 Spend,Neighbourhoods,KIRKLEES COUNCIL,,,,7600003238,ERDF Claim - 30 - P3-YH,HD1 2TG,"8,550.93"
Communities & Local Government,DCLG,05/11/2012,Work In Progress Pre-Cert 40373 Spend,Neighbourhoods,KIRKLEES COUNCIL,,,,7600003239,ERDF Claim - 30 - P3-SY,HD1 2TG,"22,482.56"
Communities & Local Government,DCLG,05/11/2012,Work In Progress Pre-Cert 40373 Spend,Neighbourhoods,LEEDS CITY COLLEGE,,,,7600003231,ERDF Claim - 25 - P2-SY,LS3 1AA,"33,735.70"
Communities & Local Government,DCLG,05/11/2012,Work In Progress Pre-Cert 40373 Spend,Neighbourhoods,LEEDS CITY COLLEGE,,,,7600003232,ERDF Claim - 25 - P2-YH,LS3 1AA,"51,057.46"
Communities & Local Government,DCLG,05/11/2012,Work In Progress Pre-Cert 40373 Spend,Neighbourhoods,MIDLANDS AEROSPACE ALLIANCE LTD,,Small,,7600003225,ERDF Claim - 38 - P1,CV3 2TX,"67,154.54"
Communities & Local Government,DCLG,05/11/2012,Work In Progress Pre-Cert 40373 Spend,Neighbourhoods,OXFORD INNOVATION SERVICES LTD,,Medium,,7600003221,ERDF Claim - 3 - P2,OX1 1BY,"547,946.81"
Communities & Local Government,DCLG,05/11/2012,Work In Progress Pre-Cert 40373 Spend,Neighbourhoods,PRINCES TRUST,,Large,,7600003242,ERDF Claim - 8 - P3-YH,LS2 8NG,"10,187.91"
Communities & Local Government,DCLG,05/11/2012,Work In Progress Pre-Cert 40373 Spend,Neighbourhoods,PRINCES TRUST,,Large,,7600003243,ERDF Claim - 8 - P3-SY,LS2 8NG,"3,667.07"
Communities & Local Government,DCLG,05/11/2012,Work In Progress Pre-Cert 40373 Spend,Neighbourhoods,ROTHERHAM METROPOLITAN BC,,,,7600003233,ERDF Claim - 28 - P3-SY,S65 1DJ,"13,689.17"
Communities & Local Government,DCLG,05/11/2012,Work In Progress Pre-Cert 40373 Spend,Neighbourhoods,ROTHERHAM METROPOLITAN BC,,,,7600003244,ERDF Claim - 27 - P3-SY,S65 1DJ,"23,133.51"
Communities & Local Government,DCLG,05/11/2012,Work In Progress Pre-Cert 40373 Spend,Neighbourhoods,SOLIHULL METROPOLITAN BC,,Large,,7600003241,ERDF Claim - 20 - P3,B91 3QS,"4,459.27"
Communities & Local Government,DCLG,05/11/2012,Work In Progress Pre-Cert 40373 Spend,Neighbourhoods,UNIVERSITY OF SHEFFIELD,,,,7600003234,ERDF Claim - 26 - P1-YH,S60 5TZ,"37,319.76"
Communities & Local Government,DCLG,05/11/2012,Work In Progress Pre-Cert 40373 Spend,Neighbourhoods,UNIVERSITY OF SHEFFIELD,,,,7600003245,ERDF Claim - 26 - P1-SY,S60 5TZ,"71,647.46"
Communities & Local Government,DCLG,05/11/2012,Work In Progress Pre-Cert 40467 Spend,Neighbourhoods,DONCASTER METROPOLITAN BC,,,,7600003236,ERDF Claim - 18 - P4-SY,DN1 1DE,"54,142.18"
Communities & Local Government,DCLG,05/11/2012,Work In Progress Pre-Cert 40467 Spend,Neighbourhoods,KIRKLEES COUNCIL,,,,7600003238,ERDF Claim - 30 - P3-YH,HD1 2TG,"187,667.86"
Communities & Local Government,DCLG,05/11/2012,Work In Progress Pre-Cert 40467 Spend,Neighbourhoods,LEICESTER CITY COUNCIL,,Large,,7600003223,ERDF Claim - 7 - P2,LE1 6ZG,"167,520.52"
Communities & Local Government,DCLG,05/11/2012,Work In Progress Pre-Cert 40467 Spend,Neighbourhoods,PRACTICAL DEVELOPMENTS (SOUTH WEST),,,,7600003235,ERDF Claim - 38 - P4,TR15 1SS,"95,133.94"
Communities & Local Government,DCLG,05/11/2012,Work In Progress Pre-Cert 40467 Spend,Neighbourhoods,SOLIHULL METROPOLITAN BC,,Large,,7600003241,ERDF Claim - 20 - P3,B91 3QS,"56,870.95"
Communities & Local Government,DCLG,06/11/2012,Accommodation Service Charges,Finance & Corporate Services,CB RICHARD ELLIS,,Large,,5106185448,EM Caste Donnington S/C 2012-13.,B3 2DT,266.4
Communities & Local Government,DCLG,06/11/2012,Accommodation Service Charges,Finance & Corporate Services,DTZ DEBENHAM TIE LEUNG,,Large,,5106185462,Serv Chg 01/07/12 to 30/06/13,B4 6AJ,"1,234.41"
Communities & Local Government,DCLG,06/11/2012,Agency Staff,Finance & Corporate Services,CAPITA RESOURCING LTD,,Large,,5106185380,Interim Manager,SL6 1DP,"2,520.00"
Communities & Local Government,DCLG,06/11/2012,Agency Staff,Finance & Corporate Services,CAPITA RESOURCING LTD,,Large,,5106185387,Interim Manager,SL6 1DP,"3,300.00"
Communities & Local Government,DCLG,06/11/2012,Agency Staff,Finance & Corporate Services,CAPITA RESOURCING LTD,,Large,,5106185398,Interim manager,SL6 1DP,"5,316.12"
Communities & Local Government,DCLG,06/11/2012,Agency Staff,Finance & Corporate Services,CAPITA RESOURCING LTD,,Large,,5106185405,Interim HR Business Partner,SL6 1DP,"2,305.80"
Communities & Local Government,DCLG,06/11/2012,Agency Staff,Finance & Corporate Services,CAPITA RESOURCING LTD,,Large,,5106185416,CPD 0492030 Capita MSP,SL6 1DP,664.48
Communities & Local Government,DCLG,06/11/2012,Agency Staff,Finance & Corporate Services,SBS GROUP (UK) LTD,,Large,,5106185388,Contractor Business Support Team P2P,EC1N 8TS,"3,192.00"
Communities & Local Government,DCLG,06/11/2012,Agency Staff,Finance & Corporate Services,SBS GROUP (UK) LTD,,Large,,5106185401,SAP Technical Suport Sept to Mar2012,EC1N 8TS,"5,850.90"
Communities & Local Government,DCLG,06/11/2012,Agency Staff,Finance & Corporate Services,SQUARE ONE RESOURCES LTD,,Medium,,5106185374,SAPDev 1.4.12-31.3.13,EC2A 2AD,"2,858.82"
Communities & Local Government,DCLG,06/11/2012,Agency Staff,Localism,CAPITA RESOURCING LTD,,Large,,5106185390,Interim manager,SL6 1DP,"1,903.97"
Communities & Local Government,DCLG,06/11/2012,Agency Staff,Localism,CAPITA RESOURCING LTD,,Large,,5106185418,Interim manager,SL6 1DP,"4,657.50"
Communities & Local Government,DCLG,06/11/2012,Agency Staff,Localism,CAPITA RESOURCING LTD,,Large,,5106185425,Extension (3),SL6 1DP,"1,729.38"
Communities & Local Government,DCLG,06/11/2012,Agency Staff,Neighbourhoods,CAPITA RESOURCING LTD,,Large,,5106185384,Interim manager,SL6 1DP,"2,882.22"
Communities & Local Government,DCLG,06/11/2012,Agency Staff,Neighbourhoods,CAPITA RESOURCING LTD,,Large,,5106185395,Extension (1),SL6 1DP,"2,895.78"
Communities & Local Government,DCLG,06/11/2012,Agency Staff,Neighbourhoods,CAPITA RESOURCING LTD,,Large,,5106185397,Extension (1),SL6 1DP,"2,895.78"
Communities & Local Government,DCLG,06/11/2012,Agency Staff,Neighbourhoods,CAPITA RESOURCING LTD,,Large,,5106185400,Extension (1),SL6 1DP,"2,895.78"
Communities & Local Government,DCLG,06/11/2012,Agency Staff,Neighbourhoods,CAPITA RESOURCING LTD,,Large,,5106185404,Expenses,SL6 1DP,174.43
Communities & Local Government,DCLG,06/11/2012,Agency Staff,Neighbourhoods,CAPITA RESOURCING LTD,,Large,,5106185404,Interim Manager,SL6 1DP,"2,065.69"
Communities & Local Government,DCLG,06/11/2012,Agency Staff,Neighbourhoods,CAPITA RESOURCING LTD,,Large,,5106185408,CPD 0492030 Capita MSP,SL6 1DP,36.72
Communities & Local Government,DCLG,06/11/2012,Agency Staff,Neighbourhoods,CAPITA RESOURCING LTD,,Large,,5106185408,DayRate ERREG2 Seas-Territorial,SL6 1DP,626.4
Communities & Local Government,DCLG,06/11/2012,Agency Staff,Neighbourhoods,CAPITA RESOURCING LTD,,Large,,5106185411,Extension (1),SL6 1DP,"2,895.78"
Communities & Local Government,DCLG,06/11/2012,Agency Staff,Neighbourhoods,CAPITA RESOURCING LTD,,Large,,5106185414,Extension (3),SL6 1DP,"3,056.64"
Communities & Local Government,DCLG,06/11/2012,Agency Staff,Neighbourhoods,CAPITA RESOURCING LTD,,Large,,5106185415,Extension (2),SL6 1DP,"13,671.00"
Communities & Local Government,DCLG,06/11/2012,Agency Staff,Neighbourhoods,CAPITA RESOURCING LTD,,Large,,5106185421,Extension (3),SL6 1DP,"3,056.64"
Communities & Local Government,DCLG,06/11/2012,Agency Staff,Neighbourhoods,CAPITA RESOURCING LTD,,Large,,5106185422,Contractor ERDF,SL6 1DP,"1,566.00"
Communities & Local Government,DCLG,06/11/2012,Agency Staff,Neighbourhoods,CAPITA RESOURCING LTD,,Large,,5106185422,Contractor ERDF Expenses,SL6 1DP,353.16
Communities & Local Government,DCLG,06/11/2012,Agency Staff,Neighbourhoods,CAPITA RESOURCING LTD,,Large,,5106185427,Extension (3),SL6 1DP,"3,056.64"
Communities & Local Government,DCLG,06/11/2012,Agency Staff,Neighbourhoods,CAPITA RESOURCING LTD,,Large,,5106185431,DayRate INTERREG 2Seas-Territorial Facil,SL6 1DP,776.09
Communities & Local Government,DCLG,06/11/2012,Agency Staff,Neighbourhoods,CAPITA RESOURCING LTD,,Large,,5106185431,Expenses INTERREG 2Seas-Territorial Faci,SL6 1DP,59.4
Communities & Local Government,DCLG,06/11/2012,Agency Staff,Neighbourhoods,CAPITA RESOURCING LTD,,Large,,5106185433,Extension (1),SL6 1DP,"2,574.00",
Communities & Local Government,DCLG,06/11/2012,Agency Staff,Neighbourhoods,CAPITA RESOURCING LTD,,Large,,5106185434,Extension (1),SL6 1DP,"1,930.50",
Communities & Local Government,DCLG,06/11/2012,Agency Staff,Neighbourhoods,CAPITA RESOURCING LTD,,Large,,5106185435,Interim Manager,SL6 1DP,"2,767.08",
Communities & Local Government,DCLG,06/11/2012,Agency Staff,Troubled Families,CAPITA RESOURCING LTD,,Large,,5106185392,Interim Areas Manager,SL6 1DP,"2,100.00",
Communities & Local Government,DCLG,06/11/2012,Current Grants to Non Profit Bodies,Neighbourhoods,PRINCES FOUNDATION,,,,2100223619,Provision of advice and quidance to community,EC2A 3SG,"74,876.90",Yes
Communities & Local Government,DCLG,06/11/2012,Finance Consultancy,Neighbourhoods,MAZARS LLP,,Large,,5106185340,Project Verification Audits,LS27 7JN,"21,822.01",
Communities & Local Government,DCLG,06/11/2012,IT - Service Contracts,Finance & Corporate Services,STERIA LIMITED,,Large,,5106185381,CAN 61 MFD (Regional Offices),M14 0WN,"17,675.99",
Communities & Local Government,DCLG,06/11/2012,IT - Service Contracts,Finance & Corporate Services,STERIA LIMITED,,Large,,5106185419,MFDs for ElandHouse usage,M14 0WN,"5,668.48",
Communities & Local Government,DCLG,06/11/2012,IT - Service Contracts,Finance & Corporate Services,STERIA LIMITED,,Large,,5106185423,MFDs for ElandHouse usage,M14 0WN,"6,611.31",
Communities & Local Government,DCLG,06/11/2012,IT - Service Contracts,Finance & Corporate Services,STERIA LIMITED,,Large,,5106185424,MFDs for ElandHouse usage,M14 0WN,"3,934.06",
Communities & Local Government,DCLG,06/11/2012,IT - Service Contracts,Finance & Corporate Services,STERIA LIMITED,,Large,,5106185473,MFDs for ElandHouse usage,M14 0WN,"7,963.50",
Communities & Local Government,DCLG,06/11/2012,IT - Service Contracts,Finance & Corporate Services,STERIA LIMITED,,Large,,5106185475,MFDs for ElandHouse usage,M14 0WN,"6,973.79",
Communities & Local Government,DCLG,06/11/2012,IT - Service Contracts,Neighbourhoods,BREEZE IT LIMITED,,Micro,,5106185256,MIS Quarterly Support,NG14 6EA,"3,000.00",
Communities & Local Government,DCLG,06/11/2012,Management Consultancy,Neighbourhoods,GRANT THORNTON UK LLP,,Large,,5106185206,Review of the NW Business Fund Plan,NW1 2EP,"22,800.00",
Communities & Local Government,DCLG,06/11/2012,Office Machinery (<5000),Finance & Corporate Services,DANWOOD GROUP LTD,,Large,,2100223655,20%ASD Copier Rental - Konica C450  2,LN6 3DG,"-1,298.75",
Communities & Local Government,DCLG,06/11/2012,Office Machinery (<5000),Finance & Corporate Services,DANWOOD GROUP LTD,,Large,,5106185444,20%ASD Copier Rental - Konica C450  2,LN6 3DG,"1,298.75",
Communities & Local Government,DCLG,06/11/2012,Printing,Finance & Corporate Services,STATIONERY OFFICE LTD,,Large,,5106185337,Fire GRA publishing services,NR3 1PD,"8,753.08"
Communities & Local Government,DCLG,06/11/2012,Professional services,Neighbourhoods,BUILDING RESEARCH ESTABLISHMENT,,Large,,5106185450,Code for Apr11 - Mar13 - MILESTONES,WD25 9XX,"1,195.20"
Communities & Local Government,DCLG,06/11/2012,Professional services,Neighbourhoods,BUILDING RESEARCH ESTABLISHMENT,,Large,,5106185452,Code for Apr11 - Mar13 - CALLOFF ELEMENT,WD25 9XX,40.97
Communities & Local Government,DCLG,06/11/2012,Professional services,Neighbourhoods,BUILDING RESEARCH ESTABLISHMENT,,Large,,5106185452,Code for Apr11 - Mar13 - MILESTONES,WD25 9XX,705.6
Communities & Local Government,DCLG,06/11/2012,Publicity,Finance & Corporate Services,PRESS ASSOCIATION,,Large,,5106185471,Info for Media point business 12313,DN14 7YH,"1,205.03"
Communities & Local Government,DCLG,06/11/2012,Rent,Finance & Corporate Services,DTZ DEBENHAM TIE LEUNG,,Large,,5106185462,Rent 01/07/12 to 13/02/13,B4 6AJ,"8,602.02"
Communities & Local Government,DCLG,06/11/2012,Rent,Finance & Corporate Services,DTZ DEBENHAM TIE LEUNG,,Large,,5106185462,Rent 14/02/13 to 30/06/13,B4 6AJ,"5,846.56"
Communities & Local Government,DCLG,06/11/2012,Training,Finance & Corporate Services,CAPITA BUSINESS SERVICES LTD,,Large,,5106185344,CSL Training - policy skills,DL1 9HN,"2,375.00"
Communities & Local Government,DCLG,06/11/2012,Vehicle hire,Finance & Corporate Services,GOVERNMENT CAR & DESPATCH AGENCY,,Public Bodies,,5106185237,Ministerial Cars,SW8 5AX,"1,146.00"
Communities & Local Government,DCLG,06/11/2012,Vehicle hire,Finance & Corporate Services,GOVERNMENT CAR & DESPATCH AGENCY,,Public Bodies,,5106185238,Ministerial Cars,SW8 5AX,853.5
Communities & Local Government,DCLG,06/11/2012,Vehicle Maintenance,Localism,BABCOCK CRITICAL SERVICES LTD,,Large,,5106185393,Planned Vehicle Maintenance 12/13,NG15 0DR,"629,535.82"
Communities & Local Government,DCLG,06/11/2012,Work In Progress Pre-Cert 40373 Spend,Neighbourhoods,ACCESS TO BUSINESS,,Small,,7600003261,ERDF Claim - 4 - P2,WV2 1AA,"30,706.80"
Communities & Local Government,DCLG,06/11/2012,Work In Progress Pre-Cert 40373 Spend,Neighbourhoods,ASTON UNIVERSITY,,Large,,7600003259,ERDF Claim - 13 - P1,B4 7ET,"30,603.88"
Communities & Local Government,DCLG,06/11/2012,Work In Progress Pre-Cert 40373 Spend,Neighbourhoods,BIRMINGHAM CITY COUNCIL (NOT RATES),,Large,,7600003247,ERDF Claim - 24 - P2,B1 1BB,"2,060.20"
Communities & Local Government,DCLG,06/11/2012,Work In Progress Pre-Cert 40373 Spend,Neighbourhoods,BIRMINGHAM CITY COUNCIL (NOT RATES),,Large,,7600003250,ERDF Claim - 2 - P3,B1 1BB,"6,242.25"
Communities & Local Government,DCLG,06/11/2012,Work In Progress Pre-Cert 40373 Spend,Neighbourhoods,BIRMINGHAM CITY COUNCIL (NOT RATES),,Large,,7600003254,ERDF Claim - 3 - P3,B1 1BB,"8,822.24"
Communities & Local Government,DCLG,06/11/2012,Work In Progress Pre-Cert 40373 Spend,Neighbourhoods,BIRMINGHAM CITY COUNCIL (NOT RATES),,Large,,7600003260,ERDF Claim - 3 - P3,B1 1BB,"6,461.20"
Communities & Local Government,DCLG,06/11/2012,Work In Progress Pre-Cert 40373 Spend,Neighbourhoods,BIRMINGHAM SCIENCE PARK ASTON,,Small,,7600003256,ERDF Claim - 24 - P1,B7 4BB,"9,561.27"
Communities & Local Government,DCLG,06/11/2012,Work In Progress Pre-Cert 40373 Spend,Neighbourhoods,COVENTRY UNIVERSITY ENTERPRISES LTD,,Medium,,7600003251,ERDF Claim - 21 - P1,CV1 2TT,"10,024.80"
Communities & Local Government,DCLG,06/11/2012,Work In Progress Pre-Cert 40373 Spend,Neighbourhoods,COVENTRY UNIVERSITY ENTERPRISES LTD,,Medium,,7600003255,ERDF Claim - 16 - P2,CV1 2TT,"87,471.60"
Communities & Local Government,DCLG,06/11/2012,Work In Progress Pre-Cert 40373 Spend,Neighbourhoods,DERBY CITY COUNCIL,,Large,,7600003248,ERDF Claim - 10 - P2,DE1 2FE,132.51
Communities & Local Government,DCLG,06/11/2012,Work In Progress Pre-Cert 40373 Spend,Neighbourhoods,HEART OF ENGLAND FINE FOODS,,Small,,7600003265,ERDF Claim - 6 - P2,SY1 3TG,"23,953.32"
Communities & Local Government,DCLG,06/11/2012,Work In Progress Pre-Cert 40373 Spend,Neighbourhoods,HERITAGE TRUST OF LINCOLNSHIRE,,Small,,7600003274,ERDF Claim - 7 - P2,NG34 9RW,"1,067.76"
Communities & Local Government,DCLG,06/11/2012,Work In Progress Pre-Cert 40373 Spend,Neighbourhoods,INTERNATIONAL SYNERGIES LTD,,Small,,7600003257,ERDF Claim - 31 - P2,B30 3ES,"17,449.37"
Communities & Local Government,DCLG,06/11/2012,Work In Progress Pre-Cert 40373 Spend,Neighbourhoods,LEICESTER CITY COUNCIL,,Large,,7600003252,ERDF Claim - 9 - P2,LE1 6ZG,"19,589.06"
Communities & Local Government,DCLG,06/11/2012,Work In Progress Pre-Cert 40373 Spend,Neighbourhoods,LOUGHBOROUGH UNIVERSITY,,Large,,7600003258,ERDF Claim - 3 - P1,LE11 3TU,"2,135.50"
Communities & Local Government,DCLG,06/11/2012,Work In Progress Pre-Cert 40373 Spend,Neighbourhoods,PRINCES TRUST,,Medium,,7600003267,ERDF Claim - 9 - P2,B9 4AA,"9,908.57"
Communities & Local Government,DCLG,06/11/2012,Work In Progress Pre-Cert 40373 Spend,Neighbourhoods,PRINCES TRUST,,Medium,,7600003273,ERDF Claim - 11 - P2,B9 4AA,"5,494.91"
Communities & Local Government,DCLG,06/11/2012,Work In Progress Pre-Cert 40373 Spend,Neighbourhoods,SANDWELL MBC,,Large,,7600003246,ERDF Claim - 17 - P3,B69 3BS,"7,046.89"
Communities & Local Government,DCLG,06/11/2012,Work In Progress Pre-Cert 40373 Spend,Neighbourhoods,SHROPSHIRE COUNCIL,,Public Bodies,,7600003249,ERDF Claim - 13 - P2,SY2 6ND,"2,518.91"
Communities & Local Government,DCLG,06/11/2012,Work In Progress Pre-Cert 40373 Spend,Neighbourhoods,SOLIHULL METROPOLITAN BC,,Large,,7600003262,ERDF Claim - 15 - P3,B91 3QS,"6,577.50"
Communities & Local Government,DCLG,06/11/2012,Work In Progress Pre-Cert 40373 Spend,Neighbourhoods,SOLIHULL METROPOLITAN BC,,Large,,7600003263,ERDF Claim - 18 - P2,B91 3QS,"7,593.12"
Communities & Local Government,DCLG,06/11/2012,Work In Progress Pre-Cert 40373 Spend,Neighbourhoods,STOKE-ON-TRENT CITY COUNCIL,,Large,,7600003268,ERDF Claim - 16 - P3,ST4 1HP,"4,102.30"
Communities & Local Government,DCLG,06/11/2012,Work In Progress Pre-Cert 40373 Spend,Neighbourhoods,STOKE-ON-TRENT CITY COUNCIL,,Large,,7600003269,ERDF Claim - 17 - P3,ST4 1HP,"4,081.02"
Communities & Local Government,DCLG,06/11/2012,Work In Progress Pre-Cert 40373 Spend,Neighbourhoods,STOKE-ON-TRENT CITY COUNCIL,,Large,,7600003270,ERDF Claim - 18 - P3,ST4 1HP,"6,418.82"
Communities & Local Government,DCLG,06/11/2012,Work In Progress Pre-Cert 40373 Spend,Neighbourhoods,STOKE-ON-TRENT CITY COUNCIL,,Large,,7600003271,ERDF Claim - 19 - P3,ST4 1HP,"8,526.82"
Communities & Local Government,DCLG,06/11/2012,Work In Progress Pre-Cert 40373 Spend,Neighbourhoods,UNIVERSITY OF WARWICK,,Large,,7600003266,ERDF Claim - 25 - P1,CV4 8UW,"18,056.55"
Communities & Local Government,DCLG,06/11/2012,Work In Progress Pre-Cert 40373 Spend,Neighbourhoods,UNIVERSITY OF WOLVERHAMPTON,,Large,,7600003264,ERDF Claim - 18 - P1,WV1 1SB,"8,942.21"
Communities & Local Government,DCLG,06/11/2012,Work In Progress Pre-Cert 40467 Spend,Neighbourhoods,DEPT FOR BUSINESS INNOVATION & SKIL,,,,7600003272,ERDF Claim - 34 - P2,SW1H 0ET,"750,000.00"
Communities & Local Government,DCLG,06/11/2012,Work In Progress Pre-Cert 40467 Spend,Neighbourhoods,DERBY CITY COUNCIL,,Large,,7600003248,ERDF Claim - 10 - P2,DE1 2FE,"245,996.91"
Communities & Local Government,DCLG,06/11/2012,Work In Progress Pre-Cert 40467 Spend,Neighbourhoods,HERITAGE TRUST OF LINCOLNSHIRE,,Small,,7600003274,ERDF Claim - 7 - P2,NG34 9RW,"85,137.86"
Communities & Local Government,DCLG,06/11/2012,Work In Progress Pre-Cert 40467 Spend,Neighbourhoods,LEICESTER CITY COUNCIL,,Large,,7600003275,ERDF Claim - 6 - P2,LE1 6ZG,"753,520.68"
Communities & Local Government,DCLG,06/11/2012,Work In Progress Pre-Cert 40467 Spend,Neighbourhoods,PRINCES TRUST,,Medium,,7600003267,ERDF Claim - 9 - P2,B9 4AA,"54,225.00"
Communities & Local Government,DCLG,06/11/2012,Work In Progress Pre-Cert 40467 Spend,Neighbourhoods,PRINCES TRUST,,Medium,,7600003273,ERDF Claim - 11 - P2,B9 4AA,"31,050.00"
Communities & Local Government,DCLG,06/11/2012,Work In Progress Pre-Cert 40467 Spend,Neighbourhoods,SANDWELL MBC,,Large,,7600003246,ERDF Claim - 17 - P3,B69 3BS,"121,528.03"
Communities & Local Government,DCLG,06/11/2012,Work In Progress Pre-Cert 40467 Spend,Neighbourhoods,SHROPSHIRE COUNCIL,,Public Bodies,,7600003249,ERDF Claim - 13 - P2,SY2 6ND,"13,581.31"
Communities & Local Government,DCLG,06/11/2012,Work In Progress Pre-Cert 40467 Spend,Neighbourhoods,SOLIHULL METROPOLITAN BC,,Large,,7600003262,ERDF Claim - 15 - P3,B91 3QS,"18,451.36"
Communities & Local Government,DCLG,06/11/2012,Work In Progress Pre-Cert 40467 Spend,Neighbourhoods,STOKE-ON-TRENT CITY COUNCIL,,Large,,7600003268,ERDF Claim - 16 - P3,ST4 1HP,"4,363.36"
Communities & Local Government,DCLG,06/11/2012,Work In Progress Pre-Cert 40467 Spend,Neighbourhoods,STOKE-ON-TRENT CITY COUNCIL,,Large,,7600003269,ERDF Claim - 17 - P3,ST4 1HP,"17,913.70",
Communities & Local Government,DCLG,06/11/2012,Work In Progress Pre-Cert 40467 Spend,Neighbourhoods,STOKE-ON-TRENT CITY COUNCIL,,Large,,7600003270,ERDF Claim - 18 - P3,ST4 1HP,"6,135.34",
Communities & Local Government,DCLG,06/11/2012,Work In Progress Pre-Cert 40467 Spend,Neighbourhoods,STOKE-ON-TRENT CITY COUNCIL,,Large,,7600003271,ERDF Claim - 19 - P3,ST4 1HP,"26,058.70",
Communities & Local Government,DCLG,06/11/2012,Work In Progress Pre-Cert 40467 Spend,Neighbourhoods,UNIVERSITY OF WARWICK,,Large,,7600003266,ERDF Claim - 25 - P1,CV4 8UW,"393,329.28",
Communities & Local Government,DCLG,07/11/2012,Accommodation Service Charges,Finance & Corporate Services,HSBC BANK PENSION TRUSTEES (UK) LTD,,Large,,5106185537,Westbrook Suite 10  2012/13 Ins,W15 3HQ,639.64,
Communities & Local Government,DCLG,07/11/2012,Accommodation Service Charges,Finance & Corporate Services,HSBC BANK PENSION TRUSTEES (UK) LTD,,Large,,5106185540,Westbrook Suite 9  2012/13 Insurance,W15 3HQ,302.74,
Communities & Local Government,DCLG,07/11/2012,Agency Staff,Finance & Corporate Services,CAPITA RESOURCING LTD,,Large,,5106185402,Interim Manager,SL6 1DP,"3,300.00",
Communities & Local Government,DCLG,07/11/2012,Agency Staff,Finance & Corporate Services,OFFICE ANGELS LTD,,Large,,5106185385,Temporary HR Admin Resource,B37 7YE,295.12,
Communities & Local Government,DCLG,07/11/2012,Agency Staff,Finance & Corporate Services,PREMIERE EMPLOYMENT GROUP LTD,,Large,,5106185507,Recuiting temporary PA,M3 2JA,622.93,
Communities & Local Government,DCLG,07/11/2012,Courier Services,Finance & Corporate Services,INTERSERVE (FACILITIES MANAGEMENT),,Large,,5106185542,Eland Mail 2012-13,BS32 4NH,"7,886.12",
Communities & Local Government,DCLG,07/11/2012,Current (non AEF) Grants to Local Authorities,Neighbourhoods,BURY MBC(B/R),,,,2100223067,2012-13 - General GLA Grant,BL9 0SW,"20,000.00",Yes
Communities & Local Government,DCLG,07/11/2012,Current (non AEF) Grants to Local Authorities,Neighbourhoods,BURY MBC(B/R),,,,2100223684,2012-13 - General GLA Grant,BL9 0SW,"-20,000.00",Yes
Communities & Local Government,DCLG,07/11/2012,Current Grants to Non Profit Bodies,Localism,*BUSINESS IN THE COMMUNITY,,Large,,2100223654,Yr2 grant for the Enterprise Challenge,N1 7RQ,"140,000.00",Yes
Communities & Local Government,DCLG,07/11/2012,Current Grants to Non Profit Bodies,Neighbourhoods,R T P I,,Medium,,2100223620,Provision of advice and quidance to community,EC3R 8DL,"147,925.00",Yes
Communities & Local Government,DCLG,07/11/2012,Domestic Services,Finance & Corporate Services,INTERSERVE (FACILITIES MANAGEMENT),,Large,,5106185542,Eland Cleaning 2012-13,BS32 4NH,"27,469.95",
Communities & Local Government,DCLG,07/11/2012,Domestic Services,Finance & Corporate Services,INTERSERVE (FACILITIES MANAGEMENT),,Large,,5106185542,Hemel Cleaning 2012-13,BS32 4NH,"2,185.31",
Communities & Local Government,DCLG,07/11/2012,Domestic Services,Finance & Corporate Services,INTERSERVE (FACILITIES MANAGEMENT),,Large,,5106185542,Mast House Cleaning 2012-13,BS32 4NH,"1,342.90"
Communities & Local Government,DCLG,07/11/2012,Domestic Services,Finance & Corporate Services,INTERSERVE (FACILITIES MANAGEMENT),,Large,,5106185542,Bridge House Cleaning 2012-13,BS32 4NH,"3,029.46"
Communities & Local Government,DCLG,07/11/2012,Domestic Services,Finance & Corporate Services,INTERSERVE (FACILITIES MANAGEMENT),,Large,,5106185542,Citygate Cleaning 2012-13,BS32 4NH,"3,046.41"
Communities & Local Government,DCLG,07/11/2012,Domestic Services,Finance & Corporate Services,INTERSERVE (FACILITIES MANAGEMENT),,Large,,5106185542,Queens Street Cleaning 2012-13,BS32 4NH,"2,566.06"
Communities & Local Government,DCLG,07/11/2012,Domestic Services,Finance & Corporate Services,INTERSERVE (FACILITIES MANAGEMENT),,Large,,5106185542,St Philips Place Cleaning 2012-13,BS32 4NH,"6,808.15"
Communities & Local Government,DCLG,07/11/2012,Domestic Services,Finance & Corporate Services,INTERSERVE (FACILITIES MANAGEMENT),,Large,,5106185542,Paradise Circus Cleaning 2012-13,BS32 4NH,"3,114.09"
Communities & Local Government,DCLG,07/11/2012,Electricity,Finance & Corporate Services,EDF ENERGY 1 LIMITED,,Large,,5106185501,Y&H Wakefield Electricity - 2012-13,PL3 5XQ,"5,598.78"
Communities & Local Government,DCLG,07/11/2012,Electricity,Finance & Corporate Services,EDF ENERGY 1 LIMITED,,Large,,5106185504,WM Wolverhampton Electricity - 2012-13,PL3 5XQ,"5,284.00"
Communities & Local Government,DCLG,07/11/2012,Electricity,Finance & Corporate Services,EDF ENERGY 1 LIMITED,,Large,,5106185505,Eland House Electricity 2012-13,PL3 5XQ,"34,417.03"
Communities & Local Government,DCLG,07/11/2012,Electricity,Finance & Corporate Services,EDF ENERGY 1 LIMITED,,Large,,5106185508,Rivergate Electricity 2012-13,PL3 5XQ,"7,320.55"
Communities & Local Government,DCLG,07/11/2012,Electricity,Finance & Corporate Services,EDF ENERGY 1 LIMITED,,Large,,5106185509,SW Taunton Electricity - 2012-13,PL3 5XQ,"5,217.32"
Communities & Local Government,DCLG,07/11/2012,Facilities Management (ISD use only),Finance & Corporate Services,INTERSERVE (FACILITIES MANAGEMENT),,Large,,5106185542,Eland Off site management 2012-13,BS32 4NH,"13,200.27"
Communities & Local Government,DCLG,07/11/2012,Facilities Management (ISD use only),Finance & Corporate Services,INTERSERVE (FACILITIES MANAGEMENT),,Large,,5106185542,Eland Reception 2012-13,BS32 4NH,"4,902.61"
Communities & Local Government,DCLG,07/11/2012,Facilities Management (ISD use only),Finance & Corporate Services,INTERSERVE (FACILITIES MANAGEMENT),,Large,,5106185542,Hemel Off Site Mngmt 2012-13,BS32 4NH,"1,042.16"
Communities & Local Government,DCLG,07/11/2012,Facilities Management (ISD use only),Finance & Corporate Services,INTERSERVE (FACILITIES MANAGEMENT),,Large,,5106185542,Mast House Off site management 2012-13,BS32 4NH,944.02
Communities & Local Government,DCLG,07/11/2012,Facilities Management (ISD use only),Finance & Corporate Services,INTERSERVE (FACILITIES MANAGEMENT),,Large,,5106185542,Bridge House Off site mngt 2012-13,BS32 4NH,"2,058.49"
Communities & Local Government,DCLG,07/11/2012,Facilities Management (ISD use only),Finance & Corporate Services,INTERSERVE (FACILITIES MANAGEMENT),,Large,,5106185542,Bridge House On site mngt 2012-13,BS32 4NH,"3,611.43"
Communities & Local Government,DCLG,07/11/2012,Facilities Management (ISD use only),Finance & Corporate Services,INTERSERVE (FACILITIES MANAGEMENT),,Large,,5106185542,Citygate Off Site Management 2012-13,BS32 4NH,"3,497.77"
Communities & Local Government,DCLG,07/11/2012,Facilities Management (ISD use only),Finance & Corporate Services,INTERSERVE (FACILITIES MANAGEMENT),,Large,,5106185542,Citygate On Site Management 2012-13,BS32 4NH,"2,493.40"
Communities & Local Government,DCLG,07/11/2012,Facilities Management (ISD use only),Finance & Corporate Services,INTERSERVE (FACILITIES MANAGEMENT),,Large,,5106185542,Citygate Reception 2012-13,BS32 4NH,"1,589.29"
Communities & Local Government,DCLG,07/11/2012,Facilities Management (ISD use only),Finance & Corporate Services,INTERSERVE (FACILITIES MANAGEMENT),,Large,,5106185542,Queens Street Off site mngmt 2012-13,BS32 4NH,"1,894.93"
Communities & Local Government,DCLG,07/11/2012,Facilities Management (ISD use only),Finance & Corporate Services,INTERSERVE (FACILITIES MANAGEMENT),,Large,,5106185542,St Philips Place Off site mngmt 2012-13,BS32 4NH,"3,457.02"
Communities & Local Government,DCLG,07/11/2012,Facilities Management (ISD use only),Finance & Corporate Services,INTERSERVE (FACILITIES MANAGEMENT),,Large,,5106185542,St Philips Place On site mngmt 2012-13,BS32 4NH,"2,989.01"
Communities & Local Government,DCLG,07/11/2012,Facilities Management (ISD use only),Finance & Corporate Services,INTERSERVE (FACILITIES MANAGEMENT),,Large,,5106185542,St Philips Place Reception 2012-13,BS32 4NH,"2,813.24"
Communities & Local Government,DCLG,07/11/2012,Facilities Management (ISD use only),Finance & Corporate Services,INTERSERVE (FACILITIES MANAGEMENT),,Large,,5106185542,Paradise Circus Off Site Mngt 2012-13,BS32 4NH,"1,987.33"
Communities & Local Government,DCLG,07/11/2012,Fixed Maintenance,Finance & Corporate Services,INTERSERVE (FACILITIES MANAGEMENT),,Large,,5106185542,Bridge House Grounds Maintenance 2012-13,BS32 4NH,259.21
Communities & Local Government,DCLG,07/11/2012,Fixed Maintenance,Finance & Corporate Services,INTERSERVE (FACILITIES MANAGEMENT),,Large,,5106185542,Queen Street Grounds Maintenance 2012-13,BS32 4NH,13.16
Communities & Local Government,DCLG,07/11/2012,Fixed Maintenance,Finance & Corporate Services,INTERSERVE (FACILITIES MANAGEMENT),,Large,,5106185542,Eland Maintenance 2012-13,BS32 4NH,"39,360.08"
Communities & Local Government,DCLG,07/11/2012,Fixed Maintenance,Finance & Corporate Services,INTERSERVE (FACILITIES MANAGEMENT),,Large,,5106185542,Hemel Maintenance 2012-13,BS32 4NH,"5,359.95"
Communities & Local Government,DCLG,07/11/2012,Fixed Maintenance,Finance & Corporate Services,INTERSERVE (FACILITIES MANAGEMENT),,Large,,5106185542,Mast House Maintenance 2012-13,BS32 4NH,"2,476.73"
Communities & Local Government,DCLG,07/11/2012,Fixed Maintenance,Finance & Corporate Services,INTERSERVE (FACILITIES MANAGEMENT),,Large,,5106185542,Bridge House Maintenance 2012-13,BS32 4NH,"4,987.45"
Communities & Local Government,DCLG,07/11/2012,Fixed Maintenance,Finance & Corporate Services,INTERSERVE (FACILITIES MANAGEMENT),,Large,,5106185542,Citygate Maintenance 2012-13,BS32 4NH,"3,585.11"
Communities & Local Government,DCLG,07/11/2012,Fixed Maintenance,Finance & Corporate Services,INTERSERVE (FACILITIES MANAGEMENT),,Large,,5106185542,Queen Street Maintenance 2012-13,BS32 4NH,"6,538.37",
Communities & Local Government,DCLG,07/11/2012,Fixed Maintenance,Finance & Corporate Services,INTERSERVE (FACILITIES MANAGEMENT),,Large,,5106185542,St Philips Place Maintenance 2012-13,BS32 4NH,"10,796.00",
Communities & Local Government,DCLG,07/11/2012,Fixed Maintenance,Finance & Corporate Services,INTERSERVE (FACILITIES MANAGEMENT),,Large,,5106185542,Paradise Circus Maintenance 2012-13,BS32 4NH,"7,797.99",
Communities & Local Government,DCLG,07/11/2012,Fixed Maintenance,Neighbourhoods,E C HARRIS LLP,,Large,,5106185527,ERDF SWC LDU QS Services to Feb 14,N1 9AB,"1,254.00",
Communities & Local Government,DCLG,07/11/2012,Grant in Aid to NDPBs (non budget),Neighbourhoods,HOMES & COMMUNITIES AGENCY,,Public Bodies,,2100223652,HCA Claim 32,NE11 0NA,"15,358,744.00",Yes
Communities & Local Government,DCLG,07/11/2012,IT - Software Maintenance,Neighbourhoods,I B M UK LTD,,Large,,5106185499,Software installation by IBM engineer,PO6 3AE,"3,723.84",
Communities & Local Government,DCLG,07/11/2012,Office machinery consumables,Neighbourhoods,X M A LTD,,Large,,5106185478,Toner (HP Laserjet 600 M603) CE390A,NG11 7EP,277.3,
Communities & Local Government,DCLG,07/11/2012,Online Database Information Retrieval,Finance & Corporate Services,BRITISH LIBRARY,,Public Bodies,,5106185544,British Library doc supply 2012-13,LS23 7BQ,509,
Communities & Local Government,DCLG,07/11/2012,Online Database Information Retrieval,Finance & Corporate Services,STATIONERY OFFICE LTD,,Large,,5106185519,Supply PQs from 01/10/12 to 30/09/13,NR3 1PD,"6,506.40",
Communities & Local Government,DCLG,07/11/2012,Photocopying,Finance & Corporate Services,INTERSERVE (FACILITIES MANAGEMENT),,Large,,5106185542,Eland Repro 2012-13,BS32 4NH,348.04,
Communities & Local Government,DCLG,07/11/2012,Photocopying,Finance & Corporate Services,INTERSERVE (FACILITIES MANAGEMENT),,Large,,5106185542,Hemel Repro 2012-13,BS32 4NH,124.53,
Communities & Local Government,DCLG,07/11/2012,Photocopying,Finance & Corporate Services,INTERSERVE (FACILITIES MANAGEMENT),,Large,,5106185542,Mast House Repro 2012-13,BS32 4NH,124.53,
Communities & Local Government,DCLG,07/11/2012,Photocopying,Finance & Corporate Services,INTERSERVE (FACILITIES MANAGEMENT),,Large,,5106185542,St Philips Repro 2012-13,BS32 4NH,348.04,
Communities & Local Government,DCLG,07/11/2012,Publications,Finance & Corporate Services,JONES YARRELL LEADENHALL LTD,,Large,,2100223680,Annual Magazine/Newspaper costs - Comms,E3 3JH,-920.67,
Communities & Local Government,DCLG,07/11/2012,Publications,Finance & Corporate Services,JONES YARRELL LEADENHALL LTD,,Large,,5106185489,Annual Magazine/Newspaper costs - Comms,E3 3JH,920.67,
Communities & Local Government,DCLG,07/11/2012,Publicity,Finance & Corporate Services,GORKANA GROUP LTD,,Large,,5106185497,Press Cuttings,EC1Y 8QE,"3,042.84",
Communities & Local Government,DCLG,07/11/2012,Removals and Porterage,Finance & Corporate Services,ARC FIREPRO LIMITED,,Micro,,5106185445,Eland House Survey - Capacity Review,TN4 8TE,"22,398.00"
Communities & Local Government,DCLG,07/11/2012,Security,Finance & Corporate Services,INTERSERVE (FACILITIES MANAGEMENT),,Large,,5106185542,Eland Security 2012-13,BS32 4NH,"19,761.04"
Communities & Local Government,DCLG,07/11/2012,Security,Finance & Corporate Services,INTERSERVE (FACILITIES MANAGEMENT),,Large,,5106185542,Hemel Security 2012-13,BS32 4NH,"4,209.91"
Communities & Local Government,DCLG,07/11/2012,Security,Finance & Corporate Services,INTERSERVE (FACILITIES MANAGEMENT),,Large,,5106185542,Mast House Security 2012-13,BS32 4NH,"2,410.75"
Communities & Local Government,DCLG,07/11/2012,Security,Finance & Corporate Services,INTERSERVE (FACILITIES MANAGEMENT),,Large,,5106185542,Bridge House Security 2012-13,BS32 4NH,"3,164.70"
Communities & Local Government,DCLG,07/11/2012,Security,Finance & Corporate Services,INTERSERVE (FACILITIES MANAGEMENT),,Large,,5106185542,Citygate Security 2012-13,BS32 4NH,"2,510.43"
Communities & Local Government,DCLG,07/11/2012,Security,Finance & Corporate Services,INTERSERVE (FACILITIES MANAGEMENT),,Large,,5106185542,Queen Street Security 2012-13,BS32 4NH,"2,321.36"
Communities & Local Government,DCLG,07/11/2012,Security,Finance & Corporate Services,INTERSERVE (FACILITIES MANAGEMENT),,Large,,5106185542,St Philips Place Security 2012-13,BS32 4NH,"4,747.65"
Communities & Local Government,DCLG,07/11/2012,Security,Finance & Corporate Services,INTERSERVE (FACILITIES MANAGEMENT),,Large,,5106185542,Paradise Circus Security 2012-13,BS32 4NH,"2,114.36"
Communities & Local Government,DCLG,07/11/2012,Software Licences,Neighbourhoods,EXPERIAN QAS LTD,,Large,,5106185503,Upgrade to IT system,SW4 0QL,"13,826.00"
Communities & Local Government,DCLG,07/11/2012,Steady State Service Provision,Finance & Corporate Services,ALLPAY LIMITED,,Medium,,5106185476,DC/DC Transaction Charges,HR1 3SE,417.55
Communities & Local Government,DCLG,07/11/2012,Steady State Service Provision,Finance & Corporate Services,ALLPAY LIMITED,,Medium,,5106185495,DC/DC Transaction Charges,HR1 3SE,592.85
Communities & Local Government,DCLG,07/11/2012,Steady State Service Provision,Finance & Corporate Services,ALLPAY LIMITED,,Medium,,5106185495,Monthly Management Fee Payments,HR1 3SE,500
Communities & Local Government,DCLG,07/11/2012,Steady State Service Provision,Finance & Corporate Services,LOGICA (CMG UK LTD),,Large,,5106185449,Payroll Services 2012/13,TW18 4LG,"1,137.18"
Communities & Local Government,DCLG,07/11/2012,Steady State Service Provision,Localism,CONGREGATIONAL & GENERAL INS PLC,,Medium,,5106185515,AYOS- Faith Through A Lens Category,BD1 5BA,"5,000.00"
Communities & Local Government,DCLG,07/11/2012,Telecoms equipment (non-capitalised),Finance & Corporate Services,DAMOVO UK LTD,,Large,,5106185525,Telephony - 8 new sites,RH12 4QP,"6,988.44"
Communities & Local Government,DCLG,07/11/2012,Telecoms equipment (non-capitalised),Finance & Corporate Services,DAMOVO UK LTD,,Large,,5106185526,Telephony - 8 new sites,RH12 4QP,"10,056.11"
Communities & Local Government,DCLG,07/11/2012,Telephone call costs,Finance & Corporate Services,DAMOVO UK LTD,,Large,,5106185528,Telephony Charges,RH12 4QP,"82,816.64"
Communities & Local Government,DCLG,07/11/2012,Telephone call costs,Finance & Corporate Services,DAMOVO UK LTD,,Large,,5106185532,Telephony Charges,RH12 4QP,"1,229.63"
Communities & Local Government,DCLG,07/11/2012,Telephone call costs,Finance & Corporate Services,DAMOVO UK LTD,,Large,,5106185534,Telephony Charges,RH12 4QP,"4,493.30"
Communities & Local Government,DCLG,07/11/2012,Training,Finance & Corporate Services,INSTITUTE OF INTERNAL AUDITORS,,Small,,5106185482,Internal Auditing - a Beginner's Course,SW4 7BX,"1,650.00"
Communities & Local Government,DCLG,07/11/2012,Waste Disposal and pest control,Finance & Corporate Services,INTERSERVE (FACILITIES MANAGEMENT),,Large,,5106185542,Eland Waste 2012-13,BS32 4NH,"3,244.34"
Communities & Local Government,DCLG,07/11/2012,Waste Disposal and pest control,Finance & Corporate Services,INTERSERVE (FACILITIES MANAGEMENT),,Large,,5106185542,Hemel Waste 2012-13,BS32 4NH,267.48
Communities & Local Government,DCLG,07/11/2012,Waste Disposal and pest control,Finance & Corporate Services,INTERSERVE (FACILITIES MANAGEMENT),,Large,,5106185542,Mast House Waste 2012-13,BS32 4NH,243.42
Communities & Local Government,DCLG,07/11/2012,Waste Disposal and pest control,Finance & Corporate Services,INTERSERVE (FACILITIES MANAGEMENT),,Large,,5106185542,Bridge House Waste 2012-13,BS32 4NH,516.3
Communities & Local Government,DCLG,07/11/2012,Waste Disposal and pest control,Finance & Corporate Services,INTERSERVE (FACILITIES MANAGEMENT),,Large,,5106185542,Citygate Waste 2012-13,BS32 4NH,868.7
Communities & Local Government,DCLG,07/11/2012,Waste Disposal and pest control,Finance & Corporate Services,INTERSERVE (FACILITIES MANAGEMENT),,Large,,5106185542,Queen Street Waste 2012-13,BS32 4NH,476.25
Communities & Local Government,DCLG,07/11/2012,Waste Disposal and pest control,Finance & Corporate Services,INTERSERVE (FACILITIES MANAGEMENT),,Large,,5106185542,St Philips Place Waste 2012-13,BS32 4NH,858.73
Communities & Local Government,DCLG,07/11/2012,Waste Disposal and pest control,Finance & Corporate Services,INTERSERVE (FACILITIES MANAGEMENT),,Large,,5106185542,Paradise Circus Waste 2012-13,BS32 4NH,498.92
Communities & Local Government,DCLG,07/11/2012,Water,Finance & Corporate Services,SEVERN TRENT WATER LTD,,Large,,5106185506,West Midlands RCC Water 12-13,CV3 9FJ,559.85
Communities & Local Government,DCLG,07/11/2012,Work In Progress Pre-Cert 40373 Spend,Neighbourhoods,LIVERPOOL JOHN MOORES UNIVERSITY,,,,7600003282,ERDF Claim - 4 - P2-MS,L3 2AJ,"48,496.87"
Communities & Local Government,DCLG,07/11/2012,Work In Progress Pre-Cert 40373 Spend,Neighbourhoods,LIVERPOOL JOHN MOORES UNIVERSITY,,,,7600003283,ERDF Claim - 4 - P2-NW,L3 2AJ,"20,493.60"
Communities & Local Government,DCLG,07/11/2012,Work In Progress Pre-Cert 40373 Spend,Neighbourhoods,MERSEY MARTIME LTD,,Micro,,7600003280,ERDF Claim - 38 - P1-MS,CH41 5LH,"11,619.94"
Communities & Local Government,DCLG,07/11/2012,Work In Progress Pre-Cert 40373 Spend,Neighbourhoods,MERSEY MARTIME LTD,,Micro,,7600003305,ERDF Claim - 39 - P1-MS,CH41 5LH,"11,353.58"
Communities & Local Government,DCLG,07/11/2012,Work In Progress Pre-Cert 40373 Spend,Neighbourhoods,NEW ECONOMY,,,,7600003298,ERDF Claim - 14 - P5-NW,M1 6EU,"62,598.08"
Communities & Local Government,DCLG,07/11/2012,Work In Progress Pre-Cert 40373 Spend,Neighbourhoods,NORTHWEST AUTOMOTIVE ALLIANCE,,,,7600003286,ERDF Claim - 31 - P1-MS,L24 9PZ,"2,811.23"
Communities & Local Government,DCLG,07/11/2012,Work In Progress Pre-Cert 40373 Spend,Neighbourhoods,NORTHWEST AUTOMOTIVE ALLIANCE,,,,7600003287,ERDF Claim - 31 - P1-NW,L24 9PZ,"27,537.15"
Communities & Local Government,DCLG,07/11/2012,Work In Progress Pre-Cert 40373 Spend,Neighbourhoods,NORTHWEST AUTOMOTIVE ALLIANCE,,,,7600003288,ERDF Claim - 32 - P1-NW,L24 9PZ,"6,917.95"
Communities & Local Government,DCLG,07/11/2012,Work In Progress Pre-Cert 40373 Spend,Neighbourhoods,NORTHWEST AUTOMOTIVE ALLIANCE,,,,7600003289,ERDF Claim - 33 - P1-MS,L24 9PZ,"2,529.82"
Communities & Local Government,DCLG,07/11/2012,Work In Progress Pre-Cert 40373 Spend,Neighbourhoods,NORTHWEST AUTOMOTIVE ALLIANCE,,,,7600003290,ERDF Claim - 33 - P1-NW,L24 9PZ,"27,882.09"
Communities & Local Government,DCLG,07/11/2012,Work In Progress Pre-Cert 40373 Spend,Neighbourhoods,NORTHWEST AUTOMOTIVE ALLIANCE,,,,7600003299,ERDF Claim - 32 - P1-MS,L24 9PZ,"5,183.52"
Communities & Local Government,DCLG,07/11/2012,Work In Progress Pre-Cert 40373 Spend,Neighbourhoods,PRINCES TRUST,,Large,,7600003306,ERDF Claim - 9 - P3-YH,LS2 8NG,"10,618.29"
Communities & Local Government,DCLG,07/11/2012,Work In Progress Pre-Cert 40373 Spend,Neighbourhoods,PRINCES TRUST,,Large,,7600003307,ERDF Claim - 9 - P3-SY,LS2 8NG,"3,614.95"
Communities & Local Government,DCLG,07/11/2012,Work In Progress Pre-Cert 40373 Spend,Neighbourhoods,PRINCES TRUST,,Large,,7600003308,ERDF Claim - 10 - P3-YH,LS2 8NG,"10,998.67"
Communities & Local Government,DCLG,07/11/2012,Work In Progress Pre-Cert 40373 Spend,Neighbourhoods,PRINCES TRUST,,Large,,7600003309,ERDF Claim - 10 - P3-SY,LS2 8NG,"4,099.32"
Communities & Local Government,DCLG,07/11/2012,Work In Progress Pre-Cert 40373 Spend,Neighbourhoods,PRINCES TRUST,,Large,,7600003310,ERDF Claim - 11 - P3-YH,LS2 8NG,"10,401.12"
Communities & Local Government,DCLG,07/11/2012,Work In Progress Pre-Cert 40373 Spend,Neighbourhoods,PRINCES TRUST,,Large,,7600003311,ERDF Claim - 11 - P3-SY,LS2 8NG,"3,319.89"
Communities & Local Government,DCLG,07/11/2012,Work In Progress Pre-Cert 40373 Spend,Neighbourhoods,ROTHERHAM METROPOLITAN BC,,,,7600003304,ERDF Claim - 29 - P3-SY,S65 1DJ,"24,216.63"
Communities & Local Government,DCLG,07/11/2012,Work In Progress Pre-Cert 40373 Spend,Neighbourhoods,TWI,,Large,,7600003278,ERDF Claim - 9 - P1,CB21 6AL,"46,686.02"
Communities & Local Government,DCLG,07/11/2012,Work In Progress Pre-Cert 40373 Spend,Neighbourhoods,TWI,,Large,,7600003279,ERDF Claim - 10 - P1,CB21 6AL,"67,749.64"
Communities & Local Government,DCLG,07/11/2012,Work In Progress Pre-Cert 40373 Spend,Neighbourhoods,UNIVERSITY OF SHEFFIELD,,,,7600003284,ERDF Claim - 28 - P1-SY,S60 5TZ,"50,644.25"
Communities & Local Government,DCLG,07/11/2012,Work In Progress Pre-Cert 40373 Spend,Neighbourhoods,UNIVERSITY OF SHEFFIELD,,,,7600003285,ERDF Claim - 28 - P1-YH,S60 5TZ,"33,762.72"
Communities & Local Government,DCLG,07/11/2012,Work In Progress Pre-Cert 40373 Spend,Neighbourhoods,UNIVERSITY OF TEESIDE,,,,7600003303,ERDF Claim - 7 - P2,TS1 3BA,"87,369.58"
Communities & Local Government,DCLG,07/11/2012,Work In Progress Pre-Cert 40373 Spend,Neighbourhoods,YORKS & HUMBER PEOPLE UTD AGAINST C,,,,7600003300,ERDF Claim - 12 - P2-SY,S1 2AH,"20,860.66"
Communities & Local Government,DCLG,07/11/2012,Work In Progress Pre-Cert 40373 Spend,Neighbourhoods,YORKS & HUMBER PEOPLE UTD AGAINST C,,,,7600003301,ERDF Claim - 12 - P2-YH,S1 2AH,"34,618.47"
Communities & Local Government,DCLG,07/11/2012,Work In Progress Pre-Cert 40373 Spend,Neighbourhoods,YTKO LIMITED,,,,7600003302,ERDF Claim - 9 - P3,CB4 0WS,"34,147.20"
Communities & Local Government,DCLG,07/11/2012,Work In Progress Pre-Cert 40467 Spend,Neighbourhoods,DONCASTER METROPOLITAN BC,,,,7600003281,ERDF Claim - 20 - P4-SY,DN1 1DE,"5,487.64"
Communities & Local Government,DCLG,07/11/2012,Work In Progress Pre-Cert 40467 Spend,Neighbourhoods,MANCHESTER CITY COUNCIL,,,,7600003291,ERDF Claim - 1 - P1-NW,M60 2JR,"246,481.27"
Communities & Local Government,DCLG,07/11/2012,Work In Progress Pre-Cert 40467 Spend,Neighbourhoods,MANCHESTER CITY COUNCIL,,,,7600003292,ERDF Claim - 2 - P1-NW,M60 2JR,"304,086.87"
Communities & Local Government,DCLG,07/11/2012,Work In Progress Pre-Cert 40467 Spend,Neighbourhoods,MANCHESTER CITY COUNCIL,,,,7600003293,ERDF Claim - 3 - P1-NW,M60 2JR,"351,509.63"
Communities & Local Government,DCLG,07/11/2012,Work In Progress Pre-Cert 40467 Spend,Neighbourhoods,MANCHESTER CITY COUNCIL,,,,7600003294,ERDF Claim - 4 - P1-NW,M60 2JR,"434,044.34"
Communities & Local Government,DCLG,07/11/2012,Work In Progress Pre-Cert 40467 Spend,Neighbourhoods,MANCHESTER CITY COUNCIL,,,,7600003295,ERDF Claim - 5 - P1-NW,M60 2JR,"1,320,749.93"
Communities & Local Government,DCLG,07/11/2012,Work In Progress Pre-Cert 40467 Spend,Neighbourhoods,SALFORD CITY COUNCIL,,,,7600003296,ERDF Claim - 12 - P3-NW,M27 5FJ,"2,943.62"
Communities & Local Government,DCLG,07/11/2012,Work In Progress Pre-Cert 40467 Spend,Neighbourhoods,TORBAY COUNCIL,,,,7600003277,ERDF Claim - 10 - P3,TQ1 3DS,"36,520.61"
Communities & Local Government,DCLG,07/11/2012,Work In Progress Pre-Cert 40467 Spend,Neighbourhoods,TWI,,Large,,7600003278,ERDF Claim - 9 - P1,CB21 6AL,"-6,500.00",
Communities & Local Government,DCLG,07/11/2012,Work In Progress Pre-Cert 40467 Spend,Neighbourhoods,UNIVERSITY OF SHEFFIELD,,,,7600003284,ERDF Claim - 28 - P1-SY,S60 5TZ,"71,791.21",
Communities & Local Government,DCLG,08/11/2012,Agency Staff,Finance & Corporate Services,MANPOWER UK LTD,,Large,,5106185602,Temp information specialist,UB8 1AB,680.59,
Communities & Local Government,DCLG,08/11/2012,Agency Staff,Finance & Corporate Services,MICHAEL PAGE INTERNATIONAL,,Large,,5106185584,Interim contractor,SL1 3SA,"1,929.48",
Communities & Local Government,DCLG,08/11/2012,Agency Staff,Finance & Corporate Services,MICHAEL PAGE INTERNATIONAL,,Large,,5106185585,Interim contractor,SL1 3SA,771.79,
Communities & Local Government,DCLG,08/11/2012,Agency Staff,Finance & Corporate Services,MICHAEL PAGE INTERNATIONAL,,Large,,5106185586,Interim contractor,SL1 3SA,"1,929.48",
Communities & Local Government,DCLG,08/11/2012,Agency Staff,Finance & Corporate Services,MICHAEL PAGE INTERNATIONAL,,Large,,5106185587,Interim contractor,SL1 3SA,"1,929.48",
Communities & Local Government,DCLG,08/11/2012,Agency Staff,Neighbourhoods,REED EMPLOYMENT SERVICES,,Large,,5106185546,Interim staff -,SW20 0BA,511.49,
Communities & Local Government,DCLG,08/11/2012,Agency Staff,Neighbourhoods,REED EMPLOYMENT SERVICES,,Large,,5106185547,Agency Staff pay (6 month contract),SW20 0BA,483.07,
Communities & Local Government,DCLG,08/11/2012,Agency Staff,Neighbourhoods,REED EMPLOYMENT SERVICES,,Large,,5106185554,Agency Staff pay (6 month contract),SW20 0BA,973.25,
Communities & Local Government,DCLG,08/11/2012,Agency Staff,Neighbourhoods,REED EMPLOYMENT SERVICES,,Large,,5106185556,Agency staff pay cost (6 month contract),SW20 0BA,625.15,
Communities & Local Government,DCLG,08/11/2012,Current Grants to Non Profit Bodies,Finance & Corporate Services,SCHOOLS LINKING NETWORK,,,,2100223682,School installment of grant in 2012/13,BD1 2EP,"11,551.00",Yes
Communities & Local Government,DCLG,08/11/2012,Electricity,Finance & Corporate Services,EDF ENERGY 1 LIMITED,,Large,,5106185564,EoE Waterbeach Electricity 2012-13,PL3 5XQ,"5,250.24",
Communities & Local Government,DCLG,08/11/2012,Facilities Management (ISD use only),Finance & Corporate Services,E C HARRIS LLP,,Large,,5106185496,Move managment Phase 1- com 54,N1 9AB,"10,714.00",
Communities & Local Government,DCLG,08/11/2012,Facilities Management (ISD use only),Finance & Corporate Services,E C HARRIS LLP,,Large,,5106185498,Move managment Phase 1- com 54,N1 9AB,"8,085.06",
Communities & Local Government,DCLG,08/11/2012,Grant in Aid to NDPBs (non budget),Localism,COMMISSION LOCAL ADMINISTRATION,,,,2100223474,GIA - Ombudsman costs Nov 2012,SW1P 4QP,"758,000.00",Yes
Communities & Local Government,DCLG,08/11/2012,IT - Service Contracts,Finance & Corporate Services,PROCSERVE SHARED SERVICES LTD,,Large,,5106185376,32mths subscriptions Jul 2011-Jul 2014,SW1W 9SR,"6,176.64"
Communities & Local Government,DCLG,08/11/2012,IT - Service Contracts,Finance & Corporate Services,VERIZON UK LTD,,Large,,2100223735,WebRap hosting charges,RG2 6DA,"-13,573.66"
Communities & Local Government,DCLG,08/11/2012,IT - Service Contracts,Finance & Corporate Services,VERIZON UK LTD,,Large,,5106185640,WebRap hosting charges,RG2 6DA,"13,573.66"
Communities & Local Government,DCLG,08/11/2012,IT - Service Contracts,Finance & Corporate Services,VERIZON UK LTD,,Large,,2100223735,ARTEMIS hosting charges,RG2 6DA,-573.76
Communities & Local Government,DCLG,08/11/2012,IT - Service Contracts,Finance & Corporate Services,VERIZON UK LTD,,Large,,5106185640,ARTEMIS hosting charges,RG2 6DA,573.76
Communities & Local Government,DCLG,08/11/2012,IT - Service Contracts,Localism,VERIZON UK LTD,,Large,,2100223735,IRS Hosting charges,RG2 6DA,"-13,251.58"
Communities & Local Government,DCLG,08/11/2012,IT - Service Contracts,Localism,VERIZON UK LTD,,Large,,5106185640,IRS Hosting charges,RG2 6DA,"13,251.58"
Communities & Local Government,DCLG,08/11/2012,IT - Service Contracts,Neighbourhoods,AMOR BUSINESS TECHNOLOGY SOLUTIONS,,Large,,5106185607,Database Maintenance-ERDF(support),PA4 9LH,"35,236.85"
Communities & Local Government,DCLG,08/11/2012,IT - Service Contracts,Neighbourhoods,BREEZE IT LIMITED,,Micro,,5106185609,MIS Quarterly Support,NG14 6EA,"1,000.00"
Communities & Local Government,DCLG,08/11/2012,IT - Service Contracts,Neighbourhoods,VERIZON UK LTD,,Large,,2100223735,TESA hosting charges,RG2 6DA,"-14,042.27"
Communities & Local Government,DCLG,08/11/2012,IT - Service Contracts,Neighbourhoods,VERIZON UK LTD,,Large,,5106185640,TESA hosting charges,RG2 6DA,"14,042.27"
Communities & Local Government,DCLG,08/11/2012,IT - Software Maintenance,Finance & Corporate Services,KAIZEN ASSOCIATES LTD,,Micro,,5106185580,SAP Application Support,SE1 6SW,"3,541.91"
Communities & Local Government,DCLG,08/11/2012,Legal Fees,Finance & Corporate Services,DLA PIPER UK LLP,,Large,,5106185548,Legal Property Services Commission,LS1 4BY,"2,756.72"
Communities & Local Government,DCLG,08/11/2012,Office Supplies,Finance & Corporate Services,BANNER BUSINESS SUPPLIES LTD,,Large,,5106185611,0080424 Post it notes,NR3 1PD,19.68
Communities & Local Government,DCLG,08/11/2012,Office Supplies,Finance & Corporate Services,BANNER BUSINESS SUPPLIES LTD,,Large,,5106185611,0080425 Post it notes,NR3 1PD,19.68
Communities & Local Government,DCLG,08/11/2012,Office Supplies,Finance & Corporate Services,BANNER BUSINESS SUPPLIES LTD,,Large,,5106185611,0080426 Post it notes,NR3 1PD,19.68
Communities & Local Government,DCLG,08/11/2012,Office Supplies,Finance & Corporate Services,BANNER BUSINESS SUPPLIES LTD,,Large,,5106185611,0080427 Post it notes,NR3 1PD,19.68
Communities & Local Government,DCLG,08/11/2012,Office Supplies,Finance & Corporate Services,BANNER BUSINESS SUPPLIES LTD,,Large,,5106185611,0080428 Post it notes,NR3 1PD,19.68
Communities & Local Government,DCLG,08/11/2012,Office Supplies,Finance & Corporate Services,BANNER BUSINESS SUPPLIES LTD,,Large,,5106185611,0080429 Post it notes,NR3 1PD,19.68
Communities & Local Government,DCLG,08/11/2012,Office Supplies,Finance & Corporate Services,BANNER BUSINESS SUPPLIES LTD,,Large,,5106185611,0080430 Post it notes,NR3 1PD,19.68
Communities & Local Government,DCLG,08/11/2012,Office Supplies,Finance & Corporate Services,BANNER BUSINESS SUPPLIES LTD,,Large,,5106185611,0080431 post it notes,NR3 1PD,19.68
Communities & Local Government,DCLG,08/11/2012,Office Supplies,Finance & Corporate Services,BANNER BUSINESS SUPPLIES LTD,,Large,,5106185611,9100015 A4 Notebooks,NR3 1PD,192.24
Communities & Local Government,DCLG,08/11/2012,Office Supplies,Finance & Corporate Services,BANNER BUSINESS SUPPLIES LTD,,Large,,5106185611,9100016 A5 Notebooks,NR3 1PD,84.48
Communities & Local Government,DCLG,08/11/2012,Office Supplies,Finance & Corporate Services,BANNER BUSINESS SUPPLIES LTD,,Large,,5106185611,9100018 Shorthand Notebook,NR3 1PD,39.24
Communities & Local Government,DCLG,08/11/2012,Office Supplies,Finance & Corporate Services,BANNER BUSINESS SUPPLIES LTD,,Large,,5106185611,9280006 Paper Clips 76mm,NR3 1PD,2.64
Communities & Local Government,DCLG,08/11/2012,Office Supplies,Finance & Corporate Services,BANNER BUSINESS SUPPLIES LTD,,Large,,5106185611,9280007 51mm Paper Clips,NR3 1PD,2.04
Communities & Local Government,DCLG,08/11/2012,Office Supplies,Finance & Corporate Services,BANNER BUSINESS SUPPLIES LTD,,Large,,5106185611,9290005 Staplers,NR3 1PD,3.89
Communities & Local Government,DCLG,08/11/2012,Office Supplies,Finance & Corporate Services,BANNER BUSINESS SUPPLIES LTD,,Large,,5106185611,9290009 Staples,NR3 1PD,18.96
Communities & Local Government,DCLG,08/11/2012,Office Supplies,Finance & Corporate Services,BANNER BUSINESS SUPPLIES LTD,,Large,,5106185611,9370501 Small finger cones,NR3 1PD,0.22
Communities & Local Government,DCLG,08/11/2012,Office Supplies,Finance & Corporate Services,BANNER BUSINESS SUPPLIES LTD,,Large,,5106185611,9370502 Medium finger cones,NR3 1PD,0.23
Communities & Local Government,DCLG,08/11/2012,Office Supplies,Finance & Corporate Services,BANNER BUSINESS SUPPLIES LTD,,Large,,5106185611,9370503 Large finger cones,NR3 1PD,0.24
Communities & Local Government,DCLG,08/11/2012,Office Supplies,Finance & Corporate Services,BANNER BUSINESS SUPPLIES LTD,,Large,,5106185611,9382001 Part dividers x10,NR3 1PD,47.16
Communities & Local Government,DCLG,08/11/2012,Post,Finance & Corporate Services,NEOPOST LTD,,Large,,5106185605,Franking Machine Credit acc600576,RM1 2AR,"2,000.00"
Communities & Local Government,DCLG,08/11/2012,Publications,Finance & Corporate Services,JONES YARRELL LEADENHALL LTD,,Large,,5106185601,Annual Magazine/Newspaper costs,E3 3JH,"1,070.13"
Communities & Local Government,DCLG,08/11/2012,Publishing,Finance & Corporate Services,TEMPO GRAPHIC DESIGN LTD,,Medium,,5106185590,FK leaflets and other material updates,SE15 6NJ,"1,608.00"
Communities & Local Government,DCLG,08/11/2012,Subscriptions,Finance & Corporate Services,INFORMATION COMMISSIONER'S,,Public Bodies,,5106185581,Fee for Notification Renewal Under DPA,SK9 5AF,500
Communities & Local Government,DCLG,08/11/2012,Training,Finance & Corporate Services,CITY AND FINANCIAL LTD,,Small,,5106185551,NAO Performance Measurement Conference,GU22 9LG,225
Communities & Local Government,DCLG,08/11/2012,Travel and Subsistence Account,Finance & Corporate Services,DIAL A CAB,,Medium,,2100223738,Dial-a-Cab 1055,N1 6AH,-42.3
Communities & Local Government,DCLG,08/11/2012,Travel and Subsistence Account,Finance & Corporate Services,DIAL A CAB,,Medium,,2100223738,Dial-a-Cab admin 1055,N1 6AH,-6.64
Communities & Local Government,DCLG,08/11/2012,Travel and Subsistence Account,Finance & Corporate Services,DIAL A CAB,,Medium,,2100223738,Dial A Cab,N1 6AH,-64.52
Communities & Local Government,DCLG,08/11/2012,Travel and Subsistence Account,Finance & Corporate Services,DIAL A CAB,,Medium,,5106185464,Dial-a-Cab 1055,N1 6AH,42.3
Communities & Local Government,DCLG,08/11/2012,Travel and Subsistence Account,Finance & Corporate Services,DIAL A CAB,,Medium,,5106185464,Dial-a-Cab admin 1055,N1 6AH,6.64
Communities & Local Government,DCLG,08/11/2012,Travel and Subsistence Account,Finance & Corporate Services,DIAL A CAB,,Medium,,5106185464,Dial A Cab,N1 6AH,64.52
Communities & Local Government,DCLG,08/11/2012,Travel and Subsistence Account,Localism,DIAL A CAB,,Medium,,2100223738,0% dial a cab 1936,N1 6AH,-211.3
Communities & Local Government,DCLG,08/11/2012,Travel and Subsistence Account,Localism,DIAL A CAB,,Medium,,2100223738,20% dial a cab 1936,N1 6AH,-31.72
Communities & Local Government,DCLG,08/11/2012,Travel and Subsistence Account,Localism,DIAL A CAB,,Medium,,5106185464,0% dial a cab 1936,N1 6AH,211.3
Communities & Local Government,DCLG,08/11/2012,Travel and Subsistence Account,Localism,DIAL A CAB,,Medium,,5106185464,20% dial a cab 1936,N1 6AH,31.72
Communities & Local Government,DCLG,08/11/2012,Work In Progress Pre-Cert 40373 Spend,Neighbourhoods,KEY FUND (STH YORKSHIRE) LTD,,,,7600003313,ERDF Claim - 7 - P3-YH,S9 3TY,"2,547.95"
Communities & Local Government,DCLG,08/11/2012,Work In Progress Pre-Cert 40373 Spend,Neighbourhoods,KEY FUND (STH YORKSHIRE) LTD,,,,7600003314,ERDF Claim - 8 - P3-YH,S9 3TY,"4,441.60",
Communities & Local Government,DCLG,08/11/2012,Work In Progress Pre-Cert 40373 Spend,Neighbourhoods,YTKO LIMITED,,,,7600003312,ERDF Claim - 6 - P3,CB4 0WS,"3,562.09",
Communities & Local Government,DCLG,09/11/2012,Agency Staff,Finance & Corporate Services,MANPOWER UK LTD,,Large,,5106185613,Temp information specialist,UB8 1AB,920.77,
Communities & Local Government,DCLG,09/11/2012,Current Grants to Non Profit Bodies,Neighbourhoods,EARTH TENANT MANAGEMENT ORGANISATIO,,Small,,5000214107,Grant Payable by Exchequer,BS2 0BL,"8,000.00",Yes
Communities & Local Government,DCLG,09/11/2012,Current Grants to Non Profit Bodies,Neighbourhoods,NAT FED OF TENANT MANAGEMENT ORGS L,Yes,Micro,,5000214110,Grant Payable by Exchequer,WS2 8NN,"30,000.00",Yes
Communities & Local Government,DCLG,09/11/2012,Current Grants to Non Profit Bodies,Neighbourhoods,OPEN COMMUNITIES LTD,,Micro,,5000214109,Grant Payable by Exchequer,L1 5BS,"3,089.00",Yes
Communities & Local Government,DCLG,09/11/2012,Current Grants to Non Profit Bodies,Neighbourhoods,STH ACTON COMMUNITY BUILDERS CO-OP,,,,5000214108,Grant Payable by Exchequer,W3 8DD,"5,000.00",Yes
Communities & Local Government,DCLG,09/11/2012,Electricity,Finance & Corporate Services,EON UK PLC,,Large,,5106185625,EM Castle Donnington electricity 2012-13,CV4 8LG,"5,323.87",
Communities & Local Government,DCLG,09/11/2012,Fees,Localism,MR MICHAEL HEAD,,,,2100223734,FEES,,"1,621.16",
Communities & Local Government,DCLG,09/11/2012,IT - Service Contracts,Finance & Corporate Services,COMPUTACENTER (UK) LTD,,Large,,5106185644,Evault data storage Oct 12-Sep 2013 KMD,AL10 9TW,561.6,
Communities & Local Government,DCLG,09/11/2012,IT - Service Contracts,Finance & Corporate Services,COMPUTACENTER (UK) LTD,,Large,,5106185644,Evault data storage Oct 12-Sep 2013 ICT,AL10 9TW,561.6,
Communities & Local Government,DCLG,09/11/2012,IT - Service Contracts,Finance & Corporate Services,VERIZON UK LTD,,Large,,5106185633,WebRap hosting charges,RG2 6DA,"13,573.66",
Communities & Local Government,DCLG,09/11/2012,IT - Service Contracts,Finance & Corporate Services,VERIZON UK LTD,,Large,,5106185633,ARTEMIS hosting charges,RG2 6DA,573.76,
Communities & Local Government,DCLG,09/11/2012,IT - Service Contracts,Localism,COMPUTACENTER (UK) LTD,,Large,,5106185644,Evault data storage Oct 12-Sep 2013 FIRE,AL10 9TW,561.6,
Communities & Local Government,DCLG,09/11/2012,IT - Service Contracts,Localism,VERIZON UK LTD,,Large,,5106185633,IRS Hosting charges,RG2 6DA,"13,251.58",
Communities & Local Government,DCLG,09/11/2012,IT - Service Contracts,Neighbourhoods,VERIZON UK LTD,,Large,,5106185633,TESA hosting charges,RG2 6DA,"14,042.27",
Communities & Local Government,DCLG,09/11/2012,IT - Software Maintenance,Finance & Corporate Services,METHODS CONSULTING LTD,,Medium,,5106185614,PIMS Application Support FY 2012/13,WC2H 8AD,"24,000.00",
Communities & Local Government,DCLG,09/11/2012,IT - Software Maintenance,Finance & Corporate Services,METHODS CONSULTING LTD,,Medium,,5106185615,PIMS Application Support FY 2012/13,WC2H 8AD,"24,000.00",
Communities & Local Government,DCLG,09/11/2012,IT - Software Maintenance,Finance & Corporate Services,METHODS CONSULTING LTD,,Medium,,5106185618,PIMS Application Support FY 2012/13,WC2H 8AD,"24,000.00",
Communities & Local Government,DCLG,09/11/2012,LA General GLA  Grant Payable,Strategic Performance Team,GREATER LONDON AUTHORITY,,Large,,2100223515,2012-13 - General GLA Grant,SE10 1AP,"2,303,125.00",Yes
Communities & Local Government,DCLG,09/11/2012,Online Database Information Retrieval,Finance & Corporate Services,LAND REGISTRY,,Public Bodies,,5106185645,Land Registrycash/mortgage indicatordata,CR0 2AQ,"1,836.88",
Communities & Local Government,DCLG,09/11/2012,Printing,Finance & Corporate Services,WILLIAMS LEA LIMITED,,Large,,5106185606,Year 1 Print Services,W2 6LG,295.05,
Communities & Local Government,DCLG,09/11/2012,Printing,Finance & Corporate Services,WILLIAMS LEA LIMITED,,Large,,5106185606,Year 1 Print Services (0% VAT),W2 6LG,"21,538.44",
Communities & Local Government,DCLG,09/11/2012,Publications,Finance & Corporate Services,JONES YARRELL LEADENHALL LTD,,Large,,5106185626,Annual Magazine/Newspaper costs,E3 3JH,920.67,
Communities & Local Government,DCLG,09/11/2012,Travel and Subsistence Account,Finance & Corporate Services,REDFERN TRAVEL LIMITED,,Small,,2100223737,Consolidated monthly travel October 2012,BD1 3AZ,488.66,
Communities & Local Government,DCLG,09/11/2012,Travel and Subsistence Account,Finance & Corporate Services,REDFERN TRAVEL LIMITED,,Small,,2100223737,Consolidated monthly travel October 2012,BD1 3AZ,294.27,
Communities & Local Government,DCLG,09/11/2012,Travel and Subsistence Account,Finance & Corporate Services,REDFERN TRAVEL LIMITED,,Small,,2100223737,Consolidated monthly travel October 2012,BD1 3AZ,421.36,
Communities & Local Government,DCLG,09/11/2012,Travel and Subsistence Account,Finance & Corporate Services,REDFERN TRAVEL LIMITED,,Small,,2100223737,Consolidated monthly travel October 2012,BD1 3AZ,"4,634.20",
Communities & Local Government,DCLG,09/11/2012,Travel and Subsistence Account,Finance & Corporate Services,REDFERN TRAVEL LIMITED,,Small,,2100223737,Consolidated monthly travel October 2012,BD1 3AZ,542.2,
Communities & Local Government,DCLG,09/11/2012,Travel and Subsistence Account,Finance & Corporate Services,REDFERN TRAVEL LIMITED,,Small,,2100223737,Consolidated monthly travel October 2012,BD1 3AZ,668.53,
Communities & Local Government,DCLG,09/11/2012,Travel and Subsistence Account,Finance & Corporate Services,REDFERN TRAVEL LIMITED,,Small,,2100223737,Consolidated monthly travel October 2012,BD1 3AZ,"3,309.23",
Communities & Local Government,DCLG,09/11/2012,Travel and Subsistence Account,Finance & Corporate Services,REDFERN TRAVEL LIMITED,,Small,,2100223737,Consolidated monthly travel October 2012,BD1 3AZ,"1,146.73",
Communities & Local Government,DCLG,09/11/2012,Travel and Subsistence Account,Finance & Corporate Services,REDFERN TRAVEL LIMITED,,Small,,2100223737,Consolidated monthly travel October 2012,BD1 3AZ,"5,039.83"
Communities & Local Government,DCLG,09/11/2012,Travel and Subsistence Account,Finance & Corporate Services,REDFERN TRAVEL LIMITED,,Small,,2100223737,Consolidated monthly travel October 2012,BD1 3AZ,"1,731.94"
Communities & Local Government,DCLG,09/11/2012,Travel and Subsistence Account,Finance & Corporate Services,REDFERN TRAVEL LIMITED,,Small,,2100223737,Consolidated monthly travel October 2012,BD1 3AZ,"1,032.92"
Communities & Local Government,DCLG,09/11/2012,Travel and Subsistence Account,Finance & Corporate Services,REDFERN TRAVEL LIMITED,,Small,,2100223737,Consolidated monthly travel October 2012,BD1 3AZ,547.76
Communities & Local Government,DCLG,09/11/2012,Travel and Subsistence Account,Finance & Corporate Services,REDFERN TRAVEL LIMITED,,Small,,2100223737,Consolidated monthly travel October 2012,BD1 3AZ,"1,021.89"
Communities & Local Government,DCLG,09/11/2012,Travel and Subsistence Account,Finance & Corporate Services,REDFERN TRAVEL LIMITED,,Small,,2100223737,Consolidated monthly travel October 2012,BD1 3AZ,620.48
Communities & Local Government,DCLG,09/11/2012,Travel and Subsistence Account,Localism,REDFERN TRAVEL LIMITED,,Small,,2100223737,Consolidated monthly travel October 2012,BD1 3AZ,"1,941.62"
Communities & Local Government,DCLG,09/11/2012,Travel and Subsistence Account,Localism,REDFERN TRAVEL LIMITED,,Small,,2100223737,Consolidated monthly travel October 2012,BD1 3AZ,"1,893.60"
Communities & Local Government,DCLG,09/11/2012,Travel and Subsistence Account,Localism,REDFERN TRAVEL LIMITED,,Small,,2100223737,Consolidated monthly travel October 2012,BD1 3AZ,400.51
Communities & Local Government,DCLG,09/11/2012,Travel and Subsistence Account,Localism,REDFERN TRAVEL LIMITED,,Small,,2100223737,Consolidated monthly travel October 2012,BD1 3AZ,"2,253.67"
Communities & Local Government,DCLG,09/11/2012,Travel and Subsistence Account,Localism,REDFERN TRAVEL LIMITED,,Small,,2100223737,Consolidated monthly travel October 2012,BD1 3AZ,529.2
Communities & Local Government,DCLG,09/11/2012,Travel and Subsistence Account,Localism,REDFERN TRAVEL LIMITED,,Small,,2100223737,Consolidated monthly travel October 2012,BD1 3AZ,862.72
Communities & Local Government,DCLG,09/11/2012,Travel and Subsistence Account,Localism,REDFERN TRAVEL LIMITED,,Small,,2100223737,Consolidated monthly travel October 2012,BD1 3AZ,608.38
Communities & Local Government,DCLG,09/11/2012,Travel and Subsistence Account,Localism,REDFERN TRAVEL LIMITED,,Small,,2100223737,Consolidated monthly travel October 2012,BD1 3AZ,336.02
Communities & Local Government,DCLG,09/11/2012,Travel and Subsistence Account,Localism,REDFERN TRAVEL LIMITED,,Small,,2100223737,Consolidated monthly travel October 2012,BD1 3AZ,398.53
Communities & Local Government,DCLG,09/11/2012,Travel and Subsistence Account,Localism,REDFERN TRAVEL LIMITED,,Small,,2100223737,Consolidated monthly travel October 2012,BD1 3AZ,254.68
Communities & Local Government,DCLG,09/11/2012,Travel and Subsistence Account,Localism,REDFERN TRAVEL LIMITED,,Small,,2100223737,Consolidated monthly travel October 2012,BD1 3AZ,"1,530.96"
Communities & Local Government,DCLG,09/11/2012,Travel and Subsistence Account,Localism,REDFERN TRAVEL LIMITED,,Small,,2100223737,Consolidated monthly travel October 2012,BD1 3AZ,"1,620.43"
Communities & Local Government,DCLG,09/11/2012,Travel and Subsistence Account,Localism,REDFERN TRAVEL LIMITED,,Small,,2100223737,Consolidated monthly travel October 2012,BD1 3AZ,617.58
Communities & Local Government,DCLG,09/11/2012,Travel and Subsistence Account,Localism,REDFERN TRAVEL LIMITED,,Small,,2100223737,Consolidated monthly travel October 2012,BD1 3AZ,"2,743.23"
Communities & Local Government,DCLG,09/11/2012,Travel and Subsistence Account,Localism,REDFERN TRAVEL LIMITED,,Small,,2100223737,Consolidated monthly travel October 2012,BD1 3AZ,"1,064.26"
Communities & Local Government,DCLG,09/11/2012,Travel and Subsistence Account,Localism,REDFERN TRAVEL LIMITED,,Small,,2100223737,Consolidated monthly travel October 2012,BD1 3AZ,"2,138.22"
Communities & Local Government,DCLG,09/11/2012,Travel and Subsistence Account,Localism,REDFERN TRAVEL LIMITED,,Small,,2100223737,Consolidated monthly travel October 2012,BD1 3AZ,"1,344.29"
Communities & Local Government,DCLG,09/11/2012,Travel and Subsistence Account,Localism,REDFERN TRAVEL LIMITED,,Small,,2100223737,Consolidated monthly travel October 2012,BD1 3AZ,290.17
Communities & Local Government,DCLG,09/11/2012,Travel and Subsistence Account,Localism,REDFERN TRAVEL LIMITED,,Small,,2100223737,Consolidated monthly travel October 2012,BD1 3AZ,896.66
Communities & Local Government,DCLG,09/11/2012,Travel and Subsistence Account,Localism,REDFERN TRAVEL LIMITED,,Small,,2100223737,Consolidated monthly travel October 2012,BD1 3AZ,640.39
Communities & Local Government,DCLG,09/11/2012,Travel and Subsistence Account,Localism,REDFERN TRAVEL LIMITED,,Small,,2100223737,Consolidated monthly travel October 2012,BD1 3AZ,338.23
Communities & Local Government,DCLG,09/11/2012,Travel and Subsistence Account,Localism,REDFERN TRAVEL LIMITED,,Small,,2100223737,Consolidated monthly travel October 2012,BD1 3AZ,502.65
Communities & Local Government,DCLG,09/11/2012,Travel and Subsistence Account,Neighbourhoods,REDFERN TRAVEL LIMITED,,Small,,2100223737,Consolidated monthly travel October 2012,BD1 3AZ,"1,044.74"
Communities & Local Government,DCLG,09/11/2012,Travel and Subsistence Account,Neighbourhoods,REDFERN TRAVEL LIMITED,,Small,,2100223737,Consolidated monthly travel October 2012,BD1 3AZ,438.33
Communities & Local Government,DCLG,09/11/2012,Travel and Subsistence Account,Neighbourhoods,REDFERN TRAVEL LIMITED,,Small,,2100223737,Consolidated monthly travel October 2012,BD1 3AZ,649.69
Communities & Local Government,DCLG,09/11/2012,Travel and Subsistence Account,Neighbourhoods,REDFERN TRAVEL LIMITED,,Small,,2100223737,Consolidated monthly travel October 2012,BD1 3AZ,"2,478.22"
Communities & Local Government,DCLG,09/11/2012,Travel and Subsistence Account,Neighbourhoods,REDFERN TRAVEL LIMITED,,Small,,2100223737,Consolidated monthly travel October 2012,BD1 3AZ,"7,224.53"
Communities & Local Government,DCLG,09/11/2012,Travel and Subsistence Account,Neighbourhoods,REDFERN TRAVEL LIMITED,,Small,,2100223737,Consolidated monthly travel October 2012,BD1 3AZ,"8,480.07"
Communities & Local Government,DCLG,09/11/2012,Travel and Subsistence Account,Neighbourhoods,REDFERN TRAVEL LIMITED,,Small,,2100223737,Consolidated monthly travel October 2012,BD1 3AZ,831.17
Communities & Local Government,DCLG,09/11/2012,Travel and Subsistence Account,Neighbourhoods,REDFERN TRAVEL LIMITED,,Small,,2100223737,Consolidated monthly travel October 2012,BD1 3AZ,622.74
Communities & Local Government,DCLG,09/11/2012,Travel and Subsistence Account,Neighbourhoods,REDFERN TRAVEL LIMITED,,Small,,2100223737,Consolidated monthly travel October 2012,BD1 3AZ,"1,376.15"
Communities & Local Government,DCLG,09/11/2012,Travel and Subsistence Account,Neighbourhoods,REDFERN TRAVEL LIMITED,,Small,,2100223737,Consolidated monthly travel October 2012,BD1 3AZ,"5,939.67"
Communities & Local Government,DCLG,09/11/2012,Travel and Subsistence Account,Neighbourhoods,REDFERN TRAVEL LIMITED,,Small,,2100223737,Consolidated monthly travel October 2012,BD1 3AZ,"3,899.20"
Communities & Local Government,DCLG,09/11/2012,Travel and Subsistence Account,Neighbourhoods,REDFERN TRAVEL LIMITED,,Small,,2100223737,Consolidated monthly travel October 2012,BD1 3AZ,"1,173.39"
Communities & Local Government,DCLG,09/11/2012,Travel and Subsistence Account,Neighbourhoods,REDFERN TRAVEL LIMITED,,Small,,2100223737,Consolidated monthly travel October 2012,BD1 3AZ,"1,115.37"
Communities & Local Government,DCLG,09/11/2012,Travel and Subsistence Account,Neighbourhoods,REDFERN TRAVEL LIMITED,,Small,,2100223737,Consolidated monthly travel October 2012,BD1 3AZ,"1,502.71"
Communities & Local Government,DCLG,09/11/2012,Travel and Subsistence Account,Neighbourhoods,REDFERN TRAVEL LIMITED,,Small,,2100223737,Consolidated monthly travel October 2012,BD1 3AZ,"2,287.13"
Communities & Local Government,DCLG,09/11/2012,Travel and Subsistence Account,Neighbourhoods,REDFERN TRAVEL LIMITED,,Small,,2100223737,Consolidated monthly travel October 2012,BD1 3AZ,"1,799.03"
Communities & Local Government,DCLG,09/11/2012,Travel and Subsistence Account,Neighbourhoods,REDFERN TRAVEL LIMITED,,Small,,2100223737,Consolidated monthly travel October 2012,BD1 3AZ,"3,508.33"
Communities & Local Government,DCLG,09/11/2012,Travel and Subsistence Account,Neighbourhoods,REDFERN TRAVEL LIMITED,,Small,,2100223737,Consolidated monthly travel October 2012,BD1 3AZ,"1,401.27"
Communities & Local Government,DCLG,09/11/2012,Travel and Subsistence Account,Neighbourhoods,REDFERN TRAVEL LIMITED,,Small,,2100223737,Consolidated monthly travel October 2012,BD1 3AZ,"1,731.55"
Communities & Local Government,DCLG,09/11/2012,Travel and Subsistence Account,Neighbourhoods,REDFERN TRAVEL LIMITED,,Small,,2100223737,Consolidated monthly travel October 2012,BD1 3AZ,"1,422.14"
Communities & Local Government,DCLG,09/11/2012,Travel and Subsistence Account,Neighbourhoods,REDFERN TRAVEL LIMITED,,Small,,2100223737,Consolidated monthly travel October 2012,BD1 3AZ,"1,405.28"
Communities & Local Government,DCLG,09/11/2012,Travel and Subsistence Account,Strategic Performance Team,REDFERN TRAVEL LIMITED,,Small,,2100223737,Consolidated monthly travel October 2012,BD1 3AZ,"1,582.58"
Communities & Local Government,DCLG,09/11/2012,Travel and Subsistence Account,Strategic Performance Team,REDFERN TRAVEL LIMITED,,Small,,2100223737,Consolidated monthly travel October 2012,BD1 3AZ,"2,784.93"
Communities & Local Government,DCLG,09/11/2012,Travel and Subsistence Account,Troubled Families,REDFERN TRAVEL LIMITED,,Small,,2100223737,Consolidated monthly travel October 2012,BD1 3AZ,"3,172.90"
Communities & Local Government,DCLG,09/11/2012,Vehicle hire,Finance & Corporate Services,GOVERNMENT CAR & DESPATCH AGENCY,,Public Bodies,,2100223789,Ministerial Cars,SW8 5AX,"-1,837.68"
Communities & Local Government,DCLG,09/11/2012,Vehicle hire,Finance & Corporate Services,GOVERNMENT CAR & DESPATCH AGENCY,,Public Bodies,,5106184141,Ministerial Cars,SW8 5AX,"1,837.68"
Communities & Local Government,DCLG,09/11/2012,Waste Disposal and pest control,Finance & Corporate Services,DACORUM BC,,Public Bodies,,5106185630,Waste Disposal 2012-13,HP1 1HH,513.56
Communities & Local Government,DCLG,09/11/2012,Waste Disposal and pest control,Finance & Corporate Services,DACORUM BC,,Public Bodies,,5106185631,Waste Disposal 2012-13,HP1 1HH,513.56
Communities & Local Government,DCLG,09/11/2012,Water,Finance & Corporate Services,MIW OFFICE SOLUTIONS,,,,5106185648,Watercooler Rental,DH9 9XW,"2,300.54"
Communities & Local Government,DCLG,09/11/2012,Web Services,Neighbourhoods,BRAMBLE. CC,,Public Bodies,,5106185638,Upgrade to IT System,SE1 7SP,"6,600.00"
Communities & Local Government,DCLG,09/11/2012,Work In Progress Pre-Cert 40373 Spend,Neighbourhoods,ASTON UNIVERSITY,,Large,,7600003353,ERDF Claim - 5 - P1,B4 7ET,"3,865.41"
Communities & Local Government,DCLG,09/11/2012,Work In Progress Pre-Cert 40373 Spend,Neighbourhoods,BIRMINGHAM CITY COUNCIL (NOT RATES),,Large,,7600003315,ERDF Claim - 22 - P2,B1 1BB,"1,270.29"
Communities & Local Government,DCLG,09/11/2012,Work In Progress Pre-Cert 40373 Spend,Neighbourhoods,BIRMINGHAM CITY COUNCIL (NOT RATES),,Large,,7600003316,ERDF Claim - 23 - P2,B1 1BB,"1,122.45"
Communities & Local Government,DCLG,09/11/2012,Work In Progress Pre-Cert 40373 Spend,Neighbourhoods,BIRMINGHAM CITY COUNCIL (NOT RATES),,Large,,7600003317,ERDF Claim - 27 - P2,B1 1BB,935.37
Communities & Local Government,DCLG,09/11/2012,Work In Progress Pre-Cert 40373 Spend,Neighbourhoods,BIRMINGHAM CITY COUNCIL (NOT RATES),,Large,,7600003318,ERDF Claim - 28 - P2,B1 1BB,"17,395.55"
Communities & Local Government,DCLG,09/11/2012,Work In Progress Pre-Cert 40373 Spend,Neighbourhoods,BIRMINGHAM CITY COUNCIL (NOT RATES),,Large,,7600003319,ERDF Claim - 24 - P2,B1 1BB,"30,724.73"
Communities & Local Government,DCLG,09/11/2012,Work In Progress Pre-Cert 40373 Spend,Neighbourhoods,BIRMINGHAM CITY COUNCIL (NOT RATES),,Large,,7600003320,ERDF Claim - 25 - P2,B1 1BB,806.33
Communities & Local Government,DCLG,09/11/2012,Work In Progress Pre-Cert 40373 Spend,Neighbourhoods,BIRMINGHAM CITY COUNCIL (NOT RATES),,Large,,7600003321,ERDF Claim - 26 - P2,B1 1BB,"35,844.76"
Communities & Local Government,DCLG,09/11/2012,Work In Progress Pre-Cert 40373 Spend,Neighbourhoods,BIRMINGHAM CITY COUNCIL (NOT RATES),,Large,,7600003330,ERDF Claim - 29 - P2,B1 1BB,"7,640.07"
Communities & Local Government,DCLG,09/11/2012,Work In Progress Pre-Cert 40373 Spend,Neighbourhoods,BIRMINGHAM CITY COUNCIL (NOT RATES),,Large,,7600003339,ERDF Claim - 15 - P1,B1 1BB,"3,562.63"
Communities & Local Government,DCLG,09/11/2012,Work In Progress Pre-Cert 40373 Spend,Neighbourhoods,BIRMINGHAM CITY COUNCIL (NOT RATES),,Large,,7600003351,ERDF Claim - 5 - P2,B1 1BB,"74,423.89"
Communities & Local Government,DCLG,09/11/2012,Work In Progress Pre-Cert 40373 Spend,Neighbourhoods,BIRMINGHAM CITY UNIVERSITY,,Medium,,7600003324,ERDF Claim - 31 - P2,B42 2SU,"9,983.17"
Communities & Local Government,DCLG,09/11/2012,Work In Progress Pre-Cert 40373 Spend,Neighbourhoods,BIRMINGHAM CITY UNIVERSITY,,Medium,,7600003338,ERDF Claim - 32 - P2,B42 2SU,"7,544.19"
Communities & Local Government,DCLG,09/11/2012,Work In Progress Pre-Cert 40373 Spend,Neighbourhoods,BRADFORD  MDC,,,,7600003342,ERDF Claim - 15 - P3-YH,BD1 1HY,"24,864.13"
Communities & Local Government,DCLG,09/11/2012,Work In Progress Pre-Cert 40373 Spend,Neighbourhoods,CHAMBER OF COMMERCE (BARNSLEY&ROTH),,Small,,7600003333,ERDF Claim - 9 - P3-SY,S60 1OX,"19,918.72"
Communities & Local Government,DCLG,09/11/2012,Work In Progress Pre-Cert 40373 Spend,Neighbourhoods,CHAMBER OF COMMERCE (BARNSLEY&ROTH),,Small,,7600003334,ERDF Claim - 9 - P3-YH,S60 1OX,"39,307.41"
Communities & Local Government,DCLG,09/11/2012,Work In Progress Pre-Cert 40373 Spend,Neighbourhoods,COVENTRY UNIVERSITY ENTERPRISES LTD,,Medium,,7600003325,ERDF Claim - 4 - P1,CV1 2TT,"2,269.99"
